{"text_format":"1","workbook":"xlsx","n_sheets":7,"sheets":["Read Me","Instruction","CFP Quantification","Customized Embodied EF","Customized Fuel EF","Customized Fuel LHV","Default EF&LHV References "],"not_rendered":{"charts":0,"images":1,"macros":1,"external_links":0,"defined_names":62,"comments":2,"pivot_tables":0},"unopened":[],"bounds":{"document_bytes":16777216,"sheet_cells":100000,"rows_first":2000,"rows_last":500,"rows_between":2000,"halvings":0,"cell_chars":16384,"cell_head_chars":4096},"cells_cut":0,"cells_raw":0,"read":"whole","date_system":"1900"}

{"sheet":"Read Me","index":0,"n_rows":40,"n_cols":4,"rows_kept":40,"cut":false,"hidden":false,"merged":[[24,1,24,7],[23,1,23,7],[19,1,19,7],[20,1,20,7],[22,1,22,7],[0,1,0,7],[2,1,2,7],[21,1,21,7],[18,1,18,7],[6,3,6,6]]}
[null,"CFP Quantification Tool - Ready-mixed Concrete"]
[]
[null,"Colour Codes, Notes & FAQ"]
[]
[]
[null,"Tool Sections :"]
[null,"G : General Information Section ","=","General information of the certifying Ready mixed Concrete (RMC) product(s) that required user input"]
[null,"A : Assessment Section","=","Calculation of the carbon emission for each RMC product(s)"]
[null,"P : Performance Section ","=","Summary of each of the RMC Carbon emission performance "]
[]
[null,"Colour Code of Cells :",null,"Colour Code of Sheets :"]
[null,"Input cell",null,"Instruction"]
[null,"Calculated value",null,"Calculation Tool"]
[null,"Information ( Title , units, item nos. etc)",null," Factor for Calculation"]
[null,"Not used ",null,"Default Factor References"]
[null,"Click me"]
[]
["Notes to users:"]
["-","Users should refer to the relevant Assessment Guide issued by the Construction Industry Council's (CIC) for the principles, requirements, and guides for the quantification and reporting the carbon footprint of products (CFP) under the CIC Green Product Certification.  Any manufacturers applying for the CIC's  Green Product Certification should comply with all relevant requirements on CFP quantification stated in the Assessment Guide."]
["-","The goal of carrying out a CFP quantification is to calculate the potential contribution of a particular product to global warming expressed as CO2e by quantifying all significant GHG emissions and removals over the product’s life cycle."]
["- ","This CFP quantification tool is currently applicable to nine ready-mixed concrete products namely, (1) 20 MPa ≤ ƒcu< 30 MPa (2) 30 MPa ≤ ƒcu< 35 MPa; (3) 35 MPa ≤ ƒcu < 40 MPa; (4) 40 MPa ≤ ƒcu < 45 MPa; (5) 45 MPa ≤ ƒcu < 50 MPa; (6) 50 MPa ≤ ƒcu < 60 MPa; (7) 60 MPa≤ ƒcu < 70 MPa; (8) 70 MPa ≤ ƒcu < 80 Mpa; (9) 80 MPa ≤ ƒcu < 90 MPa as described in the Assessment Guide.  The tool is developed with reference to ISO 14067:2018."]
["- ","According to the principles of the LCA methodology provided in ISO 14040:2006 with Amendment 1:2020 and ISO 14044:2006 with Amendment 2:2020, the quantification and reporting of a CFP should be relevant, complete, consistent, accurate and transparent. The assessment of carbon footprint of ready-mixed concrete under the CIC Green Product Certification shall be based on a “cradle-to-gate” approach, covering all GHG emissions and removals arising from raw material acquisition through production, and transportation of the raw materials to the plant, and manufacturing process. Please note that the GHG emission from transportation of ready-mixed concrete to site (Module A4) is excluded from the system boundary of this assessment. The user input for A4 emission is provided for reporting purpose only and does not affect the benchmarking and rating of the certified product."]
["-","Users are required to complete the worksheet \"CFP Quantification\" to access the product's carbon footprint. Guides are provided in the \"Instruction\" worksheet. Please ensure ALL input cells (i.e. empty light green cells) in the \"CFP Quantification\" are filled out. User shall fill the worksheet from top to bottom."]
["-","All the units of \"t/reporting period\" in this tool refers to \"tonne/year\", where 1 tonne = 1000 kg."]
["-","If \"Default\" factor is selected, Applicants shall review the references of the default values to ensure their applicability prior to use.\n\nApplicants are encouraged to prioritize the use of specific life cycle data. In cases where such data is not readily accessible, data from national databases, regional databases, or other recognized sources may be utilized. "]
["Frequently Asked Questions:"]
["-","Question: \"Why do many self-calculating cells in my worksheet display a calculation error (for example, \"#VALUE\" displayed)?"]
[null,"Answer: \"#VALUE\" appears as long as some necessary input cells have not been completed (i.e., some cells have been left blank)."]
["-","Question: \"Why do many self-calculating cells in my worksheet display a \"Factor error\" ?"]
[null,"Answer: \"Factor error\" appears as the energy commodity / material was not found in the factor sheets."]
[]
[null,"© 2025 All rights reserved by CIC"]
[]
[null,"Scheme Owned by Construction Industry Council"]
[null,"38/F, COS Centre, 56 Tsun Yip Street, Kwun Tong, Kowloon, Hong Kong"]
[]
[null,"Operated by Hong Kong Green Building Council"]
[null,"1/F, Jockey Club Environmental Building, 77 Tat Chee Avenue, Kowloon Tong, Hong Kong"]
[null,"Phone: +852 3994 8888"]
[null,"Email: cicgpc@hkgbc.org.hk"]

{"sheet":"Instruction","index":1,"n_rows":122,"n_cols":30,"rows_kept":122,"cut":false,"hidden":false,"merged":[[11,6,28,9],[9,5,9,9],[10,5,10,9],[0,0,0,19],[2,8,2,9],[3,8,3,9],[5,1,6,1],[5,2,6,29],[7,1,28,1],[7,2,7,9],[7,10,7,20],[8,5,8,9],[8,10,10,20],[11,10,28,20],[34,8,34,9],[35,5,35,7],[35,8,35,9],[36,8,36,9],[29,1,36,1],[29,2,29,20],[30,8,30,9],[31,8,31,9],[32,8,32,9],[33,8,33,9],[30,10,36,20],[37,1,39,1],[37,2,37,8],[37,10,37,11],[38,10,38,11],[39,10,39,11],[40,1,59,1],[40,2,40,8],[40,10,40,11],[41,10,41,11],[42,10,42,11],[48,5,48,6],[48,10,48,11],[49,5,49,6],[49,10,49,11],[50,5,50,6],[50,10,50,11],[43,10,43,11],[44,10,44,11],[45,10,45,11],[46,5,46,6],[46,10,46,11],[47,5,47,6],[47,10,47,11],[51,5,51,6],[51,10,51,11],[52,5,52,6],[52,10,52,11],[53,10,53,11],[60,1,62,1],[60,2,60,8],[60,10,60,11],[61,10,61,11],[62,10,62,11],[55,10,56,10],[55,8,56,8],[58,8,59,8],[62,12,62,29],[63,1,63,29],[64,2,64,29],[65,1,86,1],[65,2,65,29],[66,2,66,8],[66,10,66,11],[67,2,67,3],[67,5,67,8],[67,10,67,11],[70,7,70,8],[70,10,70,11],[71,7,71,8],[71,10,71,11],[68,2,68,3],[68,5,68,6],[68,7,68,8],[69,7,69,8],[69,10,69,11],[74,7,74,8],[76,10,76,11],[77,7,77,8],[77,10,77,11],[74,10,74,11],[75,7,75,8],[75,10,75,11],[72,7,72,8],[72,10,72,11],[73,7,73,8],[73,10,73,11],[86,2,86,3],[86,5,86,7],[86,10,86,11],[84,8,85,8],[84,5,85,6],[82,2,82,3],[82,5,82,8],[82,10,82,11],[83,2,83,3],[83,5,83,6],[83,7,83,8],[92,1,104,1],[92,2,92,29],[93,2,93,8],[93,10,93,11],[94,2,94,3],[94,5,94,8],[94,10,94,11],[95,7,95,8],[87,1,91,1],[87,2,87,29],[88,2,88,8],[88,10,88,11],[89,2,89,3],[89,5,89,8],[90,5,90,8],[90,10,90,11],[91,2,91,3],[91,5,91,7],[102,2,102,3],[102,5,102,8],[102,10,102,11],[96,10,96,11],[97,10,97,11],[98,2,98,3],[112,1,121,1],[112,10,112,11],[113,5,113,8],[113,10,113,11],[114,5,114,8],[114,10,114,11],[105,1,109,1],[105,2,105,29],[106,2,106,8],[106,10,106,11],[107,2,107,3],[107,5,107,8],[107,10,107,29],[108,5,108,8],[108,10,108,11],[109,2,109,3],[119,5,119,8],[119,10,119,11],[120,5,120,8],[120,10,120,11],[38,12,39,29],[121,5,121,8],[121,10,121,11],[115,5,115,8],[115,10,115,11],[116,5,116,8],[116,10,116,11],[117,10,117,11],[118,5,118,8],[118,10,118,11],[109,5,109,7],[109,10,109,11],[111,2,111,8],[111,10,111,11],[103,2,103,3],[103,5,103,8],[103,10,103,11],[104,2,104,3],[104,5,104,7],[104,10,104,11],[99,7,99,8],[96,5,97,5],[96,6,97,6],[96,7,97,8],[100,6,101,6],[100,7,101,8],[90,12,90,29],[41,12,53,29],[108,12,108,29],[58,12,59,29],[100,10,100,11],[101,10,101,11],[84,10,84,11],[85,10,85,11],[80,7,80,8],[80,10,80,11],[81,7,81,8],[81,10,81,11],[69,5,81,6],[78,7,78,8],[78,10,78,11],[79,7,79,8],[79,10,79,11],[76,7,76,8],[98,5,98,8],[98,10,98,11],[91,10,91,11],[100,5,101,5]]}
["CFP Quantification - Ready-mixed Concrete"]
["Category 1: C20 (20 MPa ≤ ƒcu < 30 MPa)"]
["Category 2: C30 (30 MPa ≤ ƒcu < 35 MPa)","Date of latest update",null,null,null,null,null,null,"2025-03-24"]
["Category 3: C35 (35 MPa ≤ ƒcu < 40 MPa)","Reporting period",null,null,null,null,null,null,"Please provide corresponding information"]
["Category 4: C40 (40 MPa ≤ ƒcu < 45 MPa)"]
["Category 5: C45 (45 MPa ≤ ƒcu < 50 MPa)","G","GENERAL INFORMATION"]
["Category 6: C50 (50 MPa ≤ ƒcu < 60 MPa)"]
["Category 7: C60 (60 MPa ≤ ƒcu < 70 MPa)","G1","G1 General Plant Information",null,null,null,null,null,null,null,"Description"]
["Category 8: C70 (70 MPa ≤ ƒcu < 80 MPa)",null,{"$f":"LEFT($C$8,2)&\".\"","v":"G1."},1,null,"Plant",null,null,null,null,"Please provide corresponding information"]
["Category 9: C80 (80 MPa ≤ ƒcu < 90 MPa)",null,"G1.",2,null,"Company"]
[null,null,"G1.",3,null,"Country / Region"]
[null,null,"G1.",4,null,"Product 1","Please select the product category:\n1) Category 1: C20 (20 MPa ≤ ƒcu < 30 MPa)\n2) Category 2: C30 (30 MPa ≤ ƒcu < 35 MPa)\n3) Category 3: C35 (35 MPa ≤ ƒcu < 40 MPa)\n4) Category 4: C40 (40 MPa ≤ ƒcu < 45 MPa)\n5) Category 5: C45 (45 MPa ≤ ƒcu < 50 MPa)\n6) Category 6: C50 (50 MPa ≤ ƒcu < 60 MPa)\n7) Category 7: C60 (60 MPa ≤ ƒcu < 70 MPa)\n8) Category 8: C70 (70 MPa ≤ ƒcu < 80 MPa)\n9) Category 9: C80 (80 MPa ≤ ƒcu < 90 MPa)",null,null,null,"Please provide corresponding product information (name, strength grade, SCM rate, etc.) to be applied under this category.\nExample: C60 GGBS 65%, Max CC 460kg/m3"]
[null,null,"G1.",5,null,"Product 2"]
[null,null,"G1.",6,null,"Product 3"]
[null,null,"G1.",7,null,"Product 4"]
[null,null,"G1.",8,null,"Product 5"]
[null,null,"G1.",9,null,"Product 6"]
[null,null,"G1.",10,null,"Product 7"]
[null,null,"G1.",11,null,"Product 8"]
[null,null,"G1.",12,null,"Product 9"]
[null,null,"G1.",13,null,"Product 10"]
[null,null,"G1.",14,null,"Product 11"]
[null,null,"G1.",15,null,"Product 12"]
[null,null,"G1.",16,null,"Product 13"]
[null,null,"G1.",17,null,"Product 14"]
[null,null,"G1.",18,null,"Product 15"]
[null,null,"G1.",19,null,"Product 16"]
[null,null,"G1.",20,null,"Product 17"]
[null,null,"G1.",21,null,"Product 18"]
[null,"G2","G2 System Boundary"]
[null,null,{"$f":"LEFT($C$30,2)&\".\"","v":"G2."},1,null,"Raw Material extraction and upstream production",null,null,"[yes, no or n.a.]",null,"\"Yes\" means that the GHG emissions arising from the process are reported.\n\"No\" means that the associated data are not reported. Please provide explanation in a note in the cell for why \"No\" was selected.\n\"n.a.\" (not applicable) means that emissions are never generated from this source, or the source does not exist at this plant."]
[null,null,"G2.",2,null,"Off-site transportation of raw materials to manufacturing plant",null,null,"[yes, no or n.a.]"]
[null,null,"G2.",3,null,"Product manufacturing - stationary combustion",null,null,"[yes, no or n.a.]"]
[null,null,"G2.",4,null,"Product manufacturing - mobile combustion ",null,null,"[yes, no or n.a.]"]
[null,null,"G2.",5,null,"Indirect emission from purchased energy ",null,null,"[yes, no or n.a.]"]
[null,null,"G2.",6,null,"Off-site transportation of  product to construction site [for reference only, excluded from assessment boundary]",null,null,"[yes, no or n.a.]"]
[null,null,"G2.",7,null,"(add other processes as appropriate)",null,null,"[yes, no or n.a.]"]
[null,"G3","G3 Concrete Production",null,null,null,null,null,null,"unit","Total",null,"Product 1","Product 2","Product 3","Product 4","Product 5","Product 6","Product 7","Product 8","Product 9","Product 10","Product 11","Product 12","Product 13","Product 14","Product 15","Product 16","Product 17","Product 18"]
[null,null,{"$f":"LEFT($C$38,2)&\".\"","v":"G3."},1,null,"Concrete production in volume",null,null,null,"[m3/reporting period]",{"$f":"IF(SUM(M39:AD39)=0,\"\",SUM(M39:AD39))","v":""},null,"Quantity in volume of each product produced. If there are more than two products within any category, feel free to add additional columns as needed. To add more products, simply copy the entire columns of the last category and insert them after the last product column \ne.g. Copy Column AB and AC and insert them after AC"]
[null,null,{"$f":"LEFT($C$38,2)&\".\"","v":"G3."},2,null,"Proportion",null,null,null,"%",{"$f":"IF(SUM(M40:AD40)=0,\"\",SUM(M40:AD40))","v":""}]
[null,"G4","G4 Raw Materials and Energy Used to Produce Concrete Products",null,null,null,null,null,null,"unit","Total",null,"Product 1","Product 2","Product 3","Product 4","Product 5","Product 6","Product 7","Product 8","Product 9","Product 10","Product 11","Product 12","Product 13","Product 14","Product 15","Product 16","Product 17","Product 18"]
[null,null,{"$f":"LEFT($C$41,2)&\".\"","v":"G4."},1,null,"Ordinary Portland cement, i.e. CEM I",null,null,null,"[t/reporting period, dry weight]",{"$f":"IF(SUM(M42:AD42)=0,\"\",SUM(M42:AD42))","v":""},null,"Please input the consumption of materials required for the production of each product."]
[null,null,"G4.",2,null,"Aggregates and sand, from virgin land won resources, bulk, loose",null,null,null,"[t/reporting period, dry weight]",{"$f":"IF(SUM(M43:AD43)=0,\"\",SUM(M43:AD43))","v":""}]
[null,null,"G4.",3,null,"Aggregates and sand, from virgin marine resources, bulk, loose",null,null,null,"[t/reporting period, dry weight]",{"$f":"IF(SUM(M44:AD44)=0,\"\",SUM(M44:AD44))","v":""}]
[null,null,"G4.",4,null,"Aggregates and sand, from recycled resources, no heat treatment, bulk, loose",null,null,null,"[t/reporting period, dry weight]",""]
[null,null,"G4.",5,null,"Aggregates and sand, from recycled resources, with heat treatment, bulk, loose",null,null,null,"[t/reporting period, dry weight]",""]
[null,null,"G4.",6,null,"Water / Ice",null,null,null,"[t/reporting period]",{"$f":"IF(SUM(M47:AD47)=0,\"\",SUM(M47:AD47))","v":""}]
[null,null,"G4.",7,null,"Fly ash (FA)",null,null,null,"[t/reporting period, dry weight]",""]
[null,null,"G4.",8,null,"Ground granulated blast-furnace slag (GGBS)",null,null,null,"[t/reporting period, dry weight]",""]
[null,null,"G4.",9,null,"Silica fume (SF)",null,null,null,"[t/reporting period, dry weight]",""]
[null,null,"G4.",10,null,"Superplasticizer",null,null,null,"[t/reporting period]",""]
[null,null,"G4.",11,null,"Plasticizer",null,null,null,"[t/reporting period]",""]
[null,null,"G4.",12,null,"Setting accelerator",null,null,null,"[t/reporting period]",""]
[null,null,"G4.",13,null,"Applicant can add raw materials, if applicable.\n\nApplicants shall include customized raw materials for calculation purposes in the worksheet titled \"Customized Embodied EF\"",null,null,null,"[t/reporting period]",{"$f":"IF(SUM(M54:AD54)=0,\"\",SUM(M54:AD54))","v":""}]
[null,null,"G4.",14,null,"Product manufacturing ",null,"Energy Commodity usage type : ","Proportionally Allocated"]
[null,null,"G4.",{"$f":"D55","v":14},".1","Stationary combustion ",null,"Energy commodity :","Please select the appropriate type of energy commodity.\n\nApplicants are permitted to include customized energy commodities for calculation purposes in the worksheets titled \"Customized Embodied EF,\" \"Customized Fuel EF,\" and \"Customized Fuel LHV.\" \n\nIf additional energy commodities need to be included, kindly insert more rows as necessary.","[t/reporting period]","If \"Proportionally Allocated\" is selected, please enter the total consumption energy commodity for all products.",{"$f":"IF($I$55=\"user input\",SUM(M56:AD56),\"\")","v":""}]
[null,null,"G4.",{"$f":"D56","v":14},".2","Stationary combustion ",null,"Energy commodity :",null,"[t/reporting period]",null,{"$f":"IF($I$55=\"user input\",SUM(M57:AD57),\"\")","v":""}]
[null,null,"G4.",15,null,"On-site transportation",null,"Energy Commodity usage type : ","User Input"]
[null,null,"G4.",{"$f":"D58","v":15},".1","Mobile combustion ",null,"Energy commodity :","Please select the appropriate type of energy commodity.\n\nApplicants are permitted to include customized energy commodities for calculation purposes in the worksheets titled \"Customized Embodied EF,\" \"Customized Fuel EF,\" and \"Customized Fuel LHV.\" \n\nIf additional energy commodities need to be included, kindly insert more rows as necessary.","[t/reporting period]",null,null,"If \"User Input\" is selected, please enter the individual consumption energy commodity for each product."]
[null,null,"G4.",{"$f":"D59","v":15},".2","Mobile combustion ",null,"Energy commodity :",null,"[t/reporting period]"]
[null,"G5","G5. Power Consumption of Purchased Energy",null,null,null,null,null,null,"unit","Total",null,"Product 1","Product 2","Product 3","Product 4","Product 5","Product 6","Product 7","Product 8","Product 9","Product 10","Product 11","Product 12","Product 13","Product 14","Product 15","Product 16","Product 17","Product 18"]
[null,null,{"$f":"LEFT($C$61,2)&\".\"","v":"G5."},1,null,"Consumption of electricity produced externally",null,null,null,"[MWh/reporting period]","Please enter the total consumption of electricity produced externally ",null,{"$f":"IFERROR(IF($K62=\"\",\"\",$K62*M40),\"\")","v":""},"","","","","","","","","","","","","","","","",""]
[null,null,{"$f":"LEFT($C$61,2)&\".\"","v":"G5."},2,null,"CO2e per unit of electricity produced externally",null,null,null,"[kg CO2e/MWh]","Please enter the specific carbon emission factor for electricity produced externally. \n\nApplicants may obtain the carbon emission factor from their power supplier or from relevant national authorities."]
[]
[null,"A","ASSESSMENT"]
[null,"A1","PROJECT LIFE CYCLE STAGE : A1 RAW MATERIAL EXTRACTION AND UPSTREAM PRODUCTION"]
[null,null,"A1.1 CO2e EMISSIONS ",null,null,null,null,null,null,"unit","Total",null,"Product 1","Product 2","Product 3","Product 4","Product 5","Product 6","Product 7","Product 8","Product 9","Product 10","Product 11","Product 12","Product 13","Product 14","Product 15","Product 16","Product 17","Product 18"]
[null,null,"A1.1.1",null,null,"CO2e from bought raw materials",null,null,null,"[t CO2e/reporting period]",{"$f":"SUM(M68:AD68)","v":0}]
[null,null,null,null,null,"Adopting CO2e Factors "]
[null,null,null,{"$f":"C68","v":"A1.1.1"},".1","Select the type of embodied emissions factor (EF) for calculation:\n1) Default \n2) Customized\n\nIf \"Customized\" is selected, please enter / add customized CEF for each of the product under worksheet \"Customized Embodied EF\".\n\nIf \"Default\" is selected, Applicants shall review the references of the default values to ensure their applicability prior to use.\n\nApplicants are encouraged to prioritize the use of specific life cycle data. In cases where such data is not readily accessible, data from national databases, regional databases, or other recognized sources may be utilized. ",null,{"$f":"F42","v":"Ordinary Portland cement, i.e. CEM I"},null,"[t CO2e/reporting period]",{"$f":"IF(SUM(M70:AD70)=0,\"\",SUM(M70:AD70))","v":""}]
[null,null,null,{"$f":"C68","v":"A1.1.1"},".2",null,null,{"$f":"F43","v":"Aggregates and sand, from virgin land won resources, bulk, loose"},null,"[t CO2e/reporting period]",{"$f":"IF(SUM(M71:AD71)=0,\"\",SUM(M71:AD71))","v":""}]
[null,null,null,{"$f":"C68","v":"A1.1.1"},".3",null,null,"Aggregates and sand, from virgin marine resources, bulk, loose",null,"[t CO2e/reporting period]",{"$f":"IF(SUM(M72:AD72)=0,\"\",SUM(M72:AD72))","v":""}]
[null,null,null,{"$f":"C68","v":"A1.1.1"},".4",null,null,"Aggregates and sand, from recycled resources, no heat treatment, bulk, loose",null,"[t CO2e/reporting period]",{"$f":"IF(SUM(M73:AD73)=0,\"\",SUM(M73:AD73))","v":""}]
[null,null,null,{"$f":"D73","v":"A1.1.1"},".5",null,null,"Aggregates and sand, from recycled resources, with heat treatment, bulk, loose",null,"[t CO2e/reporting period]",""]
[null,null,null,{"$f":"D74","v":"A1.1.1"},".6",null,null,"Water / Ice",null,"[t CO2e/reporting period]",""]
[null,null,null,{"$f":"D75","v":"A1.1.1"},".7",null,null,"Fly ash (FA)",null,"[t CO2e/reporting period]",{"$f":"IF(SUM(M76:AD76)=0,\"\",SUM(M76:AD76))","v":""}]
[null,null,null,{"$f":"D76","v":"A1.1.1"},".8",null,null,"Ground granulated blast-furnace slag (GGBS)",null,"[t CO2e/reporting period]",{"$f":"IF(SUM(M77:AD77)=0,\"\",SUM(M77:AD77))","v":""}]
[null,null,null,"A1.1.1",".9",null,null,"Silica fume (SF)",null,"[t CO2e/reporting period]",""]
[null,null,null,"A1.1.1",".10",null,null,"Superplasticizer",null,"[t CO2e/reporting period]",""]
[null,null,null,"A1.1.1",".11",null,null,"Plasticizer",null,"[t CO2e/reporting period]",""]
[null,null,null,{"$f":"D80","v":"A1.1.1"},".12",null,null,"Setting accelerator",null,"[t CO2e/reporting period]",{"$f":"IF(SUM(M81:AD81)=0,\"\",SUM(M81:AD81))","v":""}]
[null,null,null,{"$f":"D81","v":"A1.1.1"},".13",null,null,"Please add other raw materials if necessary",null,"[t CO2e/reporting period]",{"$f":"IF(SUM(M82:AD82)=0,\"\",SUM(M82:AD82))","v":""}]
[null,null,"A1.1.2",null,null,"CO2e from bought energy commodity",null,null,null,"[t CO2e/reporting period]",{"$f":"IF(SUM(M83:AD83)=0,\"\",SUM(M83:AD83))","v":""}]
[null,null,null,null,null,"Adopting CO2e Factors ",null,"[Please insert additional rows if more energy commodities are included]"]
[null,null,null,{"$f":"C83","v":"A1.1.2"},".1","Select the type of embodied EF for calculation:\n1) Default \n2) Customized\n\nIf \"Customized\" is selected, please enter / add customized CEF for each of the product under worksheet \"Customized Embodied EF\".\n\nIf \"Default\" is selected, Applicants shall review the references of the default values to ensure their applicability prior to use.\n\nApplicants are encouraged to prioritize the use of specific life cycle data. In cases where such data is not readily accessible, data from national databases, regional databases, or other recognized sources may be utilized. ",null,{"$f":"H56","v":"Energy commodity :"},"Please copy energy commodity from G4.14 and G4.15.\n\nPlease insert additional rows if more energy commodities are included","[t CO2e/reporting period]"]
[null,null,null,{"$f":"D85","v":"A1.1.2"},".2",null,null,{"$f":"H57","v":"Energy commodity :"},null,"[t CO2e/reporting period]"]
[null,null,"A1.2.5",null,null,null,null,null,"Total CO2e in Stage A1","[t CO2e/reporting period]",null,null,{"$f":"IF(AND(M68=\"\",M83=\"\"),\"\",(M68+M83))","v":""},"","","","","","","","","","","","","","","","",""]
[null,"A2","PROJECT LIFE CYCLE STAGE: A2 OFF-SITE TRANSPORTATION OF RAW MATERIALS TO MANUFACTURING PLANT"]
[null,null,"A2.1 CO2e EMISSIONS ",null,null,null,null,null,null,"unit","Total",null,"Product 1","Product 2","Product 3","Product 4","Product 5","Product 6","Product 7","Product 8","Product 9","Product 10","Product 11","Product 12","Product 13","Product 14","Product 15","Product 16","Product 17","Product 18"]
[null,null,"A2.1.1",null,null,"CO2e from off-site transportation of raw material to manufacturing plant"]
[null,null,null,{"$f":"C90","v":"A2.1.1"},".1","CO2e calculated using either 1) WRI & WBCSD's protocol OR 2) EPD & EMSD's carbon audit tool)",null,null,null,"[t CO2e/reporting period]",null,null,"Please enter the GHG emission from stage A2 (from off-site transportation of raw material to manufacturing plant) for each of the product. \n\nGHG emission can be calculated by required information such as mode of transport, travelled distance, fuel used with following tool:\n1) WRI & WBCSD's protocol, namely “GHG Emissions from Transport or Mobile Sources” which can be accessible at: https://ghgprotocol.org/calculation-tools-and-guidance, or \n2) EPD & EMSD carbon audit tool, which can be accessible at: https://cnsd.gov.hk/en/green-business-and-industry/carbon-audit/\n\nIf the travelled distance needs to be entered into a separate tool, please use the actual travelled distance rather than the straight-line distance. Additionally, kindly provide supporting documentation, such as a map indicating the distance, for verification purposes."]
[null,null,"A2.1.2",null,null,null,null,null,"Total CO2e in Stage A2","[t CO2e/reporting period]",null,null,{"$f":"IF(AND(M91=\"\"),\"\",(M91))","v":"Please enter the GHG emission from stage A2 (from off-site transportation of raw material to manufacturing plant) for each of the product. \n\nGHG emission can be calculated by required information such as mode of transport, travelled distance, fuel used with following tool:\n1) WRI & WBCSD's protocol, namely “GHG Emissions from Transport or Mobile Sources” which can be accessible at: https://ghgprotocol.org/calculation-tools-and-guidance, or \n2) EPD & EMSD carbon audit tool, which can be accessible at: https://cnsd.gov.hk/en/green-business-and-industry/carbon-audit/\n\nIf the travelled distance needs to be entered into a separate tool, please use the actual travelled distance rather than the straight-line distance. Additionally, kindly provide supporting documentation, such as a map indicating the distance, for verification purposes."},{"$f":"IF(AND(N91=\"\"),\"\",(N91))","v":""},{"$f":"IF(AND(O91=\"\"),\"\",(O91))","v":""},"","","","","","","","","","","","","","",""]
[null,"A3","PROJECT LIFE CYCLE STAGE: A3 PRODUCT MANUFACTURING AND FABRICATION (WITHOUT WASTAGE)"]
[null,null,"A3.1 CO2e EMISSIONS ",null,null,null,null,null,null,"unit","Total",null,"Product 1","Product 2","Product 3","Product 4","Product 5","Product 6","Product 7","Product 8","Product 9","Product 10","Product 11","Product 12","Product 13","Product 14","Product 15","Product 16","Product 17","Product 18"]
[null,null,"A3.1.1",null,null,"CO2e from product manufacturing (stationary combustion sources)",null,null,null,"[t CO2e/reporting period]",{"$f":"SUM(M95:AD95)","v":0}]
[null,null,null,null,null,"Adopting CO2e Factors ","Adopting LHV Factors ","[Please insert additional rows if more energy commodities are included]"]
[null,null,null,{"$f":"C95","v":"A3.1.1"},".1","Select the type of embodied EF for calculation:\n1) Default \n2) Customized\n\nIf \"Customized\" is selected, please enter / add customized CEF for each of the product under worksheet \"Customized Fuel EF\".\n\nIf \"Default\" is selected, Applicants shall review the references of the default values to ensure their applicability prior to use.\n\nApplicants are encouraged to prioritize the use of specific life cycle data. In cases where such data is not readily accessible, data from national databases, regional databases, or other recognized sources may be utilized. ","Select the type of LHV factor for calculation:\n1) Default \n2) Customized\n\nIf \"Customized\" is selected, please enter / add customized LHV for each of the product under worksheet \"Customized Fuel LHV\".\n\nIf \"Default\" is selected, Applicants shall review the references of the default values to ensure their applicability prior to use.\n\nApplicants are encouraged to prioritize the use of specific life cycle data. In cases where such data is not readily accessible, data from national databases, regional databases, or other recognized sources may be utilized. ","Please enter the type of energy commodity utilized from stationary combustion sources for production manufacturing, including but not limited to, raw material preparation, equipment operation, room heating and cooling, and on-site power generation.",null,"[t CO2e/reporting period]"]
[null,null,null,{"$f":"C95","v":"A3.1.1"},".2",null,null,null,null,"[t CO2e/reporting period]"]
[null,null,"A3.1.2",null,null,"CO2e from on-site transportation (mobile combustion sources)",null,"CO2e from on-site power generation","CO2e from on-site power generation","[t CO2e/reporting period]"]
[null,null,null,null,null,"Adopting CO2e Factors ","Adopting LHV Factors ","[Please insert additional rows if more energy commodities are included]"]
[null,null,null,{"$f":"C99","v":"A3.1.2"},".1","Select the type of embodied EF for calculation:\n1) Default \n2) Customized\n\nIf \"Customized\" is selected, please enter / add customized CEF for each of the product under worksheet \"Customized Fuel EF\".\n\nIf \"Default\" is selected, Applicants shall review the references of the default values to ensure their applicability prior to use.\n\nApplicants are encouraged to prioritize the use of specific life cycle data. In cases where such data is not readily accessible, data from national databases, regional databases, or other recognized sources may be utilized. ","Select the type of LHV factor for calculation:\n1) Default \n2) Customized\n\nIf \"Customized\" is selected, please enter / add customized LHV for each of the product under worksheet \"Customized Fuel LHV\".\n\nIf \"Default\" is selected, Applicants shall review the references of the default values to ensure their applicability prior to use.\n\nApplicants are encouraged to prioritize the use of specific life cycle data. In cases where such data is not readily accessible, data from national databases, regional databases, or other recognized sources may be utilized. ","Please enter the type of energy commodity utilized from mobile combustion sources for on-site transportation.",null,"[t CO2e/reporting period]"]
[null,null,null,{"$f":"C99","v":"A3.1.2"},".2",null,null,null,null,"[t CO2e/reporting period]"]
[null,null,"A3.1.3",null,null,"Total CO2e from fuels combustion",null,null,null,"[t CO2e/reporting period]"]
[null,null,"A3.1.4",null,null,"CO2e from external electricity production",null,null,null,"[t CO2e/reporting period]",null,null,{"$f":"IFERROR(M62*$K$63/1000,\"\")","v":""},"","","","","","","","","","","","","","","","",""]
[null,null,"A3.1.5",null,null,null,null,null,"Total CO2e in Stage A3","[t CO2e/reporting period]",null,null,{"$f":"IFERROR(IF(M104=\"\",\"\",M104)+IF(M103=\"\",\"\",M103),\"\")","v":""},{"$f":"IFERROR(IF(N104=\"\",\"\",N104)+IF(N103=\"\",\"\",N103),\"\")","v":""},{"$f":"IFERROR(IF(O104=\"\",\"\",O104)+IF(O103=\"\",\"\",O103),\"\")","v":""},"","","","","","","","","","","","",{"$f":"IFERROR(IF(AB104=\"\",\"\",AB104)+IF(AB103=\"\",\"\",AB103),\"\")","v":""},"",""]
[null,"A4","PROJECT LIFE CYCLE STAGE: A4 OFF-SITE TRANSPORTATION OF PRODUCT TO CONSTRUCTION SITE "]
[null,null,"A4.1 CO2e EMISSIONS ",null,null,null,null,null,null,"unit","Total",null,"Product 1","Product 2","Product 3","Product 4","Product 5","Product 6","Product 7","Product 8","Product 9","Product 10","Product 11","Product 12","Product 13","Product 14","Product 15","Product 16","Product 17","Product 18"]
[null,null,"A4.1.1",null,null,"CO2e from off-site transportation of product to construction site (excluded from assessment boundary)"]
[null,null,null,{"$f":"C108","v":"A4.1.1"},".1","CO2e calculated using either 1) WRI & WBCSD's protocol OR 2) EPD & EMSD's carbon audit tool)",null,null,null,"[t CO2e/reporting period]",null,null,"Please enter the GHG emission from stage A4 (from off-site transportation of product to construction site) for each of the product. \n\nGHG emission can be calculated by required information such as mode of transport, travelled distance, fuel used with following tool:\n1) WRI & WBCSD's protocol, namely “GHG Emissions from Transport or Mobile Sources” which can be accessible at: https://ghgprotocol.org/calculation-tools-and-guidance, or\n2) EPD & EMSD carbon audit tool, which can be accessible at: https://cnsd.gov.hk/en/green-business-and-industry/carbon-audit/\n\nIf the travelled distance needs to be entered into a separate tool, please use the actual travelled distance rather than the straight-line distance. Additionally, kindly provide supporting documentation, such as a map indicating the distance, for verification purposes."]
[null,null,"A4.1.2",null,null,null,null,null,"Total CO2e in Stage A4","[t CO2e/reporting period]",null,null,{"$f":"IFERROR(IF(M109=\"\",\"\",M109),\"\")","v":"Please enter the GHG emission from stage A4 (from off-site transportation of product to construction site) for each of the product. \n\nGHG emission can be calculated by required information such as mode of transport, travelled distance, fuel used with following tool:\n1) WRI & WBCSD's protocol, namely “GHG Emissions from Transport or Mobile Sources” which can be accessible at: https://ghgprotocol.org/calculation-tools-and-guidance, or\n2) EPD & EMSD carbon audit tool, which can be accessible at: https://cnsd.gov.hk/en/green-business-and-industry/carbon-audit/\n\nIf the travelled distance needs to be entered into a separate tool, please use the actual travelled distance rather than the straight-line distance. Additionally, kindly provide supporting documentation, such as a map indicating the distance, for verification purposes."},"","","","","","","","","","","","","","","","",""]
[]
[null,"P ","PERFORMANCE INDICATORS",null,null,null,null,null,null,"unit","Total"]
[null,"P",{"$f":"LEFT($B$112,2)","v":"P "},1,null,"Gross CO2e (A1-A3)",null,null,null,"[t CO2e/reporting period]",{"$f":"IF(AND(M113:AB113=\"\"),\"\",SUM(M113:AB113))","v":""}]
[null,null,"P ",{"$f":"D113","v":1},".1","A1 Raw material extraction and upstream production",null,null,null,"[t CO2e/reporting period]",{"$f":"IF(AND(M114:AD114=\"\"),\"\",SUM(M114:AD114))","v":""}]
[null,null,"P ",{"$f":"D114","v":1},".2","A2 Off-site transportation of raw materials to manufacturing plant",null,null,null,"[t CO2e/reporting period]"]
[null,null,"P ",{"$f":"D115","v":1},".3","A3 Product manufacturing and fabrication (without wastage)",null,null,null,"[t CO2e/reporting period]"]
[null,null,"P ",{"$f":"D116","v":1},".4","A4 Off-site transportation of product to construction site (for reference only, excluded from assessment boundary)",null,null,null,"[t CO2e/reporting period]"]
[null,null,"P ",2,null,"Specific gross CO2e per m3 of concrete produced (A1-A3)",null,null,null,"[kg CO2e/m3 con prod]"]
[null,null,"P ",{"$f":"D118","v":2},".1","A1 Raw material extraction and upstream production",null,null,null,"[kg CO2e/m3 con prod]"]
[null,null,"P ",{"$f":"D119","v":2},".2","A2 Off-site transportation of raw materials to manufacturing plant",null,null,null,"[kg CO2e/m3 con prod]"]
[null,null,"P ",{"$f":"D119","v":2},".3","A3 Product manufacturing and fabrication (without wastage)",null,null,null,"[kg CO2e/m3 con prod]"]
[null,null,"P ",{"$f":"D120","v":2},".4","A4 Off-site transportation of product to construction site (for reference only, excluded from assessment boundary)",null,null,null,"[kg CO2e/m3 con prod]"]

{"sheet":"CFP Quantification","index":2,"n_rows":122,"n_cols":30,"rows_kept":122,"cut":false,"hidden":false,"merged":[[14,10,14,20],[15,10,15,20],[16,10,16,20],[17,10,17,20],[18,10,18,20],[19,10,19,20],[20,10,20,20],[21,10,21,20],[22,10,22,20],[98,5,98,8],[80,5,80,6],[37,1,39,1],[66,2,66,8],[10,10,10,20],[12,10,12,20],[23,10,23,20],[24,10,24,20],[29,1,36,1],[32,10,32,20],[33,8,33,9],[33,10,33,20],[34,8,34,9],[34,10,34,20],[35,8,35,9],[28,10,28,20],[29,2,29,20],[30,8,30,9],[30,10,30,20],[31,8,31,9],[31,10,31,20],[32,8,32,9],[11,6,11,9],[13,10,13,20],[98,10,98,11],[97,10,97,11],[40,1,59,1],[40,2,40,8],[37,10,37,11],[38,10,38,11],[39,10,39,11],[41,10,41,11],[42,10,42,11],[43,10,43,11],[92,1,104,1],[50,5,50,6],[51,5,51,6],[52,5,52,6],[78,7,78,8],[79,7,79,8],[92,2,92,29],[83,7,83,8],[93,2,93,8],[91,5,91,7],[75,7,75,8],[74,5,74,6],[75,5,75,6],[98,2,98,3],[0,0,0,19],[2,8,2,9],[3,8,3,9],[5,1,6,1],[7,1,28,1],[7,10,7,20],[8,10,8,20],[9,10,9,20],[26,10,26,20],[27,10,27,20],[5,2,6,29],[7,2,7,9],[8,5,8,9],[9,5,9,9],[10,5,10,9],[19,6,19,9],[23,6,23,9],[24,6,24,9],[25,6,25,9],[26,6,26,9],[27,6,27,9],[28,6,28,9],[25,10,25,20],[11,10,11,20],[12,6,12,9],[13,6,13,9],[14,6,14,9],[15,6,15,9],[16,6,16,9],[17,6,17,9],[18,6,18,9],[112,1,121,1],[94,5,94,8],[111,2,111,8],[96,7,96,8],[105,2,105,29],[106,2,106,8],[103,10,103,11],[102,10,102,11],[101,10,101,11],[68,2,68,3],[68,7,68,8],[77,5,77,6],[68,5,68,6],[72,7,72,8],[78,10,78,11],[72,10,72,11],[60,10,60,11],[88,2,88,8],[80,7,80,8],[96,10,96,11],[107,10,107,29],[106,10,106,11],[109,2,109,3],[109,5,109,7],[104,5,104,7],[90,10,90,11],[108,10,108,11],[84,10,84,11],[82,10,82,11],[80,10,80,11],[94,10,94,11],[91,10,91,11],[87,2,87,29],[88,10,88,11],[89,5,89,8],[102,5,102,8],[91,2,91,3],[89,2,89,3],[86,2,86,3],[85,5,85,6],[100,10,100,11],[120,10,120,11],[107,2,107,3],[100,7,100,8],[116,5,116,8],[121,5,121,8],[120,5,120,8],[119,5,119,8],[118,5,118,8],[114,5,114,8],[115,5,115,8],[121,10,121,11],[104,10,104,11],[108,5,108,8],[119,10,119,11],[118,10,118,11],[117,10,117,11],[116,10,116,11],[115,10,115,11],[114,10,114,11],[113,10,113,11],[113,5,113,8],[112,10,112,11],[111,10,111,11],[109,10,109,11],[62,12,62,29],[63,1,63,29],[65,2,65,29],[60,1,62,1],[86,5,86,7],[95,7,95,8],[105,1,109,1],[71,5,71,6],[83,2,83,3],[87,1,91,1],[90,5,90,8],[84,5,84,6],[93,10,93,11],[104,2,104,3],[76,5,76,6],[107,5,107,8],[103,5,103,8],[101,7,101,8],[97,7,97,8],[94,2,94,3],[103,2,103,3],[83,5,83,6],[99,7,99,8],[102,2,102,3],[61,10,61,11],[62,10,62,11],[66,10,66,11],[70,10,70,11],[69,10,69,11],[67,10,67,11],[82,2,82,3],[82,5,82,8],[76,7,76,8],[79,5,79,6],[77,7,77,8],[73,5,73,6],[78,5,78,6],[81,5,81,6],[81,7,81,8],[81,10,81,11],[76,10,76,11],[20,6,20,9],[21,6,21,9],[22,6,22,9],[65,1,86,1],[60,2,60,8],[64,2,64,29],[75,10,75,11],[74,10,74,11],[73,10,73,11],[79,10,79,11],[77,10,77,11],[72,5,72,6],[69,5,69,6],[70,5,70,6],[71,10,71,11],[69,7,69,8],[70,7,70,8],[71,7,71,8],[67,2,67,3],[67,5,67,8],[86,10,86,11],[85,10,85,11],[73,7,73,8],[74,7,74,8],[53,10,53,11],[35,10,35,20],[35,5,35,7],[46,5,46,6],[47,5,47,6],[48,5,48,6],[49,5,49,6],[50,10,50,11],[51,10,51,11],[52,10,52,11],[40,10,40,11],[44,10,44,11],[45,10,45,11],[46,10,46,11],[47,10,47,11],[48,10,48,11],[49,10,49,11],[36,8,36,9],[36,10,36,20],[37,2,37,8]]}
["CFP Quantification - Ready-mixed Concrete"]
["Category 1: C20 (20 MPa ≤ ƒcu < 30 MPa)"]
["Category 2: C30 (30 MPa ≤ ƒcu < 35 MPa)","Date of latest update",null,null,null,null,null,null,"2025-03-24"]
["Category 3: C35 (35 MPa ≤ ƒcu < 40 MPa)","Reporting period"]
["Category 4: C40 (40 MPa ≤ ƒcu < 45 MPa)"]
["Category 5: C45 (45 MPa ≤ ƒcu < 50 MPa)","G","GENERAL INFORMATION"]
["Category 6: C50 (50 MPa ≤ ƒcu < 60 MPa)"]
["Category 7: C60 (60 MPa ≤ ƒcu < 70 MPa)","G1","G1 General Plant Information",null,null,null,null,null,null,null,"Description"]
["Category 8: C70 (70 MPa ≤ ƒcu < 80 MPa)",null,{"$f":"LEFT($C$8,2)&\".\"","v":"G1."},1,null,"Plant"]
["Category 9: C80 (80 MPa ≤ ƒcu < 90 MPa)",null,"G1.",2,null,"Company"]
[null,null,"G1.",3,null,"Country / Region"]
[null,null,"G1.",4,null,"Product 1"]
[null,null,"G1.",5,null,"Product 2"]
[null,null,"G1.",6,null,"Product 3"]
[null,null,"G1.",7,null,"Product 4"]
[null,null,"G1.",8,null,"Product 5"]
[null,null,"G1.",9,null,"Product 6"]
[null,null,"G1.",10,null,"Product 7"]
[null,null,"G1.",11,null,"Product 8"]
[null,null,"G1.",12,null,"Product 9"]
[null,null,"G1.",13,null,"Product 10"]
[null,null,"G1.",14,null,"Product 11"]
[null,null,"G1.",15,null,"Product 12"]
[null,null,"G1.",16,null,"Product 13"]
[null,null,"G1.",17,null,"Product 14"]
[null,null,"G1.",18,null,"Product 15"]
[null,null,"G1.",19,null,"Product 16"]
[null,null,"G1.",20,null,"Product 17"]
[null,null,"G1.",21,null,"Product 18"]
[null,"G2","G2 System Boundary"]
[null,null,{"$f":"LEFT($C$30,2)&\".\"","v":"G2."},1,null,"Raw Material extraction and upstream production",null,null,"[yes, no or n.a.]"]
[null,null,"G2.",2,null,"Off-site transportation of raw materials to manufacturing plant",null,null,"[yes, no or n.a.]"]
[null,null,"G2.",3,null,"Product manufacturing - stationary combustion",null,null,"[yes, no or n.a.]"]
[null,null,"G2.",4,null,"Product manufacturing - mobile combustion ",null,null,"[yes, no or n.a.]"]
[null,null,"G2.",5,null,"Indirect emission from purchased energy ",null,null,"[yes, no or n.a.]"]
[null,null,"G2.",6,null,"Off-site transportation of  product to construction site [for reference only, excluded from assessment boundary]",null,null,"[yes, no or n.a.]"]
[null,null,"G2.",7,null,"(add other processes as appropriate)",null,null,"[yes, no or n.a.]"]
[null,"G3","G3 Concrete Production",null,null,null,null,null,null,"unit","Total",null,"Product 1","Product 2","Product 3","Product 4","Product 5","Product 6","Product 7","Product 8","Product 9","Product 10","Product 11","Product 12","Product 13","Product 14","Product 15","Product 16","Product 17","Product 18"]
[null,null,{"$f":"LEFT($C$38,2)&\".\"","v":"G3."},1,null,"Concrete production in volume",null,null,null,"[m3/reporting period]",{"$f":"IF(SUM(M39:AD39)=0,\"\",SUM(M39:AD39))","v":""}]
[null,null,{"$f":"LEFT($C$38,2)&\".\"","v":"G3."},2,null,"Proportion",null,null,null,"%",{"$f":"IF(SUM(M40:AD40)=0,\"\",SUM(M40:AD40))","v":""},null,{"$f":"IF(M39=\"\",\"\",M39/$K$39)","v":""},{"$f":"IF(N39=\"\",\"\",N39/$K$39)","v":""},{"$f":"IF(O39=\"\",\"\",O39/$K$39)","v":""},"","","","","","","","","","","","","","",""]
[null,"G4","G4 Raw Materials and Energy Used to Produce Concrete Products",null,null,null,null,null,null,"unit","Total",null,"Product 1","Product 2","Product 3","Product 4","Product 5","Product 6","Product 7","Product 8","Product 9","Product 10","Product 11","Product 12","Product 13","Product 14","Product 15","Product 16","Product 17","Product 18"]
[null,null,{"$f":"LEFT($C$41,2)&\".\"","v":"G4."},1,null,"Ordinary Portland cement, i.e. CEM I",null,null,null,"[t/reporting period, dry weight]",{"$f":"IF(SUM(M42:AD42)=0,\"\",SUM(M42:AD42))","v":""}]
[null,null,"G4.",2,null,"Aggregates and sand, from virgin land won resources, bulk, loose",null,null,null,"[t/reporting period, dry weight]",{"$f":"IF(SUM(M43:AD43)=0,\"\",SUM(M43:AD43))","v":""}]
[null,null,"G4.",3,null,"Aggregates and sand, from virgin marine resources, bulk, loose",null,null,null,"[t/reporting period, dry weight]",{"$f":"IF(SUM(M44:AD44)=0,\"\",SUM(M44:AD44))","v":""}]
[null,null,"G4.",4,null,"Aggregates and sand, from recycled resources, no heat treatment, bulk, loose",null,null,null,"[t/reporting period, dry weight]",""]
[null,null,"G4.",5,null,"Aggregates and sand, from recycled resources, with heat treatment, bulk, loose",null,null,null,"[t/reporting period, dry weight]",""]
[null,null,"G4.",6,null,"Water / Ice",null,null,null,"[t/reporting period]",{"$f":"IF(SUM(M47:AD47)=0,\"\",SUM(M47:AD47))","v":""}]
[null,null,"G4.",7,null,"Fly ash (FA)",null,null,null,"[t/reporting period, dry weight]",""]
[null,null,"G4.",8,null,"Ground granulated blast-furnace slag (GGBS)",null,null,null,"[t/reporting period, dry weight]",""]
[null,null,"G4.",9,null,"Silica fume (SF)",null,null,null,"[t/reporting period, dry weight]",""]
[null,null,"G4.",10,null,"Superplasticizer",null,null,null,"[t/reporting period]",{"$f":"IF(SUM(M51:AD51)=0,\"\",SUM(M51:AD51))","v":""}]
[null,null,"G4.",11,null,"Plasticizer",null,null,null,"[t/reporting period]",""]
[null,null,"G4.",12,null,"Setting accelerator",null,null,null,"[t/reporting period]",""]
[null,null,"G4.",13,null,null,"Others, if applicable",null,null,"[t/reporting period]",{"$f":"IF(SUM(M54:AD54)=0,\"\",SUM(M54:AD54))","v":""}]
[null,null,"G4.",14,null,"Product manufacturing ",null,"Energy Commodity usage type : "]
[null,null,"G4.",{"$f":"D55","v":14},".1","Stationary combustion ",null,"Energy commodity :",null,"[t/reporting period]",null,{"$f":"IF($I$55=\"user input\",SUM(M56:AD56),\"\")","v":""}]
[null,null,"G4.",{"$f":"D56","v":14},".2","Stationary combustion ",null,"Energy commodity :",null,"[t/reporting period]",null,{"$f":"IF($I$55=\"user input\",SUM(M57:AD57),\"\")","v":""}]
[null,null,"G4.",15,null,"On-site transportation",null,"Energy Commodity usage type : "]
[null,null,"G4.",{"$f":"D58","v":15},".1","Mobile combustion ",null,"Energy commodity :",null,"[t/reporting period]",null,{"$f":"IF($I$58=\"user input\",SUM(M59:AD59),\"\")","v":""}]
[null,null,"G4.",{"$f":"D59","v":15},".2","Mobile combustion ",null,"Energy commodity :",null,"[t/reporting period]",null,{"$f":"IF($I$58=\"user input\",SUM(M60:AD60),\"\")","v":""}]
[null,"G5","G5. Power Consumption of Purchased Energy",null,null,null,null,null,null,"unit","Total",null,"Product 1","Product 2","Product 3","Product 4","Product 5","Product 6","Product 7","Product 8","Product 9","Product 10","Product 11","Product 12","Product 13","Product 14","Product 15","Product 16","Product 17","Product 18"]
[null,null,{"$f":"LEFT($C$61,2)&\".\"","v":"G5."},1,null,"Consumption of electricity produced externally",null,null,null,"[MWh/reporting period]",null,null,{"$f":"IFERROR(IF($K62=\"\",\"\",$K62*M40),\"\")","v":""},{"$f":"IFERROR(IF($K62=\"\",\"\",$K62*N40),\"\")","v":""},{"$f":"IFERROR(IF($K62=\"\",\"\",$K62*O40),\"\")","v":""},{"$f":"IFERROR(IF($K62=\"\",\"\",$K62*P40),\"\")","v":""},"","","","","","","","","","","","","",""]
[null,null,{"$f":"LEFT($C$61,2)&\".\"","v":"G5."},2,null,"CO2e per unit of electricity produced externally",null,null,null,"[kg CO2e/MWh]"]
[]
[null,"A","ASSESSMENT"]
[null,"A1","PROJECT LIFE CYCLE STAGE : A1 RAW MATERIAL EXTRACTION AND UPSTREAM PRODUCTION"]
[null,null,"A1.1 CO2e EMISSIONS ",null,null,null,null,null,null,"unit","Total",null,"Product 1","Product 2","Product 3","Product 4","Product 5","Product 6","Product 7","Product 8","Product 9","Product 10","Product 11","Product 12","Product 13","Product 14","Product 15","Product 16","Product 17","Product 18"]
[null,null,"A1.1.1",null,null,"CO2e from bought raw materials",null,null,null,"[t CO2e/reporting period]",{"$f":"SUM(M68:AD68)","v":0},null,{"$f":"SUMIF($D:$D,$C68,M:M)","v":0},{"$f":"SUMIF($D:$D,$C68,N:N)","v":0},0,0,0,0,0,0,0,0,0,0,0,0,0,0,0,0]
[null,null,null,null,null,"Adopting CO2e Factors "]
[null,null,null,{"$f":"C68","v":"A1.1.1"},".1",null,null,{"$f":"F42","v":"Ordinary Portland cement, i.e. CEM I"},null,"[t CO2e/reporting period]",{"$f":"IF(SUM(M70:AD70)=0,\"\",SUM(M70:AD70))","v":""},null,{"$f":"IFERROR(IF(OR($H70='Customized Embodied EF'!$B:$B),SUMIFS(M:M,$F:$F,$H70,$C:$C,\"G4.\")*IF($F70=\"Customized\",IF(_xlfn.XLOOKUP($H70,'Customized Embodied EF'!$B:$B,'Customized Embodied EF'!F:F,\"error\",0)=\"\",\"Factor error\",(_xlfn.XLOOKUP($H70,'Customized Embodied EF'!$B:$B,'Customized Embodied EF'!F:F,\"error\",0))),_xlfn.XLOOKUP($H70,'Customized Embodied EF'!$B:$B,'Customized Embodied EF'!$E:$E,\"error\",0)),\"Factor error\"),\"Factor error\")","v":0},{"$f":"IFERROR(IF(OR($H70='Customized Embodied EF'!$B:$B),SUMIFS(N:N,$F:$F,$H70,$C:$C,\"G4.\")*IF($F70=\"Customized\",IF(_xlfn.XLOOKUP($H70,'Customized Embodied EF'!$B:$B,'Customized Embodied EF'!G:G,\"error\",0)=\"\",\"Factor error\",(_xlfn.XLOOKUP($H70,'Customized Embodied EF'!$B:$B,'Customized Embodied EF'!G:G,\"error\",0))),_xlfn.XLOOKUP($H70,'Customized Embodied EF'!$B:$B,'Customized Embodied EF'!$E:$E,\"error\",0)),\"Factor error\"),\"Factor error\")","v":0},{"$f":"IFERROR(IF(OR($H70='Customized Embodied EF'!$B:$B),SUMIFS(O:O,$F:$F,$H70,$C:$C,\"G4.\")*IF($F70=\"Customized\",IF(_xlfn.XLOOKUP($H70,'Customized Embodied EF'!$B:$B,'Customized Embodied EF'!H:H,\"error\",0)=\"\",\"Factor error\",(_xlfn.XLOOKUP($H70,'Customized Embodied EF'!$B:$B,'Customized Embodied EF'!H:H,\"error\",0))),_xlfn.XLOOKUP($H70,'Customized Embodied EF'!$B:$B,'Customized Embodied EF'!$E:$E,\"error\",0)),\"Factor error\"),\"Factor error\")","v":0},{"$f":"IFERROR(IF(OR($H70='Customized Embodied EF'!$B:$B),SUMIFS(P:P,$F:$F,$H70,$C:$C,\"G4.\")*IF($F70=\"Customized\",IF(_xlfn.XLOOKUP($H70,'Customized Embodied EF'!$B:$B,'Customized Embodied EF'!I:I,\"error\",0)=\"\",\"Factor error\",(_xlfn.XLOOKUP($H70,'Customized Embodied EF'!$B:$B,'Customized Embodied EF'!I:I,\"error\",0))),_xlfn.XLOOKUP($H70,'Customized Embodied EF'!$B:$B,'Customized Embodied EF'!$E:$E,\"error\",0)),\"Factor error\"),\"Factor error\")","v":0},{"$f":"IFERROR(IF(OR($H70='Customized Embodied EF'!$B:$B),SUMIFS(Q:Q,$F:$F,$H70,$C:$C,\"G4.\")*IF($F70=\"Customized\",IF(_xlfn.XLOOKUP($H70,'Customized Embodied EF'!$B:$B,'Customized Embodied EF'!J:J,\"error\",0)=\"\",\"Factor error\",(_xlfn.XLOOKUP($H70,'Customized Embodied EF'!$B:$B,'Customized Embodied EF'!J:J,\"error\",0))),_xlfn.XLOOKUP($H70,'Customized Embodied EF'!$B:$B,'Customized Embodied EF'!$E:$E,\"error\",0)),\"Factor error\"),\"Factor error\")","v":0},{"$f":"IFERROR(IF(OR($H70='Customized Embodied EF'!$B:$B),SUMIFS(R:R,$F:$F,$H70,$C:$C,\"G4.\")*IF($F70=\"Customized\",IF(_xlfn.XLOOKUP($H70,'Customized Embodied EF'!$B:$B,'Customized Embodied EF'!K:K,\"error\",0)=\"\",\"Factor error\",(_xlfn.XLOOKUP($H70,'Customized Embodied EF'!$B:$B,'Customized Embodied EF'!K:K,\"error\",0))),_xlfn.XLOOKUP($H70,'Customized Embodied EF'!$B:$B,'Customized Embodied EF'!$E:$E,\"error\",0)),\"Factor error\"),\"Factor error\")","v":0},{"$f":"IFERROR(IF(OR($H70='Customized Embodied EF'!$B:$B),SUMIFS(S:S,$F:$F,$H70,$C:$C,\"G4.\")*IF($F70=\"Customized\",IF(_xlfn.XLOOKUP($H70,'Customized Embodied EF'!$B:$B,'Customized Embodied EF'!L:L,\"error\",0)=\"\",\"Factor error\",(_xlfn.XLOOKUP($H70,'Customized Embodied EF'!$B:$B,'Customized Embodied EF'!L:L,\"error\",0))),_xlfn.XLOOKUP($H70,'Customized Embodied EF'!$B:$B,'Customized Embodied EF'!$E:$E,\"error\",0)),\"Factor error\"),\"Factor error\")","v":0},{"$f":"IFERROR(IF(OR($H70='Customized Embodied EF'!$B:$B),SUMIFS(T:T,$F:$F,$H70,$C:$C,\"G4.\")*IF($F70=\"Customized\",IF(_xlfn.XLOOKUP($H70,'Customized Embodied EF'!$B:$B,'Customized Embodied EF'!M:M,\"error\",0)=\"\",\"Factor error\",(_xlfn.XLOOKUP($H70,'Customized Embodied EF'!$B:$B,'Customized Embodied EF'!M:M,\"error\",0))),_xlfn.XLOOKUP($H70,'Customized Embodied EF'!$B:$B,'Customized Embodied EF'!$E:$E,\"error\",0)),\"Factor error\"),\"Factor error\")","v":0},{"$f":"IFERROR(IF(OR($H70='Customized Embodied EF'!$B:$B),SUMIFS(U:U,$F:$F,$H70,$C:$C,\"G4.\")*IF($F70=\"Customized\",IF(_xlfn.XLOOKUP($H70,'Customized Embodied EF'!$B:$B,'Customized Embodied EF'!N:N,\"error\",0)=\"\",\"Factor error\",(_xlfn.XLOOKUP($H70,'Customized Embodied EF'!$B:$B,'Customized Embodied EF'!N:N,\"error\",0))),_xlfn.XLOOKUP($H70,'Customized Embodied EF'!$B:$B,'Customized Embodied EF'!$E:$E,\"error\",0)),\"Factor error\"),\"Factor error\")","v":0},{"$f":"IFERROR(IF(OR($H70='Customized Embodied EF'!$B:$B),SUMIFS(V:V,$F:$F,$H70,$C:$C,\"G4.\")*IF($F70=\"Customized\",IF(_xlfn.XLOOKUP($H70,'Customized Embodied EF'!$B:$B,'Customized Embodied EF'!O:O,\"error\",0)=\"\",\"Factor error\",(_xlfn.XLOOKUP($H70,'Customized Embodied EF'!$B:$B,'Customized Embodied EF'!O:O,\"error\",0))),_xlfn.XLOOKUP($H70,'Customized Embodied EF'!$B:$B,'Customized Embodied EF'!$E:$E,\"error\",0)),\"Factor error\"),\"Factor error\")","v":0},{"$f":"IFERROR(IF(OR($H70='Customized Embodied EF'!$B:$B),SUMIFS(W:W,$F:$F,$H70,$C:$C,\"G4.\")*IF($F70=\"Customized\",IF(_xlfn.XLOOKUP($H70,'Customized Embodied EF'!$B:$B,'Customized Embodied EF'!P:P,\"error\",0)=\"\",\"Factor error\",(_xlfn.XLOOKUP($H70,'Customized Embodied EF'!$B:$B,'Customized Embodied EF'!P:P,\"error\",0))),_xlfn.XLOOKUP($H70,'Customized Embodied EF'!$B:$B,'Customized Embodied EF'!$E:$E,\"error\",0)),\"Factor error\"),\"Factor error\")","v":0},{"$f":"IFERROR(IF(OR($H70='Customized Embodied EF'!$B:$B),SUMIFS(X:X,$F:$F,$H70,$C:$C,\"G4.\")*IF($F70=\"Customized\",IF(_xlfn.XLOOKUP($H70,'Customized Embodied EF'!$B:$B,'Customized Embodied EF'!Q:Q,\"error\",0)=\"\",\"Factor error\",(_xlfn.XLOOKUP($H70,'Customized Embodied EF'!$B:$B,'Customized Embodied EF'!Q:Q,\"error\",0))),_xlfn.XLOOKUP($H70,'Customized Embodied EF'!$B:$B,'Customized Embodied EF'!$E:$E,\"error\",0)),\"Factor error\"),\"Factor error\")","v":0},{"$f":"IFERROR(IF(OR($H70='Customized Embodied EF'!$B:$B),SUMIFS(Y:Y,$F:$F,$H70,$C:$C,\"G4.\")*IF($F70=\"Customized\",IF(_xlfn.XLOOKUP($H70,'Customized Embodied EF'!$B:$B,'Customized Embodied EF'!R:R,\"error\",0)=\"\",\"Factor error\",(_xlfn.XLOOKUP($H70,'Customized Embodied EF'!$B:$B,'Customized Embodied EF'!R:R,\"error\",0))),_xlfn.XLOOKUP($H70,'Customized Embodied EF'!$B:$B,'Customized Embodied EF'!$E:$E,\"error\",0)),\"Factor error\"),\"Factor error\")","v":0},{"$f":"IFERROR(IF(OR($H70='Customized Embodied EF'!$B:$B),SUMIFS(Z:Z,$F:$F,$H70,$C:$C,\"G4.\")*IF($F70=\"Customized\",IF(_xlfn.XLOOKUP($H70,'Customized Embodied EF'!$B:$B,'Customized Embodied EF'!S:S,\"error\",0)=\"\",\"Factor error\",(_xlfn.XLOOKUP($H70,'Customized Embodied EF'!$B:$B,'Customized Embodied EF'!S:S,\"error\",0))),_xlfn.XLOOKUP($H70,'Customized Embodied EF'!$B:$B,'Customized Embodied EF'!$E:$E,\"error\",0)),\"Factor error\"),\"Factor error\")","v":0},{"$f":"IFERROR(IF(OR($H70='Customized Embodied EF'!$B:$B),SUMIFS(AA:AA,$F:$F,$H70,$C:$C,\"G4.\")*IF($F70=\"Customized\",IF(_xlfn.XLOOKUP($H70,'Customized Embodied EF'!$B:$B,'Customized Embodied EF'!T:T,\"error\",0)=\"\",\"Factor error\",(_xlfn.XLOOKUP($H70,'Customized Embodied EF'!$B:$B,'Customized Embodied EF'!T:T,\"error\",0))),_xlfn.XLOOKUP($H70,'Customized Embodied EF'!$B:$B,'Customized Embodied EF'!$E:$E,\"error\",0)),\"Factor error\"),\"Factor error\")","v":0},{"$f":"IFERROR(IF(OR($H70='Customized Embodied EF'!$B:$B),SUMIFS(AB:AB,$F:$F,$H70,$C:$C,\"G4.\")*IF($F70=\"Customized\",IF(_xlfn.XLOOKUP($H70,'Customized Embodied EF'!$B:$B,'Customized Embodied EF'!U:U,\"error\",0)=\"\",\"Factor error\",(_xlfn.XLOOKUP($H70,'Customized Embodied EF'!$B:$B,'Customized Embodied EF'!U:U,\"error\",0))),_xlfn.XLOOKUP($H70,'Customized Embodied EF'!$B:$B,'Customized Embodied EF'!$E:$E,\"error\",0)),\"Factor error\"),\"Factor error\")","v":0},{"$f":"IFERROR(IF(OR($H70='Customized Embodied EF'!$B:$B),SUMIFS(AC:AC,$F:$F,$H70,$C:$C,\"G4.\")*IF($F70=\"Customized\",IF(_xlfn.XLOOKUP($H70,'Customized Embodied EF'!$B:$B,'Customized Embodied EF'!V:V,\"error\",0)=\"\",\"Factor error\",(_xlfn.XLOOKUP($H70,'Customized Embodied EF'!$B:$B,'Customized Embodied EF'!V:V,\"error\",0))),_xlfn.XLOOKUP($H70,'Customized Embodied EF'!$B:$B,'Customized Embodied EF'!$E:$E,\"error\",0)),\"Factor error\"),\"Factor error\")","v":0},{"$f":"IFERROR(IF(OR($H70='Customized Embodied EF'!$B:$B),SUMIFS(AD:AD,$F:$F,$H70,$C:$C,\"G4.\")*IF($F70=\"Customized\",IF(_xlfn.XLOOKUP($H70,'Customized Embodied EF'!$B:$B,'Customized Embodied EF'!W:W,\"error\",0)=\"\",\"Factor error\",(_xlfn.XLOOKUP($H70,'Customized Embodied EF'!$B:$B,'Customized Embodied EF'!W:W,\"error\",0))),_xlfn.XLOOKUP($H70,'Customized Embodied EF'!$B:$B,'Customized Embodied EF'!$E:$E,\"error\",0)),\"Factor error\"),\"Factor error\")","v":0}]
[null,null,null,{"$f":"C68","v":"A1.1.1"},".2",null,null,{"$f":"F43","v":"Aggregates and sand, from virgin land won resources, bulk, loose"},null,"[t CO2e/reporting period]",{"$f":"IF(SUM(M71:AD71)=0,\"\",SUM(M71:AD71))","v":""},null,{"$f":"IFERROR(IF(OR($H71='Customized Embodied EF'!$B:$B),SUMIFS(M:M,$F:$F,$H71,$C:$C,\"G4.\")*IF($F71=\"Customized\",IF(_xlfn.XLOOKUP($H71,'Customized Embodied EF'!$B:$B,'Customized Embodied EF'!F:F,\"error\",0)=\"\",\"Factor error\",(_xlfn.XLOOKUP($H71,'Customized Embodied EF'!$B:$B,'Customized Embodied EF'!F:F,\"error\",0))),_xlfn.XLOOKUP($H71,'Customized Embodied EF'!$B:$B,'Customized Embodied EF'!$E:$E,\"error\",0)),\"Factor error\"),\"Factor error\")","v":0},{"$f":"IFERROR(IF(OR($H71='Customized Embodied EF'!$B:$B),SUMIFS(N:N,$F:$F,$H71,$C:$C,\"G4.\")*IF($F71=\"Customized\",IF(_xlfn.XLOOKUP($H71,'Customized Embodied EF'!$B:$B,'Customized Embodied EF'!G:G,\"error\",0)=\"\",\"Factor error\",(_xlfn.XLOOKUP($H71,'Customized Embodied EF'!$B:$B,'Customized Embodied EF'!G:G,\"error\",0))),_xlfn.XLOOKUP($H71,'Customized Embodied EF'!$B:$B,'Customized Embodied EF'!$E:$E,\"error\",0)),\"Factor error\"),\"Factor error\")","v":0},{"$f":"IFERROR(IF(OR($H71='Customized Embodied EF'!$B:$B),SUMIFS(O:O,$F:$F,$H71,$C:$C,\"G4.\")*IF($F71=\"Customized\",IF(_xlfn.XLOOKUP($H71,'Customized Embodied EF'!$B:$B,'Customized Embodied EF'!H:H,\"error\",0)=\"\",\"Factor error\",(_xlfn.XLOOKUP($H71,'Customized Embodied EF'!$B:$B,'Customized Embodied EF'!H:H,\"error\",0))),_xlfn.XLOOKUP($H71,'Customized Embodied EF'!$B:$B,'Customized Embodied EF'!$E:$E,\"error\",0)),\"Factor error\"),\"Factor error\")","v":0},{"$f":"IFERROR(IF(OR($H71='Customized Embodied EF'!$B:$B),SUMIFS(P:P,$F:$F,$H71,$C:$C,\"G4.\")*IF($F71=\"Customized\",IF(_xlfn.XLOOKUP($H71,'Customized Embodied EF'!$B:$B,'Customized Embodied EF'!I:I,\"error\",0)=\"\",\"Factor error\",(_xlfn.XLOOKUP($H71,'Customized Embodied EF'!$B:$B,'Customized Embodied EF'!I:I,\"error\",0))),_xlfn.XLOOKUP($H71,'Customized Embodied EF'!$B:$B,'Customized Embodied EF'!$E:$E,\"error\",0)),\"Factor error\"),\"Factor error\")","v":0},{"$f":"IFERROR(IF(OR($H71='Customized Embodied EF'!$B:$B),SUMIFS(Q:Q,$F:$F,$H71,$C:$C,\"G4.\")*IF($F71=\"Customized\",IF(_xlfn.XLOOKUP($H71,'Customized Embodied EF'!$B:$B,'Customized Embodied EF'!J:J,\"error\",0)=\"\",\"Factor error\",(_xlfn.XLOOKUP($H71,'Customized Embodied EF'!$B:$B,'Customized Embodied EF'!J:J,\"error\",0))),_xlfn.XLOOKUP($H71,'Customized Embodied EF'!$B:$B,'Customized Embodied EF'!$E:$E,\"error\",0)),\"Factor error\"),\"Factor error\")","v":0},{"$f":"IFERROR(IF(OR($H71='Customized Embodied EF'!$B:$B),SUMIFS(R:R,$F:$F,$H71,$C:$C,\"G4.\")*IF($F71=\"Customized\",IF(_xlfn.XLOOKUP($H71,'Customized Embodied EF'!$B:$B,'Customized Embodied EF'!K:K,\"error\",0)=\"\",\"Factor error\",(_xlfn.XLOOKUP($H71,'Customized Embodied EF'!$B:$B,'Customized Embodied EF'!K:K,\"error\",0))),_xlfn.XLOOKUP($H71,'Customized Embodied EF'!$B:$B,'Customized Embodied EF'!$E:$E,\"error\",0)),\"Factor error\"),\"Factor error\")","v":0},{"$f":"IFERROR(IF(OR($H71='Customized Embodied EF'!$B:$B),SUMIFS(S:S,$F:$F,$H71,$C:$C,\"G4.\")*IF($F71=\"Customized\",IF(_xlfn.XLOOKUP($H71,'Customized Embodied EF'!$B:$B,'Customized Embodied EF'!L:L,\"error\",0)=\"\",\"Factor error\",(_xlfn.XLOOKUP($H71,'Customized Embodied EF'!$B:$B,'Customized Embodied EF'!L:L,\"error\",0))),_xlfn.XLOOKUP($H71,'Customized Embodied EF'!$B:$B,'Customized Embodied EF'!$E:$E,\"error\",0)),\"Factor error\"),\"Factor error\")","v":0},{"$f":"IFERROR(IF(OR($H71='Customized Embodied EF'!$B:$B),SUMIFS(T:T,$F:$F,$H71,$C:$C,\"G4.\")*IF($F71=\"Customized\",IF(_xlfn.XLOOKUP($H71,'Customized Embodied EF'!$B:$B,'Customized Embodied EF'!M:M,\"error\",0)=\"\",\"Factor error\",(_xlfn.XLOOKUP($H71,'Customized Embodied EF'!$B:$B,'Customized Embodied EF'!M:M,\"error\",0))),_xlfn.XLOOKUP($H71,'Customized Embodied EF'!$B:$B,'Customized Embodied EF'!$E:$E,\"error\",0)),\"Factor error\"),\"Factor error\")","v":0},{"$f":"IFERROR(IF(OR($H71='Customized Embodied EF'!$B:$B),SUMIFS(U:U,$F:$F,$H71,$C:$C,\"G4.\")*IF($F71=\"Customized\",IF(_xlfn.XLOOKUP($H71,'Customized Embodied EF'!$B:$B,'Customized Embodied EF'!N:N,\"error\",0)=\"\",\"Factor error\",(_xlfn.XLOOKUP($H71,'Customized Embodied EF'!$B:$B,'Customized Embodied EF'!N:N,\"error\",0))),_xlfn.XLOOKUP($H71,'Customized Embodied EF'!$B:$B,'Customized Embodied EF'!$E:$E,\"error\",0)),\"Factor error\"),\"Factor error\")","v":0},{"$f":"IFERROR(IF(OR($H71='Customized Embodied EF'!$B:$B),SUMIFS(V:V,$F:$F,$H71,$C:$C,\"G4.\")*IF($F71=\"Customized\",IF(_xlfn.XLOOKUP($H71,'Customized Embodied EF'!$B:$B,'Customized Embodied EF'!O:O,\"error\",0)=\"\",\"Factor error\",(_xlfn.XLOOKUP($H71,'Customized Embodied EF'!$B:$B,'Customized Embodied EF'!O:O,\"error\",0))),_xlfn.XLOOKUP($H71,'Customized Embodied EF'!$B:$B,'Customized Embodied EF'!$E:$E,\"error\",0)),\"Factor error\"),\"Factor error\")","v":0},{"$f":"IFERROR(IF(OR($H71='Customized Embodied EF'!$B:$B),SUMIFS(W:W,$F:$F,$H71,$C:$C,\"G4.\")*IF($F71=\"Customized\",IF(_xlfn.XLOOKUP($H71,'Customized Embodied EF'!$B:$B,'Customized Embodied EF'!P:P,\"error\",0)=\"\",\"Factor error\",(_xlfn.XLOOKUP($H71,'Customized Embodied EF'!$B:$B,'Customized Embodied EF'!P:P,\"error\",0))),_xlfn.XLOOKUP($H71,'Customized Embodied EF'!$B:$B,'Customized Embodied EF'!$E:$E,\"error\",0)),\"Factor error\"),\"Factor error\")","v":0},{"$f":"IFERROR(IF(OR($H71='Customized Embodied EF'!$B:$B),SUMIFS(X:X,$F:$F,$H71,$C:$C,\"G4.\")*IF($F71=\"Customized\",IF(_xlfn.XLOOKUP($H71,'Customized Embodied EF'!$B:$B,'Customized Embodied EF'!Q:Q,\"error\",0)=\"\",\"Factor error\",(_xlfn.XLOOKUP($H71,'Customized Embodied EF'!$B:$B,'Customized Embodied EF'!Q:Q,\"error\",0))),_xlfn.XLOOKUP($H71,'Customized Embodied EF'!$B:$B,'Customized Embodied EF'!$E:$E,\"error\",0)),\"Factor error\"),\"Factor error\")","v":0},{"$f":"IFERROR(IF(OR($H71='Customized Embodied EF'!$B:$B),SUMIFS(Y:Y,$F:$F,$H71,$C:$C,\"G4.\")*IF($F71=\"Customized\",IF(_xlfn.XLOOKUP($H71,'Customized Embodied EF'!$B:$B,'Customized Embodied EF'!R:R,\"error\",0)=\"\",\"Factor error\",(_xlfn.XLOOKUP($H71,'Customized Embodied EF'!$B:$B,'Customized Embodied EF'!R:R,\"error\",0))),_xlfn.XLOOKUP($H71,'Customized Embodied EF'!$B:$B,'Customized Embodied EF'!$E:$E,\"error\",0)),\"Factor error\"),\"Factor error\")","v":0},{"$f":"IFERROR(IF(OR($H71='Customized Embodied EF'!$B:$B),SUMIFS(Z:Z,$F:$F,$H71,$C:$C,\"G4.\")*IF($F71=\"Customized\",IF(_xlfn.XLOOKUP($H71,'Customized Embodied EF'!$B:$B,'Customized Embodied EF'!S:S,\"error\",0)=\"\",\"Factor error\",(_xlfn.XLOOKUP($H71,'Customized Embodied EF'!$B:$B,'Customized Embodied EF'!S:S,\"error\",0))),_xlfn.XLOOKUP($H71,'Customized Embodied EF'!$B:$B,'Customized Embodied EF'!$E:$E,\"error\",0)),\"Factor error\"),\"Factor error\")","v":0},{"$f":"IFERROR(IF(OR($H71='Customized Embodied EF'!$B:$B),SUMIFS(AA:AA,$F:$F,$H71,$C:$C,\"G4.\")*IF($F71=\"Customized\",IF(_xlfn.XLOOKUP($H71,'Customized Embodied EF'!$B:$B,'Customized Embodied EF'!T:T,\"error\",0)=\"\",\"Factor error\",(_xlfn.XLOOKUP($H71,'Customized Embodied EF'!$B:$B,'Customized Embodied EF'!T:T,\"error\",0))),_xlfn.XLOOKUP($H71,'Customized Embodied EF'!$B:$B,'Customized Embodied EF'!$E:$E,\"error\",0)),\"Factor error\"),\"Factor error\")","v":0},{"$f":"IFERROR(IF(OR($H71='Customized Embodied EF'!$B:$B),SUMIFS(AB:AB,$F:$F,$H71,$C:$C,\"G4.\")*IF($F71=\"Customized\",IF(_xlfn.XLOOKUP($H71,'Customized Embodied EF'!$B:$B,'Customized Embodied EF'!U:U,\"error\",0)=\"\",\"Factor error\",(_xlfn.XLOOKUP($H71,'Customized Embodied EF'!$B:$B,'Customized Embodied EF'!U:U,\"error\",0))),_xlfn.XLOOKUP($H71,'Customized Embodied EF'!$B:$B,'Customized Embodied EF'!$E:$E,\"error\",0)),\"Factor error\"),\"Factor error\")","v":0},{"$f":"IFERROR(IF(OR($H71='Customized Embodied EF'!$B:$B),SUMIFS(AC:AC,$F:$F,$H71,$C:$C,\"G4.\")*IF($F71=\"Customized\",IF(_xlfn.XLOOKUP($H71,'Customized Embodied EF'!$B:$B,'Customized Embodied EF'!V:V,\"error\",0)=\"\",\"Factor error\",(_xlfn.XLOOKUP($H71,'Customized Embodied EF'!$B:$B,'Customized Embodied EF'!V:V,\"error\",0))),_xlfn.XLOOKUP($H71,'Customized Embodied EF'!$B:$B,'Customized Embodied EF'!$E:$E,\"error\",0)),\"Factor error\"),\"Factor error\")","v":0},{"$f":"IFERROR(IF(OR($H71='Customized Embodied EF'!$B:$B),SUMIFS(AD:AD,$F:$F,$H71,$C:$C,\"G4.\")*IF($F71=\"Customized\",IF(_xlfn.XLOOKUP($H71,'Customized Embodied EF'!$B:$B,'Customized Embodied EF'!W:W,\"error\",0)=\"\",\"Factor error\",(_xlfn.XLOOKUP($H71,'Customized Embodied EF'!$B:$B,'Customized Embodied EF'!W:W,\"error\",0))),_xlfn.XLOOKUP($H71,'Customized Embodied EF'!$B:$B,'Customized Embodied EF'!$E:$E,\"error\",0)),\"Factor error\"),\"Factor error\")","v":0}]
[null,null,null,{"$f":"C68","v":"A1.1.1"},".3",null,null,"Aggregates and sand, from virgin marine resources, bulk, loose",null,"[t CO2e/reporting period]",{"$f":"IF(SUM(M72:AD72)=0,\"\",SUM(M72:AD72))","v":""},null,{"$f":"IFERROR(IF(OR($H72='Customized Embodied EF'!$B:$B),SUMIFS(M:M,$F:$F,$H72,$C:$C,\"G4.\")*IF($F72=\"Customized\",IF(_xlfn.XLOOKUP($H72,'Customized Embodied EF'!$B:$B,'Customized Embodied EF'!F:F,\"error\",0)=\"\",\"Factor error\",(_xlfn.XLOOKUP($H72,'Customized Embodied EF'!$B:$B,'Customized Embodied EF'!F:F,\"error\",0))),_xlfn.XLOOKUP($H72,'Customized Embodied EF'!$B:$B,'Customized Embodied EF'!$E:$E,\"error\",0)),\"Factor error\"),\"Factor error\")","v":0},{"$f":"IFERROR(IF(OR($H72='Customized Embodied EF'!$B:$B),SUMIFS(N:N,$F:$F,$H72,$C:$C,\"G4.\")*IF($F72=\"Customized\",IF(_xlfn.XLOOKUP($H72,'Customized Embodied EF'!$B:$B,'Customized Embodied EF'!G:G,\"error\",0)=\"\",\"Factor error\",(_xlfn.XLOOKUP($H72,'Customized Embodied EF'!$B:$B,'Customized Embodied EF'!G:G,\"error\",0))),_xlfn.XLOOKUP($H72,'Customized Embodied EF'!$B:$B,'Customized Embodied EF'!$E:$E,\"error\",0)),\"Factor error\"),\"Factor error\")","v":0},{"$f":"IFERROR(IF(OR($H72='Customized Embodied EF'!$B:$B),SUMIFS(O:O,$F:$F,$H72,$C:$C,\"G4.\")*IF($F72=\"Customized\",IF(_xlfn.XLOOKUP($H72,'Customized Embodied EF'!$B:$B,'Customized Embodied EF'!H:H,\"error\",0)=\"\",\"Factor error\",(_xlfn.XLOOKUP($H72,'Customized Embodied EF'!$B:$B,'Customized Embodied EF'!H:H,\"error\",0))),_xlfn.XLOOKUP($H72,'Customized Embodied EF'!$B:$B,'Customized Embodied EF'!$E:$E,\"error\",0)),\"Factor error\"),\"Factor error\")","v":0},{"$f":"IFERROR(IF(OR($H72='Customized Embodied EF'!$B:$B),SUMIFS(P:P,$F:$F,$H72,$C:$C,\"G4.\")*IF($F72=\"Customized\",IF(_xlfn.XLOOKUP($H72,'Customized Embodied EF'!$B:$B,'Customized Embodied EF'!I:I,\"error\",0)=\"\",\"Factor error\",(_xlfn.XLOOKUP($H72,'Customized Embodied EF'!$B:$B,'Customized Embodied EF'!I:I,\"error\",0))),_xlfn.XLOOKUP($H72,'Customized Embodied EF'!$B:$B,'Customized Embodied EF'!$E:$E,\"error\",0)),\"Factor error\"),\"Factor error\")","v":0},{"$f":"IFERROR(IF(OR($H72='Customized Embodied EF'!$B:$B),SUMIFS(Q:Q,$F:$F,$H72,$C:$C,\"G4.\")*IF($F72=\"Customized\",IF(_xlfn.XLOOKUP($H72,'Customized Embodied EF'!$B:$B,'Customized Embodied EF'!J:J,\"error\",0)=\"\",\"Factor error\",(_xlfn.XLOOKUP($H72,'Customized Embodied EF'!$B:$B,'Customized Embodied EF'!J:J,\"error\",0))),_xlfn.XLOOKUP($H72,'Customized Embodied EF'!$B:$B,'Customized Embodied EF'!$E:$E,\"error\",0)),\"Factor error\"),\"Factor error\")","v":0},{"$f":"IFERROR(IF(OR($H72='Customized Embodied EF'!$B:$B),SUMIFS(R:R,$F:$F,$H72,$C:$C,\"G4.\")*IF($F72=\"Customized\",IF(_xlfn.XLOOKUP($H72,'Customized Embodied EF'!$B:$B,'Customized Embodied EF'!K:K,\"error\",0)=\"\",\"Factor error\",(_xlfn.XLOOKUP($H72,'Customized Embodied EF'!$B:$B,'Customized Embodied EF'!K:K,\"error\",0))),_xlfn.XLOOKUP($H72,'Customized Embodied EF'!$B:$B,'Customized Embodied EF'!$E:$E,\"error\",0)),\"Factor error\"),\"Factor error\")","v":0},{"$f":"IFERROR(IF(OR($H72='Customized Embodied EF'!$B:$B),SUMIFS(S:S,$F:$F,$H72,$C:$C,\"G4.\")*IF($F72=\"Customized\",IF(_xlfn.XLOOKUP($H72,'Customized Embodied EF'!$B:$B,'Customized Embodied EF'!L:L,\"error\",0)=\"\",\"Factor error\",(_xlfn.XLOOKUP($H72,'Customized Embodied EF'!$B:$B,'Customized Embodied EF'!L:L,\"error\",0))),_xlfn.XLOOKUP($H72,'Customized Embodied EF'!$B:$B,'Customized Embodied EF'!$E:$E,\"error\",0)),\"Factor error\"),\"Factor error\")","v":0},{"$f":"IFERROR(IF(OR($H72='Customized Embodied EF'!$B:$B),SUMIFS(T:T,$F:$F,$H72,$C:$C,\"G4.\")*IF($F72=\"Customized\",IF(_xlfn.XLOOKUP($H72,'Customized Embodied EF'!$B:$B,'Customized Embodied EF'!M:M,\"error\",0)=\"\",\"Factor error\",(_xlfn.XLOOKUP($H72,'Customized Embodied EF'!$B:$B,'Customized Embodied EF'!M:M,\"error\",0))),_xlfn.XLOOKUP($H72,'Customized Embodied EF'!$B:$B,'Customized Embodied EF'!$E:$E,\"error\",0)),\"Factor error\"),\"Factor error\")","v":0},{"$f":"IFERROR(IF(OR($H72='Customized Embodied EF'!$B:$B),SUMIFS(U:U,$F:$F,$H72,$C:$C,\"G4.\")*IF($F72=\"Customized\",IF(_xlfn.XLOOKUP($H72,'Customized Embodied EF'!$B:$B,'Customized Embodied EF'!N:N,\"error\",0)=\"\",\"Factor error\",(_xlfn.XLOOKUP($H72,'Customized Embodied EF'!$B:$B,'Customized Embodied EF'!N:N,\"error\",0))),_xlfn.XLOOKUP($H72,'Customized Embodied EF'!$B:$B,'Customized Embodied EF'!$E:$E,\"error\",0)),\"Factor error\"),\"Factor error\")","v":0},{"$f":"IFERROR(IF(OR($H72='Customized Embodied EF'!$B:$B),SUMIFS(V:V,$F:$F,$H72,$C:$C,\"G4.\")*IF($F72=\"Customized\",IF(_xlfn.XLOOKUP($H72,'Customized Embodied EF'!$B:$B,'Customized Embodied EF'!O:O,\"error\",0)=\"\",\"Factor error\",(_xlfn.XLOOKUP($H72,'Customized Embodied EF'!$B:$B,'Customized Embodied EF'!O:O,\"error\",0))),_xlfn.XLOOKUP($H72,'Customized Embodied EF'!$B:$B,'Customized Embodied EF'!$E:$E,\"error\",0)),\"Factor error\"),\"Factor error\")","v":0},{"$f":"IFERROR(IF(OR($H72='Customized Embodied EF'!$B:$B),SUMIFS(W:W,$F:$F,$H72,$C:$C,\"G4.\")*IF($F72=\"Customized\",IF(_xlfn.XLOOKUP($H72,'Customized Embodied EF'!$B:$B,'Customized Embodied EF'!P:P,\"error\",0)=\"\",\"Factor error\",(_xlfn.XLOOKUP($H72,'Customized Embodied EF'!$B:$B,'Customized Embodied EF'!P:P,\"error\",0))),_xlfn.XLOOKUP($H72,'Customized Embodied EF'!$B:$B,'Customized Embodied EF'!$E:$E,\"error\",0)),\"Factor error\"),\"Factor error\")","v":0},{"$f":"IFERROR(IF(OR($H72='Customized Embodied EF'!$B:$B),SUMIFS(X:X,$F:$F,$H72,$C:$C,\"G4.\")*IF($F72=\"Customized\",IF(_xlfn.XLOOKUP($H72,'Customized Embodied EF'!$B:$B,'Customized Embodied EF'!Q:Q,\"error\",0)=\"\",\"Factor error\",(_xlfn.XLOOKUP($H72,'Customized Embodied EF'!$B:$B,'Customized Embodied EF'!Q:Q,\"error\",0))),_xlfn.XLOOKUP($H72,'Customized Embodied EF'!$B:$B,'Customized Embodied EF'!$E:$E,\"error\",0)),\"Factor error\"),\"Factor error\")","v":0},{"$f":"IFERROR(IF(OR($H72='Customized Embodied EF'!$B:$B),SUMIFS(Y:Y,$F:$F,$H72,$C:$C,\"G4.\")*IF($F72=\"Customized\",IF(_xlfn.XLOOKUP($H72,'Customized Embodied EF'!$B:$B,'Customized Embodied EF'!R:R,\"error\",0)=\"\",\"Factor error\",(_xlfn.XLOOKUP($H72,'Customized Embodied EF'!$B:$B,'Customized Embodied EF'!R:R,\"error\",0))),_xlfn.XLOOKUP($H72,'Customized Embodied EF'!$B:$B,'Customized Embodied EF'!$E:$E,\"error\",0)),\"Factor error\"),\"Factor error\")","v":0},{"$f":"IFERROR(IF(OR($H72='Customized Embodied EF'!$B:$B),SUMIFS(Z:Z,$F:$F,$H72,$C:$C,\"G4.\")*IF($F72=\"Customized\",IF(_xlfn.XLOOKUP($H72,'Customized Embodied EF'!$B:$B,'Customized Embodied EF'!S:S,\"error\",0)=\"\",\"Factor error\",(_xlfn.XLOOKUP($H72,'Customized Embodied EF'!$B:$B,'Customized Embodied EF'!S:S,\"error\",0))),_xlfn.XLOOKUP($H72,'Customized Embodied EF'!$B:$B,'Customized Embodied EF'!$E:$E,\"error\",0)),\"Factor error\"),\"Factor error\")","v":0},{"$f":"IFERROR(IF(OR($H72='Customized Embodied EF'!$B:$B),SUMIFS(AA:AA,$F:$F,$H72,$C:$C,\"G4.\")*IF($F72=\"Customized\",IF(_xlfn.XLOOKUP($H72,'Customized Embodied EF'!$B:$B,'Customized Embodied EF'!T:T,\"error\",0)=\"\",\"Factor error\",(_xlfn.XLOOKUP($H72,'Customized Embodied EF'!$B:$B,'Customized Embodied EF'!T:T,\"error\",0))),_xlfn.XLOOKUP($H72,'Customized Embodied EF'!$B:$B,'Customized Embodied EF'!$E:$E,\"error\",0)),\"Factor error\"),\"Factor error\")","v":0},{"$f":"IFERROR(IF(OR($H72='Customized Embodied EF'!$B:$B),SUMIFS(AB:AB,$F:$F,$H72,$C:$C,\"G4.\")*IF($F72=\"Customized\",IF(_xlfn.XLOOKUP($H72,'Customized Embodied EF'!$B:$B,'Customized Embodied EF'!U:U,\"error\",0)=\"\",\"Factor error\",(_xlfn.XLOOKUP($H72,'Customized Embodied EF'!$B:$B,'Customized Embodied EF'!U:U,\"error\",0))),_xlfn.XLOOKUP($H72,'Customized Embodied EF'!$B:$B,'Customized Embodied EF'!$E:$E,\"error\",0)),\"Factor error\"),\"Factor error\")","v":0},{"$f":"IFERROR(IF(OR($H72='Customized Embodied EF'!$B:$B),SUMIFS(AC:AC,$F:$F,$H72,$C:$C,\"G4.\")*IF($F72=\"Customized\",IF(_xlfn.XLOOKUP($H72,'Customized Embodied EF'!$B:$B,'Customized Embodied EF'!V:V,\"error\",0)=\"\",\"Factor error\",(_xlfn.XLOOKUP($H72,'Customized Embodied EF'!$B:$B,'Customized Embodied EF'!V:V,\"error\",0))),_xlfn.XLOOKUP($H72,'Customized Embodied EF'!$B:$B,'Customized Embodied EF'!$E:$E,\"error\",0)),\"Factor error\"),\"Factor error\")","v":0},{"$f":"IFERROR(IF(OR($H72='Customized Embodied EF'!$B:$B),SUMIFS(AD:AD,$F:$F,$H72,$C:$C,\"G4.\")*IF($F72=\"Customized\",IF(_xlfn.XLOOKUP($H72,'Customized Embodied EF'!$B:$B,'Customized Embodied EF'!W:W,\"error\",0)=\"\",\"Factor error\",(_xlfn.XLOOKUP($H72,'Customized Embodied EF'!$B:$B,'Customized Embodied EF'!W:W,\"error\",0))),_xlfn.XLOOKUP($H72,'Customized Embodied EF'!$B:$B,'Customized Embodied EF'!$E:$E,\"error\",0)),\"Factor error\"),\"Factor error\")","v":0}]
[null,null,null,{"$f":"C68","v":"A1.1.1"},".4",null,null,"Aggregates and sand, from recycled resources, no heat treatment, bulk, loose",null,"[t CO2e/reporting period]",{"$f":"IF(SUM(M73:AD73)=0,\"\",SUM(M73:AD73))","v":""},null,{"$f":"IFERROR(IF(OR($H73='Customized Embodied EF'!$B:$B),SUMIFS(M:M,$F:$F,$H73,$C:$C,\"G4.\")*IF($F73=\"Customized\",IF(_xlfn.XLOOKUP($H73,'Customized Embodied EF'!$B:$B,'Customized Embodied EF'!F:F,\"error\",0)=\"\",\"Factor error\",(_xlfn.XLOOKUP($H73,'Customized Embodied EF'!$B:$B,'Customized Embodied EF'!F:F,\"error\",0))),_xlfn.XLOOKUP($H73,'Customized Embodied EF'!$B:$B,'Customized Embodied EF'!$E:$E,\"error\",0)),\"Factor error\"),\"Factor error\")","v":0},{"$f":"IFERROR(IF(OR($H73='Customized Embodied EF'!$B:$B),SUMIFS(N:N,$F:$F,$H73,$C:$C,\"G4.\")*IF($F73=\"Customized\",IF(_xlfn.XLOOKUP($H73,'Customized Embodied EF'!$B:$B,'Customized Embodied EF'!G:G,\"error\",0)=\"\",\"Factor error\",(_xlfn.XLOOKUP($H73,'Customized Embodied EF'!$B:$B,'Customized Embodied EF'!G:G,\"error\",0))),_xlfn.XLOOKUP($H73,'Customized Embodied EF'!$B:$B,'Customized Embodied EF'!$E:$E,\"error\",0)),\"Factor error\"),\"Factor error\")","v":0},{"$f":"IFERROR(IF(OR($H73='Customized Embodied EF'!$B:$B),SUMIFS(O:O,$F:$F,$H73,$C:$C,\"G4.\")*IF($F73=\"Customized\",IF(_xlfn.XLOOKUP($H73,'Customized Embodied EF'!$B:$B,'Customized Embodied EF'!H:H,\"error\",0)=\"\",\"Factor error\",(_xlfn.XLOOKUP($H73,'Customized Embodied EF'!$B:$B,'Customized Embodied EF'!H:H,\"error\",0))),_xlfn.XLOOKUP($H73,'Customized Embodied EF'!$B:$B,'Customized Embodied EF'!$E:$E,\"error\",0)),\"Factor error\"),\"Factor error\")","v":0},{"$f":"IFERROR(IF(OR($H73='Customized Embodied EF'!$B:$B),SUMIFS(P:P,$F:$F,$H73,$C:$C,\"G4.\")*IF($F73=\"Customized\",IF(_xlfn.XLOOKUP($H73,'Customized Embodied EF'!$B:$B,'Customized Embodied EF'!I:I,\"error\",0)=\"\",\"Factor error\",(_xlfn.XLOOKUP($H73,'Customized Embodied EF'!$B:$B,'Customized Embodied EF'!I:I,\"error\",0))),_xlfn.XLOOKUP($H73,'Customized Embodied EF'!$B:$B,'Customized Embodied EF'!$E:$E,\"error\",0)),\"Factor error\"),\"Factor error\")","v":0},{"$f":"IFERROR(IF(OR($H73='Customized Embodied EF'!$B:$B),SUMIFS(Q:Q,$F:$F,$H73,$C:$C,\"G4.\")*IF($F73=\"Customized\",IF(_xlfn.XLOOKUP($H73,'Customized Embodied EF'!$B:$B,'Customized Embodied EF'!J:J,\"error\",0)=\"\",\"Factor error\",(_xlfn.XLOOKUP($H73,'Customized Embodied EF'!$B:$B,'Customized Embodied EF'!J:J,\"error\",0))),_xlfn.XLOOKUP($H73,'Customized Embodied EF'!$B:$B,'Customized Embodied EF'!$E:$E,\"error\",0)),\"Factor error\"),\"Factor error\")","v":0},{"$f":"IFERROR(IF(OR($H73='Customized Embodied EF'!$B:$B),SUMIFS(R:R,$F:$F,$H73,$C:$C,\"G4.\")*IF($F73=\"Customized\",IF(_xlfn.XLOOKUP($H73,'Customized Embodied EF'!$B:$B,'Customized Embodied EF'!K:K,\"error\",0)=\"\",\"Factor error\",(_xlfn.XLOOKUP($H73,'Customized Embodied EF'!$B:$B,'Customized Embodied EF'!K:K,\"error\",0))),_xlfn.XLOOKUP($H73,'Customized Embodied EF'!$B:$B,'Customized Embodied EF'!$E:$E,\"error\",0)),\"Factor error\"),\"Factor error\")","v":0},{"$f":"IFERROR(IF(OR($H73='Customized Embodied EF'!$B:$B),SUMIFS(S:S,$F:$F,$H73,$C:$C,\"G4.\")*IF($F73=\"Customized\",IF(_xlfn.XLOOKUP($H73,'Customized Embodied EF'!$B:$B,'Customized Embodied EF'!L:L,\"error\",0)=\"\",\"Factor error\",(_xlfn.XLOOKUP($H73,'Customized Embodied EF'!$B:$B,'Customized Embodied EF'!L:L,\"error\",0))),_xlfn.XLOOKUP($H73,'Customized Embodied EF'!$B:$B,'Customized Embodied EF'!$E:$E,\"error\",0)),\"Factor error\"),\"Factor error\")","v":0},{"$f":"IFERROR(IF(OR($H73='Customized Embodied EF'!$B:$B),SUMIFS(T:T,$F:$F,$H73,$C:$C,\"G4.\")*IF($F73=\"Customized\",IF(_xlfn.XLOOKUP($H73,'Customized Embodied EF'!$B:$B,'Customized Embodied EF'!M:M,\"error\",0)=\"\",\"Factor error\",(_xlfn.XLOOKUP($H73,'Customized Embodied EF'!$B:$B,'Customized Embodied EF'!M:M,\"error\",0))),_xlfn.XLOOKUP($H73,'Customized Embodied EF'!$B:$B,'Customized Embodied EF'!$E:$E,\"error\",0)),\"Factor error\"),\"Factor error\")","v":0},{"$f":"IFERROR(IF(OR($H73='Customized Embodied EF'!$B:$B),SUMIFS(U:U,$F:$F,$H73,$C:$C,\"G4.\")*IF($F73=\"Customized\",IF(_xlfn.XLOOKUP($H73,'Customized Embodied EF'!$B:$B,'Customized Embodied EF'!N:N,\"error\",0)=\"\",\"Factor error\",(_xlfn.XLOOKUP($H73,'Customized Embodied EF'!$B:$B,'Customized Embodied EF'!N:N,\"error\",0))),_xlfn.XLOOKUP($H73,'Customized Embodied EF'!$B:$B,'Customized Embodied EF'!$E:$E,\"error\",0)),\"Factor error\"),\"Factor error\")","v":0},{"$f":"IFERROR(IF(OR($H73='Customized Embodied EF'!$B:$B),SUMIFS(V:V,$F:$F,$H73,$C:$C,\"G4.\")*IF($F73=\"Customized\",IF(_xlfn.XLOOKUP($H73,'Customized Embodied EF'!$B:$B,'Customized Embodied EF'!O:O,\"error\",0)=\"\",\"Factor error\",(_xlfn.XLOOKUP($H73,'Customized Embodied EF'!$B:$B,'Customized Embodied EF'!O:O,\"error\",0))),_xlfn.XLOOKUP($H73,'Customized Embodied EF'!$B:$B,'Customized Embodied EF'!$E:$E,\"error\",0)),\"Factor error\"),\"Factor error\")","v":0},{"$f":"IFERROR(IF(OR($H73='Customized Embodied EF'!$B:$B),SUMIFS(W:W,$F:$F,$H73,$C:$C,\"G4.\")*IF($F73=\"Customized\",IF(_xlfn.XLOOKUP($H73,'Customized Embodied EF'!$B:$B,'Customized Embodied EF'!P:P,\"error\",0)=\"\",\"Factor error\",(_xlfn.XLOOKUP($H73,'Customized Embodied EF'!$B:$B,'Customized Embodied EF'!P:P,\"error\",0))),_xlfn.XLOOKUP($H73,'Customized Embodied EF'!$B:$B,'Customized Embodied EF'!$E:$E,\"error\",0)),\"Factor error\"),\"Factor error\")","v":0},{"$f":"IFERROR(IF(OR($H73='Customized Embodied EF'!$B:$B),SUMIFS(X:X,$F:$F,$H73,$C:$C,\"G4.\")*IF($F73=\"Customized\",IF(_xlfn.XLOOKUP($H73,'Customized Embodied EF'!$B:$B,'Customized Embodied EF'!Q:Q,\"error\",0)=\"\",\"Factor error\",(_xlfn.XLOOKUP($H73,'Customized Embodied EF'!$B:$B,'Customized Embodied EF'!Q:Q,\"error\",0))),_xlfn.XLOOKUP($H73,'Customized Embodied EF'!$B:$B,'Customized Embodied EF'!$E:$E,\"error\",0)),\"Factor error\"),\"Factor error\")","v":0},{"$f":"IFERROR(IF(OR($H73='Customized Embodied EF'!$B:$B),SUMIFS(Y:Y,$F:$F,$H73,$C:$C,\"G4.\")*IF($F73=\"Customized\",IF(_xlfn.XLOOKUP($H73,'Customized Embodied EF'!$B:$B,'Customized Embodied EF'!R:R,\"error\",0)=\"\",\"Factor error\",(_xlfn.XLOOKUP($H73,'Customized Embodied EF'!$B:$B,'Customized Embodied EF'!R:R,\"error\",0))),_xlfn.XLOOKUP($H73,'Customized Embodied EF'!$B:$B,'Customized Embodied EF'!$E:$E,\"error\",0)),\"Factor error\"),\"Factor error\")","v":0},{"$f":"IFERROR(IF(OR($H73='Customized Embodied EF'!$B:$B),SUMIFS(Z:Z,$F:$F,$H73,$C:$C,\"G4.\")*IF($F73=\"Customized\",IF(_xlfn.XLOOKUP($H73,'Customized Embodied EF'!$B:$B,'Customized Embodied EF'!S:S,\"error\",0)=\"\",\"Factor error\",(_xlfn.XLOOKUP($H73,'Customized Embodied EF'!$B:$B,'Customized Embodied EF'!S:S,\"error\",0))),_xlfn.XLOOKUP($H73,'Customized Embodied EF'!$B:$B,'Customized Embodied EF'!$E:$E,\"error\",0)),\"Factor error\"),\"Factor error\")","v":0},{"$f":"IFERROR(IF(OR($H73='Customized Embodied EF'!$B:$B),SUMIFS(AA:AA,$F:$F,$H73,$C:$C,\"G4.\")*IF($F73=\"Customized\",IF(_xlfn.XLOOKUP($H73,'Customized Embodied EF'!$B:$B,'Customized Embodied EF'!T:T,\"error\",0)=\"\",\"Factor error\",(_xlfn.XLOOKUP($H73,'Customized Embodied EF'!$B:$B,'Customized Embodied EF'!T:T,\"error\",0))),_xlfn.XLOOKUP($H73,'Customized Embodied EF'!$B:$B,'Customized Embodied EF'!$E:$E,\"error\",0)),\"Factor error\"),\"Factor error\")","v":0},{"$f":"IFERROR(IF(OR($H73='Customized Embodied EF'!$B:$B),SUMIFS(AB:AB,$F:$F,$H73,$C:$C,\"G4.\")*IF($F73=\"Customized\",IF(_xlfn.XLOOKUP($H73,'Customized Embodied EF'!$B:$B,'Customized Embodied EF'!U:U,\"error\",0)=\"\",\"Factor error\",(_xlfn.XLOOKUP($H73,'Customized Embodied EF'!$B:$B,'Customized Embodied EF'!U:U,\"error\",0))),_xlfn.XLOOKUP($H73,'Customized Embodied EF'!$B:$B,'Customized Embodied EF'!$E:$E,\"error\",0)),\"Factor error\"),\"Factor error\")","v":0},{"$f":"IFERROR(IF(OR($H73='Customized Embodied EF'!$B:$B),SUMIFS(AC:AC,$F:$F,$H73,$C:$C,\"G4.\")*IF($F73=\"Customized\",IF(_xlfn.XLOOKUP($H73,'Customized Embodied EF'!$B:$B,'Customized Embodied EF'!V:V,\"error\",0)=\"\",\"Factor error\",(_xlfn.XLOOKUP($H73,'Customized Embodied EF'!$B:$B,'Customized Embodied EF'!V:V,\"error\",0))),_xlfn.XLOOKUP($H73,'Customized Embodied EF'!$B:$B,'Customized Embodied EF'!$E:$E,\"error\",0)),\"Factor error\"),\"Factor error\")","v":0},{"$f":"IFERROR(IF(OR($H73='Customized Embodied EF'!$B:$B),SUMIFS(AD:AD,$F:$F,$H73,$C:$C,\"G4.\")*IF($F73=\"Customized\",IF(_xlfn.XLOOKUP($H73,'Customized Embodied EF'!$B:$B,'Customized Embodied EF'!W:W,\"error\",0)=\"\",\"Factor error\",(_xlfn.XLOOKUP($H73,'Customized Embodied EF'!$B:$B,'Customized Embodied EF'!W:W,\"error\",0))),_xlfn.XLOOKUP($H73,'Customized Embodied EF'!$B:$B,'Customized Embodied EF'!$E:$E,\"error\",0)),\"Factor error\"),\"Factor error\")","v":0}]
[null,null,null,{"$f":"D73","v":"A1.1.1"},".5",null,null,"Aggregates and sand, from recycled resources, with heat treatment, bulk, loose",null,"[t CO2e/reporting period]","",null,{"$f":"IFERROR(IF(OR($H74='Customized Embodied EF'!$B:$B),SUMIFS(M:M,$F:$F,$H74,$C:$C,\"G4.\")*IF($F74=\"Customized\",IF(_xlfn.XLOOKUP($H74,'Customized Embodied EF'!$B:$B,'Customized Embodied EF'!F:F,\"error\",0)=\"\",\"Factor error\",(_xlfn.XLOOKUP($H74,'Customized Embodied EF'!$B:$B,'Customized Embodied EF'!F:F,\"error\",0))),_xlfn.XLOOKUP($H74,'Customized Embodied EF'!$B:$B,'Customized Embodied EF'!$E:$E,\"error\",0)),\"Factor error\"),\"Factor error\")","v":0},{"$f":"IFERROR(IF(OR($H74='Customized Embodied EF'!$B:$B),SUMIFS(N:N,$F:$F,$H74,$C:$C,\"G4.\")*IF($F74=\"Customized\",IF(_xlfn.XLOOKUP($H74,'Customized Embodied EF'!$B:$B,'Customized Embodied EF'!G:G,\"error\",0)=\"\",\"Factor error\",(_xlfn.XLOOKUP($H74,'Customized Embodied EF'!$B:$B,'Customized Embodied EF'!G:G,\"error\",0))),_xlfn.XLOOKUP($H74,'Customized Embodied EF'!$B:$B,'Customized Embodied EF'!$E:$E,\"error\",0)),\"Factor error\"),\"Factor error\")","v":0},{"$f":"IFERROR(IF(OR($H74='Customized Embodied EF'!$B:$B),SUMIFS(O:O,$F:$F,$H74,$C:$C,\"G4.\")*IF($F74=\"Customized\",IF(_xlfn.XLOOKUP($H74,'Customized Embodied EF'!$B:$B,'Customized Embodied EF'!H:H,\"error\",0)=\"\",\"Factor error\",(_xlfn.XLOOKUP($H74,'Customized Embodied EF'!$B:$B,'Customized Embodied EF'!H:H,\"error\",0))),_xlfn.XLOOKUP($H74,'Customized Embodied EF'!$B:$B,'Customized Embodied EF'!$E:$E,\"error\",0)),\"Factor error\"),\"Factor error\")","v":0},{"$f":"IFERROR(IF(OR($H74='Customized Embodied EF'!$B:$B),SUMIFS(P:P,$F:$F,$H74,$C:$C,\"G4.\")*IF($F74=\"Customized\",IF(_xlfn.XLOOKUP($H74,'Customized Embodied EF'!$B:$B,'Customized Embodied EF'!I:I,\"error\",0)=\"\",\"Factor error\",(_xlfn.XLOOKUP($H74,'Customized Embodied EF'!$B:$B,'Customized Embodied EF'!I:I,\"error\",0))),_xlfn.XLOOKUP($H74,'Customized Embodied EF'!$B:$B,'Customized Embodied EF'!$E:$E,\"error\",0)),\"Factor error\"),\"Factor error\")","v":0},{"$f":"IFERROR(IF(OR($H74='Customized Embodied EF'!$B:$B),SUMIFS(Q:Q,$F:$F,$H74,$C:$C,\"G4.\")*IF($F74=\"Customized\",IF(_xlfn.XLOOKUP($H74,'Customized Embodied EF'!$B:$B,'Customized Embodied EF'!J:J,\"error\",0)=\"\",\"Factor error\",(_xlfn.XLOOKUP($H74,'Customized Embodied EF'!$B:$B,'Customized Embodied EF'!J:J,\"error\",0))),_xlfn.XLOOKUP($H74,'Customized Embodied EF'!$B:$B,'Customized Embodied EF'!$E:$E,\"error\",0)),\"Factor error\"),\"Factor error\")","v":0},{"$f":"IFERROR(IF(OR($H74='Customized Embodied EF'!$B:$B),SUMIFS(R:R,$F:$F,$H74,$C:$C,\"G4.\")*IF($F74=\"Customized\",IF(_xlfn.XLOOKUP($H74,'Customized Embodied EF'!$B:$B,'Customized Embodied EF'!K:K,\"error\",0)=\"\",\"Factor error\",(_xlfn.XLOOKUP($H74,'Customized Embodied EF'!$B:$B,'Customized Embodied EF'!K:K,\"error\",0))),_xlfn.XLOOKUP($H74,'Customized Embodied EF'!$B:$B,'Customized Embodied EF'!$E:$E,\"error\",0)),\"Factor error\"),\"Factor error\")","v":0},{"$f":"IFERROR(IF(OR($H74='Customized Embodied EF'!$B:$B),SUMIFS(S:S,$F:$F,$H74,$C:$C,\"G4.\")*IF($F74=\"Customized\",IF(_xlfn.XLOOKUP($H74,'Customized Embodied EF'!$B:$B,'Customized Embodied EF'!L:L,\"error\",0)=\"\",\"Factor error\",(_xlfn.XLOOKUP($H74,'Customized Embodied EF'!$B:$B,'Customized Embodied EF'!L:L,\"error\",0))),_xlfn.XLOOKUP($H74,'Customized Embodied EF'!$B:$B,'Customized Embodied EF'!$E:$E,\"error\",0)),\"Factor error\"),\"Factor error\")","v":0},{"$f":"IFERROR(IF(OR($H74='Customized Embodied EF'!$B:$B),SUMIFS(T:T,$F:$F,$H74,$C:$C,\"G4.\")*IF($F74=\"Customized\",IF(_xlfn.XLOOKUP($H74,'Customized Embodied EF'!$B:$B,'Customized Embodied EF'!M:M,\"error\",0)=\"\",\"Factor error\",(_xlfn.XLOOKUP($H74,'Customized Embodied EF'!$B:$B,'Customized Embodied EF'!M:M,\"error\",0))),_xlfn.XLOOKUP($H74,'Customized Embodied EF'!$B:$B,'Customized Embodied EF'!$E:$E,\"error\",0)),\"Factor error\"),\"Factor error\")","v":0},{"$f":"IFERROR(IF(OR($H74='Customized Embodied EF'!$B:$B),SUMIFS(U:U,$F:$F,$H74,$C:$C,\"G4.\")*IF($F74=\"Customized\",IF(_xlfn.XLOOKUP($H74,'Customized Embodied EF'!$B:$B,'Customized Embodied EF'!N:N,\"error\",0)=\"\",\"Factor error\",(_xlfn.XLOOKUP($H74,'Customized Embodied EF'!$B:$B,'Customized Embodied EF'!N:N,\"error\",0))),_xlfn.XLOOKUP($H74,'Customized Embodied EF'!$B:$B,'Customized Embodied EF'!$E:$E,\"error\",0)),\"Factor error\"),\"Factor error\")","v":0},{"$f":"IFERROR(IF(OR($H74='Customized Embodied EF'!$B:$B),SUMIFS(V:V,$F:$F,$H74,$C:$C,\"G4.\")*IF($F74=\"Customized\",IF(_xlfn.XLOOKUP($H74,'Customized Embodied EF'!$B:$B,'Customized Embodied EF'!O:O,\"error\",0)=\"\",\"Factor error\",(_xlfn.XLOOKUP($H74,'Customized Embodied EF'!$B:$B,'Customized Embodied EF'!O:O,\"error\",0))),_xlfn.XLOOKUP($H74,'Customized Embodied EF'!$B:$B,'Customized Embodied EF'!$E:$E,\"error\",0)),\"Factor error\"),\"Factor error\")","v":0},{"$f":"IFERROR(IF(OR($H74='Customized Embodied EF'!$B:$B),SUMIFS(W:W,$F:$F,$H74,$C:$C,\"G4.\")*IF($F74=\"Customized\",IF(_xlfn.XLOOKUP($H74,'Customized Embodied EF'!$B:$B,'Customized Embodied EF'!P:P,\"error\",0)=\"\",\"Factor error\",(_xlfn.XLOOKUP($H74,'Customized Embodied EF'!$B:$B,'Customized Embodied EF'!P:P,\"error\",0))),_xlfn.XLOOKUP($H74,'Customized Embodied EF'!$B:$B,'Customized Embodied EF'!$E:$E,\"error\",0)),\"Factor error\"),\"Factor error\")","v":0},{"$f":"IFERROR(IF(OR($H74='Customized Embodied EF'!$B:$B),SUMIFS(X:X,$F:$F,$H74,$C:$C,\"G4.\")*IF($F74=\"Customized\",IF(_xlfn.XLOOKUP($H74,'Customized Embodied EF'!$B:$B,'Customized Embodied EF'!Q:Q,\"error\",0)=\"\",\"Factor error\",(_xlfn.XLOOKUP($H74,'Customized Embodied EF'!$B:$B,'Customized Embodied EF'!Q:Q,\"error\",0))),_xlfn.XLOOKUP($H74,'Customized Embodied EF'!$B:$B,'Customized Embodied EF'!$E:$E,\"error\",0)),\"Factor error\"),\"Factor error\")","v":0},{"$f":"IFERROR(IF(OR($H74='Customized Embodied EF'!$B:$B),SUMIFS(Y:Y,$F:$F,$H74,$C:$C,\"G4.\")*IF($F74=\"Customized\",IF(_xlfn.XLOOKUP($H74,'Customized Embodied EF'!$B:$B,'Customized Embodied EF'!R:R,\"error\",0)=\"\",\"Factor error\",(_xlfn.XLOOKUP($H74,'Customized Embodied EF'!$B:$B,'Customized Embodied EF'!R:R,\"error\",0))),_xlfn.XLOOKUP($H74,'Customized Embodied EF'!$B:$B,'Customized Embodied EF'!$E:$E,\"error\",0)),\"Factor error\"),\"Factor error\")","v":0},{"$f":"IFERROR(IF(OR($H74='Customized Embodied EF'!$B:$B),SUMIFS(Z:Z,$F:$F,$H74,$C:$C,\"G4.\")*IF($F74=\"Customized\",IF(_xlfn.XLOOKUP($H74,'Customized Embodied EF'!$B:$B,'Customized Embodied EF'!S:S,\"error\",0)=\"\",\"Factor error\",(_xlfn.XLOOKUP($H74,'Customized Embodied EF'!$B:$B,'Customized Embodied EF'!S:S,\"error\",0))),_xlfn.XLOOKUP($H74,'Customized Embodied EF'!$B:$B,'Customized Embodied EF'!$E:$E,\"error\",0)),\"Factor error\"),\"Factor error\")","v":0},{"$f":"IFERROR(IF(OR($H74='Customized Embodied EF'!$B:$B),SUMIFS(AA:AA,$F:$F,$H74,$C:$C,\"G4.\")*IF($F74=\"Customized\",IF(_xlfn.XLOOKUP($H74,'Customized Embodied EF'!$B:$B,'Customized Embodied EF'!T:T,\"error\",0)=\"\",\"Factor error\",(_xlfn.XLOOKUP($H74,'Customized Embodied EF'!$B:$B,'Customized Embodied EF'!T:T,\"error\",0))),_xlfn.XLOOKUP($H74,'Customized Embodied EF'!$B:$B,'Customized Embodied EF'!$E:$E,\"error\",0)),\"Factor error\"),\"Factor error\")","v":0},{"$f":"IFERROR(IF(OR($H74='Customized Embodied EF'!$B:$B),SUMIFS(AB:AB,$F:$F,$H74,$C:$C,\"G4.\")*IF($F74=\"Customized\",IF(_xlfn.XLOOKUP($H74,'Customized Embodied EF'!$B:$B,'Customized Embodied EF'!U:U,\"error\",0)=\"\",\"Factor error\",(_xlfn.XLOOKUP($H74,'Customized Embodied EF'!$B:$B,'Customized Embodied EF'!U:U,\"error\",0))),_xlfn.XLOOKUP($H74,'Customized Embodied EF'!$B:$B,'Customized Embodied EF'!$E:$E,\"error\",0)),\"Factor error\"),\"Factor error\")","v":0},{"$f":"IFERROR(IF(OR($H74='Customized Embodied EF'!$B:$B),SUMIFS(AC:AC,$F:$F,$H74,$C:$C,\"G4.\")*IF($F74=\"Customized\",IF(_xlfn.XLOOKUP($H74,'Customized Embodied EF'!$B:$B,'Customized Embodied EF'!V:V,\"error\",0)=\"\",\"Factor error\",(_xlfn.XLOOKUP($H74,'Customized Embodied EF'!$B:$B,'Customized Embodied EF'!V:V,\"error\",0))),_xlfn.XLOOKUP($H74,'Customized Embodied EF'!$B:$B,'Customized Embodied EF'!$E:$E,\"error\",0)),\"Factor error\"),\"Factor error\")","v":0},{"$f":"IFERROR(IF(OR($H74='Customized Embodied EF'!$B:$B),SUMIFS(AD:AD,$F:$F,$H74,$C:$C,\"G4.\")*IF($F74=\"Customized\",IF(_xlfn.XLOOKUP($H74,'Customized Embodied EF'!$B:$B,'Customized Embodied EF'!W:W,\"error\",0)=\"\",\"Factor error\",(_xlfn.XLOOKUP($H74,'Customized Embodied EF'!$B:$B,'Customized Embodied EF'!W:W,\"error\",0))),_xlfn.XLOOKUP($H74,'Customized Embodied EF'!$B:$B,'Customized Embodied EF'!$E:$E,\"error\",0)),\"Factor error\"),\"Factor error\")","v":0}]
[null,null,null,{"$f":"D74","v":"A1.1.1"},".6",null,null,"Water / Ice",null,"[t CO2e/reporting period]","",null,{"$f":"IFERROR(IF(OR($H75='Customized Embodied EF'!$B:$B),SUMIFS(M:M,$F:$F,$H75,$C:$C,\"G4.\")*IF($F75=\"Customized\",IF(_xlfn.XLOOKUP($H75,'Customized Embodied EF'!$B:$B,'Customized Embodied EF'!F:F,\"error\",0)=\"\",\"Factor error\",(_xlfn.XLOOKUP($H75,'Customized Embodied EF'!$B:$B,'Customized Embodied EF'!F:F,\"error\",0))),_xlfn.XLOOKUP($H75,'Customized Embodied EF'!$B:$B,'Customized Embodied EF'!$E:$E,\"error\",0)),\"Factor error\"),\"Factor error\")","v":0},{"$f":"IFERROR(IF(OR($H75='Customized Embodied EF'!$B:$B),SUMIFS(N:N,$F:$F,$H75,$C:$C,\"G4.\")*IF($F75=\"Customized\",IF(_xlfn.XLOOKUP($H75,'Customized Embodied EF'!$B:$B,'Customized Embodied EF'!G:G,\"error\",0)=\"\",\"Factor error\",(_xlfn.XLOOKUP($H75,'Customized Embodied EF'!$B:$B,'Customized Embodied EF'!G:G,\"error\",0))),_xlfn.XLOOKUP($H75,'Customized Embodied EF'!$B:$B,'Customized Embodied EF'!$E:$E,\"error\",0)),\"Factor error\"),\"Factor error\")","v":0},{"$f":"IFERROR(IF(OR($H75='Customized Embodied EF'!$B:$B),SUMIFS(O:O,$F:$F,$H75,$C:$C,\"G4.\")*IF($F75=\"Customized\",IF(_xlfn.XLOOKUP($H75,'Customized Embodied EF'!$B:$B,'Customized Embodied EF'!H:H,\"error\",0)=\"\",\"Factor error\",(_xlfn.XLOOKUP($H75,'Customized Embodied EF'!$B:$B,'Customized Embodied EF'!H:H,\"error\",0))),_xlfn.XLOOKUP($H75,'Customized Embodied EF'!$B:$B,'Customized Embodied EF'!$E:$E,\"error\",0)),\"Factor error\"),\"Factor error\")","v":0},{"$f":"IFERROR(IF(OR($H75='Customized Embodied EF'!$B:$B),SUMIFS(P:P,$F:$F,$H75,$C:$C,\"G4.\")*IF($F75=\"Customized\",IF(_xlfn.XLOOKUP($H75,'Customized Embodied EF'!$B:$B,'Customized Embodied EF'!I:I,\"error\",0)=\"\",\"Factor error\",(_xlfn.XLOOKUP($H75,'Customized Embodied EF'!$B:$B,'Customized Embodied EF'!I:I,\"error\",0))),_xlfn.XLOOKUP($H75,'Customized Embodied EF'!$B:$B,'Customized Embodied EF'!$E:$E,\"error\",0)),\"Factor error\"),\"Factor error\")","v":0},{"$f":"IFERROR(IF(OR($H75='Customized Embodied EF'!$B:$B),SUMIFS(Q:Q,$F:$F,$H75,$C:$C,\"G4.\")*IF($F75=\"Customized\",IF(_xlfn.XLOOKUP($H75,'Customized Embodied EF'!$B:$B,'Customized Embodied EF'!J:J,\"error\",0)=\"\",\"Factor error\",(_xlfn.XLOOKUP($H75,'Customized Embodied EF'!$B:$B,'Customized Embodied EF'!J:J,\"error\",0))),_xlfn.XLOOKUP($H75,'Customized Embodied EF'!$B:$B,'Customized Embodied EF'!$E:$E,\"error\",0)),\"Factor error\"),\"Factor error\")","v":0},{"$f":"IFERROR(IF(OR($H75='Customized Embodied EF'!$B:$B),SUMIFS(R:R,$F:$F,$H75,$C:$C,\"G4.\")*IF($F75=\"Customized\",IF(_xlfn.XLOOKUP($H75,'Customized Embodied EF'!$B:$B,'Customized Embodied EF'!K:K,\"error\",0)=\"\",\"Factor error\",(_xlfn.XLOOKUP($H75,'Customized Embodied EF'!$B:$B,'Customized Embodied EF'!K:K,\"error\",0))),_xlfn.XLOOKUP($H75,'Customized Embodied EF'!$B:$B,'Customized Embodied EF'!$E:$E,\"error\",0)),\"Factor error\"),\"Factor error\")","v":0},{"$f":"IFERROR(IF(OR($H75='Customized Embodied EF'!$B:$B),SUMIFS(S:S,$F:$F,$H75,$C:$C,\"G4.\")*IF($F75=\"Customized\",IF(_xlfn.XLOOKUP($H75,'Customized Embodied EF'!$B:$B,'Customized Embodied EF'!L:L,\"error\",0)=\"\",\"Factor error\",(_xlfn.XLOOKUP($H75,'Customized Embodied EF'!$B:$B,'Customized Embodied EF'!L:L,\"error\",0))),_xlfn.XLOOKUP($H75,'Customized Embodied EF'!$B:$B,'Customized Embodied EF'!$E:$E,\"error\",0)),\"Factor error\"),\"Factor error\")","v":0},{"$f":"IFERROR(IF(OR($H75='Customized Embodied EF'!$B:$B),SUMIFS(T:T,$F:$F,$H75,$C:$C,\"G4.\")*IF($F75=\"Customized\",IF(_xlfn.XLOOKUP($H75,'Customized Embodied EF'!$B:$B,'Customized Embodied EF'!M:M,\"error\",0)=\"\",\"Factor error\",(_xlfn.XLOOKUP($H75,'Customized Embodied EF'!$B:$B,'Customized Embodied EF'!M:M,\"error\",0))),_xlfn.XLOOKUP($H75,'Customized Embodied EF'!$B:$B,'Customized Embodied EF'!$E:$E,\"error\",0)),\"Factor error\"),\"Factor error\")","v":0},{"$f":"IFERROR(IF(OR($H75='Customized Embodied EF'!$B:$B),SUMIFS(U:U,$F:$F,$H75,$C:$C,\"G4.\")*IF($F75=\"Customized\",IF(_xlfn.XLOOKUP($H75,'Customized Embodied EF'!$B:$B,'Customized Embodied EF'!N:N,\"error\",0)=\"\",\"Factor error\",(_xlfn.XLOOKUP($H75,'Customized Embodied EF'!$B:$B,'Customized Embodied EF'!N:N,\"error\",0))),_xlfn.XLOOKUP($H75,'Customized Embodied EF'!$B:$B,'Customized Embodied EF'!$E:$E,\"error\",0)),\"Factor error\"),\"Factor error\")","v":0},{"$f":"IFERROR(IF(OR($H75='Customized Embodied EF'!$B:$B),SUMIFS(V:V,$F:$F,$H75,$C:$C,\"G4.\")*IF($F75=\"Customized\",IF(_xlfn.XLOOKUP($H75,'Customized Embodied EF'!$B:$B,'Customized Embodied EF'!O:O,\"error\",0)=\"\",\"Factor error\",(_xlfn.XLOOKUP($H75,'Customized Embodied EF'!$B:$B,'Customized Embodied EF'!O:O,\"error\",0))),_xlfn.XLOOKUP($H75,'Customized Embodied EF'!$B:$B,'Customized Embodied EF'!$E:$E,\"error\",0)),\"Factor error\"),\"Factor error\")","v":0},{"$f":"IFERROR(IF(OR($H75='Customized Embodied EF'!$B:$B),SUMIFS(W:W,$F:$F,$H75,$C:$C,\"G4.\")*IF($F75=\"Customized\",IF(_xlfn.XLOOKUP($H75,'Customized Embodied EF'!$B:$B,'Customized Embodied EF'!P:P,\"error\",0)=\"\",\"Factor error\",(_xlfn.XLOOKUP($H75,'Customized Embodied EF'!$B:$B,'Customized Embodied EF'!P:P,\"error\",0))),_xlfn.XLOOKUP($H75,'Customized Embodied EF'!$B:$B,'Customized Embodied EF'!$E:$E,\"error\",0)),\"Factor error\"),\"Factor error\")","v":0},{"$f":"IFERROR(IF(OR($H75='Customized Embodied EF'!$B:$B),SUMIFS(X:X,$F:$F,$H75,$C:$C,\"G4.\")*IF($F75=\"Customized\",IF(_xlfn.XLOOKUP($H75,'Customized Embodied EF'!$B:$B,'Customized Embodied EF'!Q:Q,\"error\",0)=\"\",\"Factor error\",(_xlfn.XLOOKUP($H75,'Customized Embodied EF'!$B:$B,'Customized Embodied EF'!Q:Q,\"error\",0))),_xlfn.XLOOKUP($H75,'Customized Embodied EF'!$B:$B,'Customized Embodied EF'!$E:$E,\"error\",0)),\"Factor error\"),\"Factor error\")","v":0},{"$f":"IFERROR(IF(OR($H75='Customized Embodied EF'!$B:$B),SUMIFS(Y:Y,$F:$F,$H75,$C:$C,\"G4.\")*IF($F75=\"Customized\",IF(_xlfn.XLOOKUP($H75,'Customized Embodied EF'!$B:$B,'Customized Embodied EF'!R:R,\"error\",0)=\"\",\"Factor error\",(_xlfn.XLOOKUP($H75,'Customized Embodied EF'!$B:$B,'Customized Embodied EF'!R:R,\"error\",0))),_xlfn.XLOOKUP($H75,'Customized Embodied EF'!$B:$B,'Customized Embodied EF'!$E:$E,\"error\",0)),\"Factor error\"),\"Factor error\")","v":0},{"$f":"IFERROR(IF(OR($H75='Customized Embodied EF'!$B:$B),SUMIFS(Z:Z,$F:$F,$H75,$C:$C,\"G4.\")*IF($F75=\"Customized\",IF(_xlfn.XLOOKUP($H75,'Customized Embodied EF'!$B:$B,'Customized Embodied EF'!S:S,\"error\",0)=\"\",\"Factor error\",(_xlfn.XLOOKUP($H75,'Customized Embodied EF'!$B:$B,'Customized Embodied EF'!S:S,\"error\",0))),_xlfn.XLOOKUP($H75,'Customized Embodied EF'!$B:$B,'Customized Embodied EF'!$E:$E,\"error\",0)),\"Factor error\"),\"Factor error\")","v":0},{"$f":"IFERROR(IF(OR($H75='Customized Embodied EF'!$B:$B),SUMIFS(AA:AA,$F:$F,$H75,$C:$C,\"G4.\")*IF($F75=\"Customized\",IF(_xlfn.XLOOKUP($H75,'Customized Embodied EF'!$B:$B,'Customized Embodied EF'!T:T,\"error\",0)=\"\",\"Factor error\",(_xlfn.XLOOKUP($H75,'Customized Embodied EF'!$B:$B,'Customized Embodied EF'!T:T,\"error\",0))),_xlfn.XLOOKUP($H75,'Customized Embodied EF'!$B:$B,'Customized Embodied EF'!$E:$E,\"error\",0)),\"Factor error\"),\"Factor error\")","v":0},{"$f":"IFERROR(IF(OR($H75='Customized Embodied EF'!$B:$B),SUMIFS(AB:AB,$F:$F,$H75,$C:$C,\"G4.\")*IF($F75=\"Customized\",IF(_xlfn.XLOOKUP($H75,'Customized Embodied EF'!$B:$B,'Customized Embodied EF'!U:U,\"error\",0)=\"\",\"Factor error\",(_xlfn.XLOOKUP($H75,'Customized Embodied EF'!$B:$B,'Customized Embodied EF'!U:U,\"error\",0))),_xlfn.XLOOKUP($H75,'Customized Embodied EF'!$B:$B,'Customized Embodied EF'!$E:$E,\"error\",0)),\"Factor error\"),\"Factor error\")","v":0},{"$f":"IFERROR(IF(OR($H75='Customized Embodied EF'!$B:$B),SUMIFS(AC:AC,$F:$F,$H75,$C:$C,\"G4.\")*IF($F75=\"Customized\",IF(_xlfn.XLOOKUP($H75,'Customized Embodied EF'!$B:$B,'Customized Embodied EF'!V:V,\"error\",0)=\"\",\"Factor error\",(_xlfn.XLOOKUP($H75,'Customized Embodied EF'!$B:$B,'Customized Embodied EF'!V:V,\"error\",0))),_xlfn.XLOOKUP($H75,'Customized Embodied EF'!$B:$B,'Customized Embodied EF'!$E:$E,\"error\",0)),\"Factor error\"),\"Factor error\")","v":0},{"$f":"IFERROR(IF(OR($H75='Customized Embodied EF'!$B:$B),SUMIFS(AD:AD,$F:$F,$H75,$C:$C,\"G4.\")*IF($F75=\"Customized\",IF(_xlfn.XLOOKUP($H75,'Customized Embodied EF'!$B:$B,'Customized Embodied EF'!W:W,\"error\",0)=\"\",\"Factor error\",(_xlfn.XLOOKUP($H75,'Customized Embodied EF'!$B:$B,'Customized Embodied EF'!W:W,\"error\",0))),_xlfn.XLOOKUP($H75,'Customized Embodied EF'!$B:$B,'Customized Embodied EF'!$E:$E,\"error\",0)),\"Factor error\"),\"Factor error\")","v":0}]
[null,null,null,{"$f":"D75","v":"A1.1.1"},".7",null,null,"Fly ash (FA)",null,"[t CO2e/reporting period]",{"$f":"IF(SUM(M76:AD76)=0,\"\",SUM(M76:AD76))","v":""},null,{"$f":"IFERROR(IF(OR($H76='Customized Embodied EF'!$B:$B),SUMIFS(M:M,$F:$F,$H76,$C:$C,\"G4.\")*IF($F76=\"Customized\",IF(_xlfn.XLOOKUP($H76,'Customized Embodied EF'!$B:$B,'Customized Embodied EF'!F:F,\"error\",0)=\"\",\"Factor error\",(_xlfn.XLOOKUP($H76,'Customized Embodied EF'!$B:$B,'Customized Embodied EF'!F:F,\"error\",0))),_xlfn.XLOOKUP($H76,'Customized Embodied EF'!$B:$B,'Customized Embodied EF'!$E:$E,\"error\",0)),\"Factor error\"),\"Factor error\")","v":0},{"$f":"IFERROR(IF(OR($H76='Customized Embodied EF'!$B:$B),SUMIFS(N:N,$F:$F,$H76,$C:$C,\"G4.\")*IF($F76=\"Customized\",IF(_xlfn.XLOOKUP($H76,'Customized Embodied EF'!$B:$B,'Customized Embodied EF'!G:G,\"error\",0)=\"\",\"Factor error\",(_xlfn.XLOOKUP($H76,'Customized Embodied EF'!$B:$B,'Customized Embodied EF'!G:G,\"error\",0))),_xlfn.XLOOKUP($H76,'Customized Embodied EF'!$B:$B,'Customized Embodied EF'!$E:$E,\"error\",0)),\"Factor error\"),\"Factor error\")","v":0},{"$f":"IFERROR(IF(OR($H76='Customized Embodied EF'!$B:$B),SUMIFS(O:O,$F:$F,$H76,$C:$C,\"G4.\")*IF($F76=\"Customized\",IF(_xlfn.XLOOKUP($H76,'Customized Embodied EF'!$B:$B,'Customized Embodied EF'!H:H,\"error\",0)=\"\",\"Factor error\",(_xlfn.XLOOKUP($H76,'Customized Embodied EF'!$B:$B,'Customized Embodied EF'!H:H,\"error\",0))),_xlfn.XLOOKUP($H76,'Customized Embodied EF'!$B:$B,'Customized Embodied EF'!$E:$E,\"error\",0)),\"Factor error\"),\"Factor error\")","v":0},{"$f":"IFERROR(IF(OR($H76='Customized Embodied EF'!$B:$B),SUMIFS(P:P,$F:$F,$H76,$C:$C,\"G4.\")*IF($F76=\"Customized\",IF(_xlfn.XLOOKUP($H76,'Customized Embodied EF'!$B:$B,'Customized Embodied EF'!I:I,\"error\",0)=\"\",\"Factor error\",(_xlfn.XLOOKUP($H76,'Customized Embodied EF'!$B:$B,'Customized Embodied EF'!I:I,\"error\",0))),_xlfn.XLOOKUP($H76,'Customized Embodied EF'!$B:$B,'Customized Embodied EF'!$E:$E,\"error\",0)),\"Factor error\"),\"Factor error\")","v":0},{"$f":"IFERROR(IF(OR($H76='Customized Embodied EF'!$B:$B),SUMIFS(Q:Q,$F:$F,$H76,$C:$C,\"G4.\")*IF($F76=\"Customized\",IF(_xlfn.XLOOKUP($H76,'Customized Embodied EF'!$B:$B,'Customized Embodied EF'!J:J,\"error\",0)=\"\",\"Factor error\",(_xlfn.XLOOKUP($H76,'Customized Embodied EF'!$B:$B,'Customized Embodied EF'!J:J,\"error\",0))),_xlfn.XLOOKUP($H76,'Customized Embodied EF'!$B:$B,'Customized Embodied EF'!$E:$E,\"error\",0)),\"Factor error\"),\"Factor error\")","v":0},{"$f":"IFERROR(IF(OR($H76='Customized Embodied EF'!$B:$B),SUMIFS(R:R,$F:$F,$H76,$C:$C,\"G4.\")*IF($F76=\"Customized\",IF(_xlfn.XLOOKUP($H76,'Customized Embodied EF'!$B:$B,'Customized Embodied EF'!K:K,\"error\",0)=\"\",\"Factor error\",(_xlfn.XLOOKUP($H76,'Customized Embodied EF'!$B:$B,'Customized Embodied EF'!K:K,\"error\",0))),_xlfn.XLOOKUP($H76,'Customized Embodied EF'!$B:$B,'Customized Embodied EF'!$E:$E,\"error\",0)),\"Factor error\"),\"Factor error\")","v":0},{"$f":"IFERROR(IF(OR($H76='Customized Embodied EF'!$B:$B),SUMIFS(S:S,$F:$F,$H76,$C:$C,\"G4.\")*IF($F76=\"Customized\",IF(_xlfn.XLOOKUP($H76,'Customized Embodied EF'!$B:$B,'Customized Embodied EF'!L:L,\"error\",0)=\"\",\"Factor error\",(_xlfn.XLOOKUP($H76,'Customized Embodied EF'!$B:$B,'Customized Embodied EF'!L:L,\"error\",0))),_xlfn.XLOOKUP($H76,'Customized Embodied EF'!$B:$B,'Customized Embodied EF'!$E:$E,\"error\",0)),\"Factor error\"),\"Factor error\")","v":0},{"$f":"IFERROR(IF(OR($H76='Customized Embodied EF'!$B:$B),SUMIFS(T:T,$F:$F,$H76,$C:$C,\"G4.\")*IF($F76=\"Customized\",IF(_xlfn.XLOOKUP($H76,'Customized Embodied EF'!$B:$B,'Customized Embodied EF'!M:M,\"error\",0)=\"\",\"Factor error\",(_xlfn.XLOOKUP($H76,'Customized Embodied EF'!$B:$B,'Customized Embodied EF'!M:M,\"error\",0))),_xlfn.XLOOKUP($H76,'Customized Embodied EF'!$B:$B,'Customized Embodied EF'!$E:$E,\"error\",0)),\"Factor error\"),\"Factor error\")","v":0},{"$f":"IFERROR(IF(OR($H76='Customized Embodied EF'!$B:$B),SUMIFS(U:U,$F:$F,$H76,$C:$C,\"G4.\")*IF($F76=\"Customized\",IF(_xlfn.XLOOKUP($H76,'Customized Embodied EF'!$B:$B,'Customized Embodied EF'!N:N,\"error\",0)=\"\",\"Factor error\",(_xlfn.XLOOKUP($H76,'Customized Embodied EF'!$B:$B,'Customized Embodied EF'!N:N,\"error\",0))),_xlfn.XLOOKUP($H76,'Customized Embodied EF'!$B:$B,'Customized Embodied EF'!$E:$E,\"error\",0)),\"Factor error\"),\"Factor error\")","v":0},{"$f":"IFERROR(IF(OR($H76='Customized Embodied EF'!$B:$B),SUMIFS(V:V,$F:$F,$H76,$C:$C,\"G4.\")*IF($F76=\"Customized\",IF(_xlfn.XLOOKUP($H76,'Customized Embodied EF'!$B:$B,'Customized Embodied EF'!O:O,\"error\",0)=\"\",\"Factor error\",(_xlfn.XLOOKUP($H76,'Customized Embodied EF'!$B:$B,'Customized Embodied EF'!O:O,\"error\",0))),_xlfn.XLOOKUP($H76,'Customized Embodied EF'!$B:$B,'Customized Embodied EF'!$E:$E,\"error\",0)),\"Factor error\"),\"Factor error\")","v":0},{"$f":"IFERROR(IF(OR($H76='Customized Embodied EF'!$B:$B),SUMIFS(W:W,$F:$F,$H76,$C:$C,\"G4.\")*IF($F76=\"Customized\",IF(_xlfn.XLOOKUP($H76,'Customized Embodied EF'!$B:$B,'Customized Embodied EF'!P:P,\"error\",0)=\"\",\"Factor error\",(_xlfn.XLOOKUP($H76,'Customized Embodied EF'!$B:$B,'Customized Embodied EF'!P:P,\"error\",0))),_xlfn.XLOOKUP($H76,'Customized Embodied EF'!$B:$B,'Customized Embodied EF'!$E:$E,\"error\",0)),\"Factor error\"),\"Factor error\")","v":0},{"$f":"IFERROR(IF(OR($H76='Customized Embodied EF'!$B:$B),SUMIFS(X:X,$F:$F,$H76,$C:$C,\"G4.\")*IF($F76=\"Customized\",IF(_xlfn.XLOOKUP($H76,'Customized Embodied EF'!$B:$B,'Customized Embodied EF'!Q:Q,\"error\",0)=\"\",\"Factor error\",(_xlfn.XLOOKUP($H76,'Customized Embodied EF'!$B:$B,'Customized Embodied EF'!Q:Q,\"error\",0))),_xlfn.XLOOKUP($H76,'Customized Embodied EF'!$B:$B,'Customized Embodied EF'!$E:$E,\"error\",0)),\"Factor error\"),\"Factor error\")","v":0},{"$f":"IFERROR(IF(OR($H76='Customized Embodied EF'!$B:$B),SUMIFS(Y:Y,$F:$F,$H76,$C:$C,\"G4.\")*IF($F76=\"Customized\",IF(_xlfn.XLOOKUP($H76,'Customized Embodied EF'!$B:$B,'Customized Embodied EF'!R:R,\"error\",0)=\"\",\"Factor error\",(_xlfn.XLOOKUP($H76,'Customized Embodied EF'!$B:$B,'Customized Embodied EF'!R:R,\"error\",0))),_xlfn.XLOOKUP($H76,'Customized Embodied EF'!$B:$B,'Customized Embodied EF'!$E:$E,\"error\",0)),\"Factor error\"),\"Factor error\")","v":0},{"$f":"IFERROR(IF(OR($H76='Customized Embodied EF'!$B:$B),SUMIFS(Z:Z,$F:$F,$H76,$C:$C,\"G4.\")*IF($F76=\"Customized\",IF(_xlfn.XLOOKUP($H76,'Customized Embodied EF'!$B:$B,'Customized Embodied EF'!S:S,\"error\",0)=\"\",\"Factor error\",(_xlfn.XLOOKUP($H76,'Customized Embodied EF'!$B:$B,'Customized Embodied EF'!S:S,\"error\",0))),_xlfn.XLOOKUP($H76,'Customized Embodied EF'!$B:$B,'Customized Embodied EF'!$E:$E,\"error\",0)),\"Factor error\"),\"Factor error\")","v":0},{"$f":"IFERROR(IF(OR($H76='Customized Embodied EF'!$B:$B),SUMIFS(AA:AA,$F:$F,$H76,$C:$C,\"G4.\")*IF($F76=\"Customized\",IF(_xlfn.XLOOKUP($H76,'Customized Embodied EF'!$B:$B,'Customized Embodied EF'!T:T,\"error\",0)=\"\",\"Factor error\",(_xlfn.XLOOKUP($H76,'Customized Embodied EF'!$B:$B,'Customized Embodied EF'!T:T,\"error\",0))),_xlfn.XLOOKUP($H76,'Customized Embodied EF'!$B:$B,'Customized Embodied EF'!$E:$E,\"error\",0)),\"Factor error\"),\"Factor error\")","v":0},{"$f":"IFERROR(IF(OR($H76='Customized Embodied EF'!$B:$B),SUMIFS(AB:AB,$F:$F,$H76,$C:$C,\"G4.\")*IF($F76=\"Customized\",IF(_xlfn.XLOOKUP($H76,'Customized Embodied EF'!$B:$B,'Customized Embodied EF'!U:U,\"error\",0)=\"\",\"Factor error\",(_xlfn.XLOOKUP($H76,'Customized Embodied EF'!$B:$B,'Customized Embodied EF'!U:U,\"error\",0))),_xlfn.XLOOKUP($H76,'Customized Embodied EF'!$B:$B,'Customized Embodied EF'!$E:$E,\"error\",0)),\"Factor error\"),\"Factor error\")","v":0},{"$f":"IFERROR(IF(OR($H76='Customized Embodied EF'!$B:$B),SUMIFS(AC:AC,$F:$F,$H76,$C:$C,\"G4.\")*IF($F76=\"Customized\",IF(_xlfn.XLOOKUP($H76,'Customized Embodied EF'!$B:$B,'Customized Embodied EF'!V:V,\"error\",0)=\"\",\"Factor error\",(_xlfn.XLOOKUP($H76,'Customized Embodied EF'!$B:$B,'Customized Embodied EF'!V:V,\"error\",0))),_xlfn.XLOOKUP($H76,'Customized Embodied EF'!$B:$B,'Customized Embodied EF'!$E:$E,\"error\",0)),\"Factor error\"),\"Factor error\")","v":0},{"$f":"IFERROR(IF(OR($H76='Customized Embodied EF'!$B:$B),SUMIFS(AD:AD,$F:$F,$H76,$C:$C,\"G4.\")*IF($F76=\"Customized\",IF(_xlfn.XLOOKUP($H76,'Customized Embodied EF'!$B:$B,'Customized Embodied EF'!W:W,\"error\",0)=\"\",\"Factor error\",(_xlfn.XLOOKUP($H76,'Customized Embodied EF'!$B:$B,'Customized Embodied EF'!W:W,\"error\",0))),_xlfn.XLOOKUP($H76,'Customized Embodied EF'!$B:$B,'Customized Embodied EF'!$E:$E,\"error\",0)),\"Factor error\"),\"Factor error\")","v":0}]
[null,null,null,{"$f":"D76","v":"A1.1.1"},".8",null,null,"Ground granulated blast-furnace slag (GGBS)",null,"[t CO2e/reporting period]","",null,{"$f":"IFERROR(IF(OR($H77='Customized Embodied EF'!$B:$B),SUMIFS(M:M,$F:$F,$H77,$C:$C,\"G4.\")*IF($F77=\"Customized\",IF(_xlfn.XLOOKUP($H77,'Customized Embodied EF'!$B:$B,'Customized Embodied EF'!F:F,\"error\",0)=\"\",\"Factor error\",(_xlfn.XLOOKUP($H77,'Customized Embodied EF'!$B:$B,'Customized Embodied EF'!F:F,\"error\",0))),_xlfn.XLOOKUP($H77,'Customized Embodied EF'!$B:$B,'Customized Embodied EF'!$E:$E,\"error\",0)),\"Factor error\"),\"Factor error\")","v":0},{"$f":"IFERROR(IF(OR($H77='Customized Embodied EF'!$B:$B),SUMIFS(N:N,$F:$F,$H77,$C:$C,\"G4.\")*IF($F77=\"Customized\",IF(_xlfn.XLOOKUP($H77,'Customized Embodied EF'!$B:$B,'Customized Embodied EF'!G:G,\"error\",0)=\"\",\"Factor error\",(_xlfn.XLOOKUP($H77,'Customized Embodied EF'!$B:$B,'Customized Embodied EF'!G:G,\"error\",0))),_xlfn.XLOOKUP($H77,'Customized Embodied EF'!$B:$B,'Customized Embodied EF'!$E:$E,\"error\",0)),\"Factor error\"),\"Factor error\")","v":0},{"$f":"IFERROR(IF(OR($H77='Customized Embodied EF'!$B:$B),SUMIFS(O:O,$F:$F,$H77,$C:$C,\"G4.\")*IF($F77=\"Customized\",IF(_xlfn.XLOOKUP($H77,'Customized Embodied EF'!$B:$B,'Customized Embodied EF'!H:H,\"error\",0)=\"\",\"Factor error\",(_xlfn.XLOOKUP($H77,'Customized Embodied EF'!$B:$B,'Customized Embodied EF'!H:H,\"error\",0))),_xlfn.XLOOKUP($H77,'Customized Embodied EF'!$B:$B,'Customized Embodied EF'!$E:$E,\"error\",0)),\"Factor error\"),\"Factor error\")","v":0},{"$f":"IFERROR(IF(OR($H77='Customized Embodied EF'!$B:$B),SUMIFS(P:P,$F:$F,$H77,$C:$C,\"G4.\")*IF($F77=\"Customized\",IF(_xlfn.XLOOKUP($H77,'Customized Embodied EF'!$B:$B,'Customized Embodied EF'!I:I,\"error\",0)=\"\",\"Factor error\",(_xlfn.XLOOKUP($H77,'Customized Embodied EF'!$B:$B,'Customized Embodied EF'!I:I,\"error\",0))),_xlfn.XLOOKUP($H77,'Customized Embodied EF'!$B:$B,'Customized Embodied EF'!$E:$E,\"error\",0)),\"Factor error\"),\"Factor error\")","v":0},{"$f":"IFERROR(IF(OR($H77='Customized Embodied EF'!$B:$B),SUMIFS(Q:Q,$F:$F,$H77,$C:$C,\"G4.\")*IF($F77=\"Customized\",IF(_xlfn.XLOOKUP($H77,'Customized Embodied EF'!$B:$B,'Customized Embodied EF'!J:J,\"error\",0)=\"\",\"Factor error\",(_xlfn.XLOOKUP($H77,'Customized Embodied EF'!$B:$B,'Customized Embodied EF'!J:J,\"error\",0))),_xlfn.XLOOKUP($H77,'Customized Embodied EF'!$B:$B,'Customized Embodied EF'!$E:$E,\"error\",0)),\"Factor error\"),\"Factor error\")","v":0},{"$f":"IFERROR(IF(OR($H77='Customized Embodied EF'!$B:$B),SUMIFS(R:R,$F:$F,$H77,$C:$C,\"G4.\")*IF($F77=\"Customized\",IF(_xlfn.XLOOKUP($H77,'Customized Embodied EF'!$B:$B,'Customized Embodied EF'!K:K,\"error\",0)=\"\",\"Factor error\",(_xlfn.XLOOKUP($H77,'Customized Embodied EF'!$B:$B,'Customized Embodied EF'!K:K,\"error\",0))),_xlfn.XLOOKUP($H77,'Customized Embodied EF'!$B:$B,'Customized Embodied EF'!$E:$E,\"error\",0)),\"Factor error\"),\"Factor error\")","v":0},{"$f":"IFERROR(IF(OR($H77='Customized Embodied EF'!$B:$B),SUMIFS(S:S,$F:$F,$H77,$C:$C,\"G4.\")*IF($F77=\"Customized\",IF(_xlfn.XLOOKUP($H77,'Customized Embodied EF'!$B:$B,'Customized Embodied EF'!L:L,\"error\",0)=\"\",\"Factor error\",(_xlfn.XLOOKUP($H77,'Customized Embodied EF'!$B:$B,'Customized Embodied EF'!L:L,\"error\",0))),_xlfn.XLOOKUP($H77,'Customized Embodied EF'!$B:$B,'Customized Embodied EF'!$E:$E,\"error\",0)),\"Factor error\"),\"Factor error\")","v":0},{"$f":"IFERROR(IF(OR($H77='Customized Embodied EF'!$B:$B),SUMIFS(T:T,$F:$F,$H77,$C:$C,\"G4.\")*IF($F77=\"Customized\",IF(_xlfn.XLOOKUP($H77,'Customized Embodied EF'!$B:$B,'Customized Embodied EF'!M:M,\"error\",0)=\"\",\"Factor error\",(_xlfn.XLOOKUP($H77,'Customized Embodied EF'!$B:$B,'Customized Embodied EF'!M:M,\"error\",0))),_xlfn.XLOOKUP($H77,'Customized Embodied EF'!$B:$B,'Customized Embodied EF'!$E:$E,\"error\",0)),\"Factor error\"),\"Factor error\")","v":0},{"$f":"IFERROR(IF(OR($H77='Customized Embodied EF'!$B:$B),SUMIFS(U:U,$F:$F,$H77,$C:$C,\"G4.\")*IF($F77=\"Customized\",IF(_xlfn.XLOOKUP($H77,'Customized Embodied EF'!$B:$B,'Customized Embodied EF'!N:N,\"error\",0)=\"\",\"Factor error\",(_xlfn.XLOOKUP($H77,'Customized Embodied EF'!$B:$B,'Customized Embodied EF'!N:N,\"error\",0))),_xlfn.XLOOKUP($H77,'Customized Embodied EF'!$B:$B,'Customized Embodied EF'!$E:$E,\"error\",0)),\"Factor error\"),\"Factor error\")","v":0},{"$f":"IFERROR(IF(OR($H77='Customized Embodied EF'!$B:$B),SUMIFS(V:V,$F:$F,$H77,$C:$C,\"G4.\")*IF($F77=\"Customized\",IF(_xlfn.XLOOKUP($H77,'Customized Embodied EF'!$B:$B,'Customized Embodied EF'!O:O,\"error\",0)=\"\",\"Factor error\",(_xlfn.XLOOKUP($H77,'Customized Embodied EF'!$B:$B,'Customized Embodied EF'!O:O,\"error\",0))),_xlfn.XLOOKUP($H77,'Customized Embodied EF'!$B:$B,'Customized Embodied EF'!$E:$E,\"error\",0)),\"Factor error\"),\"Factor error\")","v":0},{"$f":"IFERROR(IF(OR($H77='Customized Embodied EF'!$B:$B),SUMIFS(W:W,$F:$F,$H77,$C:$C,\"G4.\")*IF($F77=\"Customized\",IF(_xlfn.XLOOKUP($H77,'Customized Embodied EF'!$B:$B,'Customized Embodied EF'!P:P,\"error\",0)=\"\",\"Factor error\",(_xlfn.XLOOKUP($H77,'Customized Embodied EF'!$B:$B,'Customized Embodied EF'!P:P,\"error\",0))),_xlfn.XLOOKUP($H77,'Customized Embodied EF'!$B:$B,'Customized Embodied EF'!$E:$E,\"error\",0)),\"Factor error\"),\"Factor error\")","v":0},{"$f":"IFERROR(IF(OR($H77='Customized Embodied EF'!$B:$B),SUMIFS(X:X,$F:$F,$H77,$C:$C,\"G4.\")*IF($F77=\"Customized\",IF(_xlfn.XLOOKUP($H77,'Customized Embodied EF'!$B:$B,'Customized Embodied EF'!Q:Q,\"error\",0)=\"\",\"Factor error\",(_xlfn.XLOOKUP($H77,'Customized Embodied EF'!$B:$B,'Customized Embodied EF'!Q:Q,\"error\",0))),_xlfn.XLOOKUP($H77,'Customized Embodied EF'!$B:$B,'Customized Embodied EF'!$E:$E,\"error\",0)),\"Factor error\"),\"Factor error\")","v":0},{"$f":"IFERROR(IF(OR($H77='Customized Embodied EF'!$B:$B),SUMIFS(Y:Y,$F:$F,$H77,$C:$C,\"G4.\")*IF($F77=\"Customized\",IF(_xlfn.XLOOKUP($H77,'Customized Embodied EF'!$B:$B,'Customized Embodied EF'!R:R,\"error\",0)=\"\",\"Factor error\",(_xlfn.XLOOKUP($H77,'Customized Embodied EF'!$B:$B,'Customized Embodied EF'!R:R,\"error\",0))),_xlfn.XLOOKUP($H77,'Customized Embodied EF'!$B:$B,'Customized Embodied EF'!$E:$E,\"error\",0)),\"Factor error\"),\"Factor error\")","v":0},{"$f":"IFERROR(IF(OR($H77='Customized Embodied EF'!$B:$B),SUMIFS(Z:Z,$F:$F,$H77,$C:$C,\"G4.\")*IF($F77=\"Customized\",IF(_xlfn.XLOOKUP($H77,'Customized Embodied EF'!$B:$B,'Customized Embodied EF'!S:S,\"error\",0)=\"\",\"Factor error\",(_xlfn.XLOOKUP($H77,'Customized Embodied EF'!$B:$B,'Customized Embodied EF'!S:S,\"error\",0))),_xlfn.XLOOKUP($H77,'Customized Embodied EF'!$B:$B,'Customized Embodied EF'!$E:$E,\"error\",0)),\"Factor error\"),\"Factor error\")","v":0},{"$f":"IFERROR(IF(OR($H77='Customized Embodied EF'!$B:$B),SUMIFS(AA:AA,$F:$F,$H77,$C:$C,\"G4.\")*IF($F77=\"Customized\",IF(_xlfn.XLOOKUP($H77,'Customized Embodied EF'!$B:$B,'Customized Embodied EF'!T:T,\"error\",0)=\"\",\"Factor error\",(_xlfn.XLOOKUP($H77,'Customized Embodied EF'!$B:$B,'Customized Embodied EF'!T:T,\"error\",0))),_xlfn.XLOOKUP($H77,'Customized Embodied EF'!$B:$B,'Customized Embodied EF'!$E:$E,\"error\",0)),\"Factor error\"),\"Factor error\")","v":0},{"$f":"IFERROR(IF(OR($H77='Customized Embodied EF'!$B:$B),SUMIFS(AB:AB,$F:$F,$H77,$C:$C,\"G4.\")*IF($F77=\"Customized\",IF(_xlfn.XLOOKUP($H77,'Customized Embodied EF'!$B:$B,'Customized Embodied EF'!U:U,\"error\",0)=\"\",\"Factor error\",(_xlfn.XLOOKUP($H77,'Customized Embodied EF'!$B:$B,'Customized Embodied EF'!U:U,\"error\",0))),_xlfn.XLOOKUP($H77,'Customized Embodied EF'!$B:$B,'Customized Embodied EF'!$E:$E,\"error\",0)),\"Factor error\"),\"Factor error\")","v":0},{"$f":"IFERROR(IF(OR($H77='Customized Embodied EF'!$B:$B),SUMIFS(AC:AC,$F:$F,$H77,$C:$C,\"G4.\")*IF($F77=\"Customized\",IF(_xlfn.XLOOKUP($H77,'Customized Embodied EF'!$B:$B,'Customized Embodied EF'!V:V,\"error\",0)=\"\",\"Factor error\",(_xlfn.XLOOKUP($H77,'Customized Embodied EF'!$B:$B,'Customized Embodied EF'!V:V,\"error\",0))),_xlfn.XLOOKUP($H77,'Customized Embodied EF'!$B:$B,'Customized Embodied EF'!$E:$E,\"error\",0)),\"Factor error\"),\"Factor error\")","v":0},{"$f":"IFERROR(IF(OR($H77='Customized Embodied EF'!$B:$B),SUMIFS(AD:AD,$F:$F,$H77,$C:$C,\"G4.\")*IF($F77=\"Customized\",IF(_xlfn.XLOOKUP($H77,'Customized Embodied EF'!$B:$B,'Customized Embodied EF'!W:W,\"error\",0)=\"\",\"Factor error\",(_xlfn.XLOOKUP($H77,'Customized Embodied EF'!$B:$B,'Customized Embodied EF'!W:W,\"error\",0))),_xlfn.XLOOKUP($H77,'Customized Embodied EF'!$B:$B,'Customized Embodied EF'!$E:$E,\"error\",0)),\"Factor error\"),\"Factor error\")","v":0}]
[null,null,null,"A1.1.1",".9",null,null,"Silica fume (SF)",null,"[t CO2e/reporting period]","",null,{"$f":"IFERROR(IF(OR($H78='Customized Embodied EF'!$B:$B),SUMIFS(M:M,$F:$F,$H78,$C:$C,\"G4.\")*IF($F78=\"Customized\",IF(_xlfn.XLOOKUP($H78,'Customized Embodied EF'!$B:$B,'Customized Embodied EF'!F:F,\"error\",0)=\"\",\"Factor error\",(_xlfn.XLOOKUP($H78,'Customized Embodied EF'!$B:$B,'Customized Embodied EF'!F:F,\"error\",0))),_xlfn.XLOOKUP($H78,'Customized Embodied EF'!$B:$B,'Customized Embodied EF'!$E:$E,\"error\",0)),\"Factor error\"),\"Factor error\")","v":0},{"$f":"IFERROR(IF(OR($H78='Customized Embodied EF'!$B:$B),SUMIFS(N:N,$F:$F,$H78,$C:$C,\"G4.\")*IF($F78=\"Customized\",IF(_xlfn.XLOOKUP($H78,'Customized Embodied EF'!$B:$B,'Customized Embodied EF'!G:G,\"error\",0)=\"\",\"Factor error\",(_xlfn.XLOOKUP($H78,'Customized Embodied EF'!$B:$B,'Customized Embodied EF'!G:G,\"error\",0))),_xlfn.XLOOKUP($H78,'Customized Embodied EF'!$B:$B,'Customized Embodied EF'!$E:$E,\"error\",0)),\"Factor error\"),\"Factor error\")","v":0},{"$f":"IFERROR(IF(OR($H78='Customized Embodied EF'!$B:$B),SUMIFS(O:O,$F:$F,$H78,$C:$C,\"G4.\")*IF($F78=\"Customized\",IF(_xlfn.XLOOKUP($H78,'Customized Embodied EF'!$B:$B,'Customized Embodied EF'!H:H,\"error\",0)=\"\",\"Factor error\",(_xlfn.XLOOKUP($H78,'Customized Embodied EF'!$B:$B,'Customized Embodied EF'!H:H,\"error\",0))),_xlfn.XLOOKUP($H78,'Customized Embodied EF'!$B:$B,'Customized Embodied EF'!$E:$E,\"error\",0)),\"Factor error\"),\"Factor error\")","v":0},{"$f":"IFERROR(IF(OR($H78='Customized Embodied EF'!$B:$B),SUMIFS(P:P,$F:$F,$H78,$C:$C,\"G4.\")*IF($F78=\"Customized\",IF(_xlfn.XLOOKUP($H78,'Customized Embodied EF'!$B:$B,'Customized Embodied EF'!I:I,\"error\",0)=\"\",\"Factor error\",(_xlfn.XLOOKUP($H78,'Customized Embodied EF'!$B:$B,'Customized Embodied EF'!I:I,\"error\",0))),_xlfn.XLOOKUP($H78,'Customized Embodied EF'!$B:$B,'Customized Embodied EF'!$E:$E,\"error\",0)),\"Factor error\"),\"Factor error\")","v":0},{"$f":"IFERROR(IF(OR($H78='Customized Embodied EF'!$B:$B),SUMIFS(Q:Q,$F:$F,$H78,$C:$C,\"G4.\")*IF($F78=\"Customized\",IF(_xlfn.XLOOKUP($H78,'Customized Embodied EF'!$B:$B,'Customized Embodied EF'!J:J,\"error\",0)=\"\",\"Factor error\",(_xlfn.XLOOKUP($H78,'Customized Embodied EF'!$B:$B,'Customized Embodied EF'!J:J,\"error\",0))),_xlfn.XLOOKUP($H78,'Customized Embodied EF'!$B:$B,'Customized Embodied EF'!$E:$E,\"error\",0)),\"Factor error\"),\"Factor error\")","v":0},{"$f":"IFERROR(IF(OR($H78='Customized Embodied EF'!$B:$B),SUMIFS(R:R,$F:$F,$H78,$C:$C,\"G4.\")*IF($F78=\"Customized\",IF(_xlfn.XLOOKUP($H78,'Customized Embodied EF'!$B:$B,'Customized Embodied EF'!K:K,\"error\",0)=\"\",\"Factor error\",(_xlfn.XLOOKUP($H78,'Customized Embodied EF'!$B:$B,'Customized Embodied EF'!K:K,\"error\",0))),_xlfn.XLOOKUP($H78,'Customized Embodied EF'!$B:$B,'Customized Embodied EF'!$E:$E,\"error\",0)),\"Factor error\"),\"Factor error\")","v":0},{"$f":"IFERROR(IF(OR($H78='Customized Embodied EF'!$B:$B),SUMIFS(S:S,$F:$F,$H78,$C:$C,\"G4.\")*IF($F78=\"Customized\",IF(_xlfn.XLOOKUP($H78,'Customized Embodied EF'!$B:$B,'Customized Embodied EF'!L:L,\"error\",0)=\"\",\"Factor error\",(_xlfn.XLOOKUP($H78,'Customized Embodied EF'!$B:$B,'Customized Embodied EF'!L:L,\"error\",0))),_xlfn.XLOOKUP($H78,'Customized Embodied EF'!$B:$B,'Customized Embodied EF'!$E:$E,\"error\",0)),\"Factor error\"),\"Factor error\")","v":0},{"$f":"IFERROR(IF(OR($H78='Customized Embodied EF'!$B:$B),SUMIFS(T:T,$F:$F,$H78,$C:$C,\"G4.\")*IF($F78=\"Customized\",IF(_xlfn.XLOOKUP($H78,'Customized Embodied EF'!$B:$B,'Customized Embodied EF'!M:M,\"error\",0)=\"\",\"Factor error\",(_xlfn.XLOOKUP($H78,'Customized Embodied EF'!$B:$B,'Customized Embodied EF'!M:M,\"error\",0))),_xlfn.XLOOKUP($H78,'Customized Embodied EF'!$B:$B,'Customized Embodied EF'!$E:$E,\"error\",0)),\"Factor error\"),\"Factor error\")","v":0},{"$f":"IFERROR(IF(OR($H78='Customized Embodied EF'!$B:$B),SUMIFS(U:U,$F:$F,$H78,$C:$C,\"G4.\")*IF($F78=\"Customized\",IF(_xlfn.XLOOKUP($H78,'Customized Embodied EF'!$B:$B,'Customized Embodied EF'!N:N,\"error\",0)=\"\",\"Factor error\",(_xlfn.XLOOKUP($H78,'Customized Embodied EF'!$B:$B,'Customized Embodied EF'!N:N,\"error\",0))),_xlfn.XLOOKUP($H78,'Customized Embodied EF'!$B:$B,'Customized Embodied EF'!$E:$E,\"error\",0)),\"Factor error\"),\"Factor error\")","v":0},{"$f":"IFERROR(IF(OR($H78='Customized Embodied EF'!$B:$B),SUMIFS(V:V,$F:$F,$H78,$C:$C,\"G4.\")*IF($F78=\"Customized\",IF(_xlfn.XLOOKUP($H78,'Customized Embodied EF'!$B:$B,'Customized Embodied EF'!O:O,\"error\",0)=\"\",\"Factor error\",(_xlfn.XLOOKUP($H78,'Customized Embodied EF'!$B:$B,'Customized Embodied EF'!O:O,\"error\",0))),_xlfn.XLOOKUP($H78,'Customized Embodied EF'!$B:$B,'Customized Embodied EF'!$E:$E,\"error\",0)),\"Factor error\"),\"Factor error\")","v":0},{"$f":"IFERROR(IF(OR($H78='Customized Embodied EF'!$B:$B),SUMIFS(W:W,$F:$F,$H78,$C:$C,\"G4.\")*IF($F78=\"Customized\",IF(_xlfn.XLOOKUP($H78,'Customized Embodied EF'!$B:$B,'Customized Embodied EF'!P:P,\"error\",0)=\"\",\"Factor error\",(_xlfn.XLOOKUP($H78,'Customized Embodied EF'!$B:$B,'Customized Embodied EF'!P:P,\"error\",0))),_xlfn.XLOOKUP($H78,'Customized Embodied EF'!$B:$B,'Customized Embodied EF'!$E:$E,\"error\",0)),\"Factor error\"),\"Factor error\")","v":0},{"$f":"IFERROR(IF(OR($H78='Customized Embodied EF'!$B:$B),SUMIFS(X:X,$F:$F,$H78,$C:$C,\"G4.\")*IF($F78=\"Customized\",IF(_xlfn.XLOOKUP($H78,'Customized Embodied EF'!$B:$B,'Customized Embodied EF'!Q:Q,\"error\",0)=\"\",\"Factor error\",(_xlfn.XLOOKUP($H78,'Customized Embodied EF'!$B:$B,'Customized Embodied EF'!Q:Q,\"error\",0))),_xlfn.XLOOKUP($H78,'Customized Embodied EF'!$B:$B,'Customized Embodied EF'!$E:$E,\"error\",0)),\"Factor error\"),\"Factor error\")","v":0},{"$f":"IFERROR(IF(OR($H78='Customized Embodied EF'!$B:$B),SUMIFS(Y:Y,$F:$F,$H78,$C:$C,\"G4.\")*IF($F78=\"Customized\",IF(_xlfn.XLOOKUP($H78,'Customized Embodied EF'!$B:$B,'Customized Embodied EF'!R:R,\"error\",0)=\"\",\"Factor error\",(_xlfn.XLOOKUP($H78,'Customized Embodied EF'!$B:$B,'Customized Embodied EF'!R:R,\"error\",0))),_xlfn.XLOOKUP($H78,'Customized Embodied EF'!$B:$B,'Customized Embodied EF'!$E:$E,\"error\",0)),\"Factor error\"),\"Factor error\")","v":0},{"$f":"IFERROR(IF(OR($H78='Customized Embodied EF'!$B:$B),SUMIFS(Z:Z,$F:$F,$H78,$C:$C,\"G4.\")*IF($F78=\"Customized\",IF(_xlfn.XLOOKUP($H78,'Customized Embodied EF'!$B:$B,'Customized Embodied EF'!S:S,\"error\",0)=\"\",\"Factor error\",(_xlfn.XLOOKUP($H78,'Customized Embodied EF'!$B:$B,'Customized Embodied EF'!S:S,\"error\",0))),_xlfn.XLOOKUP($H78,'Customized Embodied EF'!$B:$B,'Customized Embodied EF'!$E:$E,\"error\",0)),\"Factor error\"),\"Factor error\")","v":0},{"$f":"IFERROR(IF(OR($H78='Customized Embodied EF'!$B:$B),SUMIFS(AA:AA,$F:$F,$H78,$C:$C,\"G4.\")*IF($F78=\"Customized\",IF(_xlfn.XLOOKUP($H78,'Customized Embodied EF'!$B:$B,'Customized Embodied EF'!T:T,\"error\",0)=\"\",\"Factor error\",(_xlfn.XLOOKUP($H78,'Customized Embodied EF'!$B:$B,'Customized Embodied EF'!T:T,\"error\",0))),_xlfn.XLOOKUP($H78,'Customized Embodied EF'!$B:$B,'Customized Embodied EF'!$E:$E,\"error\",0)),\"Factor error\"),\"Factor error\")","v":0},{"$f":"IFERROR(IF(OR($H78='Customized Embodied EF'!$B:$B),SUMIFS(AB:AB,$F:$F,$H78,$C:$C,\"G4.\")*IF($F78=\"Customized\",IF(_xlfn.XLOOKUP($H78,'Customized Embodied EF'!$B:$B,'Customized Embodied EF'!U:U,\"error\",0)=\"\",\"Factor error\",(_xlfn.XLOOKUP($H78,'Customized Embodied EF'!$B:$B,'Customized Embodied EF'!U:U,\"error\",0))),_xlfn.XLOOKUP($H78,'Customized Embodied EF'!$B:$B,'Customized Embodied EF'!$E:$E,\"error\",0)),\"Factor error\"),\"Factor error\")","v":0},{"$f":"IFERROR(IF(OR($H78='Customized Embodied EF'!$B:$B),SUMIFS(AC:AC,$F:$F,$H78,$C:$C,\"G4.\")*IF($F78=\"Customized\",IF(_xlfn.XLOOKUP($H78,'Customized Embodied EF'!$B:$B,'Customized Embodied EF'!V:V,\"error\",0)=\"\",\"Factor error\",(_xlfn.XLOOKUP($H78,'Customized Embodied EF'!$B:$B,'Customized Embodied EF'!V:V,\"error\",0))),_xlfn.XLOOKUP($H78,'Customized Embodied EF'!$B:$B,'Customized Embodied EF'!$E:$E,\"error\",0)),\"Factor error\"),\"Factor error\")","v":0},{"$f":"IFERROR(IF(OR($H78='Customized Embodied EF'!$B:$B),SUMIFS(AD:AD,$F:$F,$H78,$C:$C,\"G4.\")*IF($F78=\"Customized\",IF(_xlfn.XLOOKUP($H78,'Customized Embodied EF'!$B:$B,'Customized Embodied EF'!W:W,\"error\",0)=\"\",\"Factor error\",(_xlfn.XLOOKUP($H78,'Customized Embodied EF'!$B:$B,'Customized Embodied EF'!W:W,\"error\",0))),_xlfn.XLOOKUP($H78,'Customized Embodied EF'!$B:$B,'Customized Embodied EF'!$E:$E,\"error\",0)),\"Factor error\"),\"Factor error\")","v":0}]
[null,null,null,"A1.1.1",".10",null,null,"Superplasticizer",null,"[t CO2e/reporting period]","",null,{"$f":"IFERROR(IF(OR($H79='Customized Embodied EF'!$B:$B),SUMIFS(M:M,$F:$F,$H79,$C:$C,\"G4.\")*IF($F79=\"Customized\",IF(_xlfn.XLOOKUP($H79,'Customized Embodied EF'!$B:$B,'Customized Embodied EF'!F:F,\"error\",0)=\"\",\"Factor error\",(_xlfn.XLOOKUP($H79,'Customized Embodied EF'!$B:$B,'Customized Embodied EF'!F:F,\"error\",0))),_xlfn.XLOOKUP($H79,'Customized Embodied EF'!$B:$B,'Customized Embodied EF'!$E:$E,\"error\",0)),\"Factor error\"),\"Factor error\")","v":0},{"$f":"IFERROR(IF(OR($H79='Customized Embodied EF'!$B:$B),SUMIFS(N:N,$F:$F,$H79,$C:$C,\"G4.\")*IF($F79=\"Customized\",IF(_xlfn.XLOOKUP($H79,'Customized Embodied EF'!$B:$B,'Customized Embodied EF'!G:G,\"error\",0)=\"\",\"Factor error\",(_xlfn.XLOOKUP($H79,'Customized Embodied EF'!$B:$B,'Customized Embodied EF'!G:G,\"error\",0))),_xlfn.XLOOKUP($H79,'Customized Embodied EF'!$B:$B,'Customized Embodied EF'!$E:$E,\"error\",0)),\"Factor error\"),\"Factor error\")","v":0},{"$f":"IFERROR(IF(OR($H79='Customized Embodied EF'!$B:$B),SUMIFS(O:O,$F:$F,$H79,$C:$C,\"G4.\")*IF($F79=\"Customized\",IF(_xlfn.XLOOKUP($H79,'Customized Embodied EF'!$B:$B,'Customized Embodied EF'!H:H,\"error\",0)=\"\",\"Factor error\",(_xlfn.XLOOKUP($H79,'Customized Embodied EF'!$B:$B,'Customized Embodied EF'!H:H,\"error\",0))),_xlfn.XLOOKUP($H79,'Customized Embodied EF'!$B:$B,'Customized Embodied EF'!$E:$E,\"error\",0)),\"Factor error\"),\"Factor error\")","v":0},{"$f":"IFERROR(IF(OR($H79='Customized Embodied EF'!$B:$B),SUMIFS(P:P,$F:$F,$H79,$C:$C,\"G4.\")*IF($F79=\"Customized\",IF(_xlfn.XLOOKUP($H79,'Customized Embodied EF'!$B:$B,'Customized Embodied EF'!I:I,\"error\",0)=\"\",\"Factor error\",(_xlfn.XLOOKUP($H79,'Customized Embodied EF'!$B:$B,'Customized Embodied EF'!I:I,\"error\",0))),_xlfn.XLOOKUP($H79,'Customized Embodied EF'!$B:$B,'Customized Embodied EF'!$E:$E,\"error\",0)),\"Factor error\"),\"Factor error\")","v":0},{"$f":"IFERROR(IF(OR($H79='Customized Embodied EF'!$B:$B),SUMIFS(Q:Q,$F:$F,$H79,$C:$C,\"G4.\")*IF($F79=\"Customized\",IF(_xlfn.XLOOKUP($H79,'Customized Embodied EF'!$B:$B,'Customized Embodied EF'!J:J,\"error\",0)=\"\",\"Factor error\",(_xlfn.XLOOKUP($H79,'Customized Embodied EF'!$B:$B,'Customized Embodied EF'!J:J,\"error\",0))),_xlfn.XLOOKUP($H79,'Customized Embodied EF'!$B:$B,'Customized Embodied EF'!$E:$E,\"error\",0)),\"Factor error\"),\"Factor error\")","v":0},{"$f":"IFERROR(IF(OR($H79='Customized Embodied EF'!$B:$B),SUMIFS(R:R,$F:$F,$H79,$C:$C,\"G4.\")*IF($F79=\"Customized\",IF(_xlfn.XLOOKUP($H79,'Customized Embodied EF'!$B:$B,'Customized Embodied EF'!K:K,\"error\",0)=\"\",\"Factor error\",(_xlfn.XLOOKUP($H79,'Customized Embodied EF'!$B:$B,'Customized Embodied EF'!K:K,\"error\",0))),_xlfn.XLOOKUP($H79,'Customized Embodied EF'!$B:$B,'Customized Embodied EF'!$E:$E,\"error\",0)),\"Factor error\"),\"Factor error\")","v":0},{"$f":"IFERROR(IF(OR($H79='Customized Embodied EF'!$B:$B),SUMIFS(S:S,$F:$F,$H79,$C:$C,\"G4.\")*IF($F79=\"Customized\",IF(_xlfn.XLOOKUP($H79,'Customized Embodied EF'!$B:$B,'Customized Embodied EF'!L:L,\"error\",0)=\"\",\"Factor error\",(_xlfn.XLOOKUP($H79,'Customized Embodied EF'!$B:$B,'Customized Embodied EF'!L:L,\"error\",0))),_xlfn.XLOOKUP($H79,'Customized Embodied EF'!$B:$B,'Customized Embodied EF'!$E:$E,\"error\",0)),\"Factor error\"),\"Factor error\")","v":0},{"$f":"IFERROR(IF(OR($H79='Customized Embodied EF'!$B:$B),SUMIFS(T:T,$F:$F,$H79,$C:$C,\"G4.\")*IF($F79=\"Customized\",IF(_xlfn.XLOOKUP($H79,'Customized Embodied EF'!$B:$B,'Customized Embodied EF'!M:M,\"error\",0)=\"\",\"Factor error\",(_xlfn.XLOOKUP($H79,'Customized Embodied EF'!$B:$B,'Customized Embodied EF'!M:M,\"error\",0))),_xlfn.XLOOKUP($H79,'Customized Embodied EF'!$B:$B,'Customized Embodied EF'!$E:$E,\"error\",0)),\"Factor error\"),\"Factor error\")","v":0},{"$f":"IFERROR(IF(OR($H79='Customized Embodied EF'!$B:$B),SUMIFS(U:U,$F:$F,$H79,$C:$C,\"G4.\")*IF($F79=\"Customized\",IF(_xlfn.XLOOKUP($H79,'Customized Embodied EF'!$B:$B,'Customized Embodied EF'!N:N,\"error\",0)=\"\",\"Factor error\",(_xlfn.XLOOKUP($H79,'Customized Embodied EF'!$B:$B,'Customized Embodied EF'!N:N,\"error\",0))),_xlfn.XLOOKUP($H79,'Customized Embodied EF'!$B:$B,'Customized Embodied EF'!$E:$E,\"error\",0)),\"Factor error\"),\"Factor error\")","v":0},{"$f":"IFERROR(IF(OR($H79='Customized Embodied EF'!$B:$B),SUMIFS(V:V,$F:$F,$H79,$C:$C,\"G4.\")*IF($F79=\"Customized\",IF(_xlfn.XLOOKUP($H79,'Customized Embodied EF'!$B:$B,'Customized Embodied EF'!O:O,\"error\",0)=\"\",\"Factor error\",(_xlfn.XLOOKUP($H79,'Customized Embodied EF'!$B:$B,'Customized Embodied EF'!O:O,\"error\",0))),_xlfn.XLOOKUP($H79,'Customized Embodied EF'!$B:$B,'Customized Embodied EF'!$E:$E,\"error\",0)),\"Factor error\"),\"Factor error\")","v":0},{"$f":"IFERROR(IF(OR($H79='Customized Embodied EF'!$B:$B),SUMIFS(W:W,$F:$F,$H79,$C:$C,\"G4.\")*IF($F79=\"Customized\",IF(_xlfn.XLOOKUP($H79,'Customized Embodied EF'!$B:$B,'Customized Embodied EF'!P:P,\"error\",0)=\"\",\"Factor error\",(_xlfn.XLOOKUP($H79,'Customized Embodied EF'!$B:$B,'Customized Embodied EF'!P:P,\"error\",0))),_xlfn.XLOOKUP($H79,'Customized Embodied EF'!$B:$B,'Customized Embodied EF'!$E:$E,\"error\",0)),\"Factor error\"),\"Factor error\")","v":0},{"$f":"IFERROR(IF(OR($H79='Customized Embodied EF'!$B:$B),SUMIFS(X:X,$F:$F,$H79,$C:$C,\"G4.\")*IF($F79=\"Customized\",IF(_xlfn.XLOOKUP($H79,'Customized Embodied EF'!$B:$B,'Customized Embodied EF'!Q:Q,\"error\",0)=\"\",\"Factor error\",(_xlfn.XLOOKUP($H79,'Customized Embodied EF'!$B:$B,'Customized Embodied EF'!Q:Q,\"error\",0))),_xlfn.XLOOKUP($H79,'Customized Embodied EF'!$B:$B,'Customized Embodied EF'!$E:$E,\"error\",0)),\"Factor error\"),\"Factor error\")","v":0},{"$f":"IFERROR(IF(OR($H79='Customized Embodied EF'!$B:$B),SUMIFS(Y:Y,$F:$F,$H79,$C:$C,\"G4.\")*IF($F79=\"Customized\",IF(_xlfn.XLOOKUP($H79,'Customized Embodied EF'!$B:$B,'Customized Embodied EF'!R:R,\"error\",0)=\"\",\"Factor error\",(_xlfn.XLOOKUP($H79,'Customized Embodied EF'!$B:$B,'Customized Embodied EF'!R:R,\"error\",0))),_xlfn.XLOOKUP($H79,'Customized Embodied EF'!$B:$B,'Customized Embodied EF'!$E:$E,\"error\",0)),\"Factor error\"),\"Factor error\")","v":0},{"$f":"IFERROR(IF(OR($H79='Customized Embodied EF'!$B:$B),SUMIFS(Z:Z,$F:$F,$H79,$C:$C,\"G4.\")*IF($F79=\"Customized\",IF(_xlfn.XLOOKUP($H79,'Customized Embodied EF'!$B:$B,'Customized Embodied EF'!S:S,\"error\",0)=\"\",\"Factor error\",(_xlfn.XLOOKUP($H79,'Customized Embodied EF'!$B:$B,'Customized Embodied EF'!S:S,\"error\",0))),_xlfn.XLOOKUP($H79,'Customized Embodied EF'!$B:$B,'Customized Embodied EF'!$E:$E,\"error\",0)),\"Factor error\"),\"Factor error\")","v":0},{"$f":"IFERROR(IF(OR($H79='Customized Embodied EF'!$B:$B),SUMIFS(AA:AA,$F:$F,$H79,$C:$C,\"G4.\")*IF($F79=\"Customized\",IF(_xlfn.XLOOKUP($H79,'Customized Embodied EF'!$B:$B,'Customized Embodied EF'!T:T,\"error\",0)=\"\",\"Factor error\",(_xlfn.XLOOKUP($H79,'Customized Embodied EF'!$B:$B,'Customized Embodied EF'!T:T,\"error\",0))),_xlfn.XLOOKUP($H79,'Customized Embodied EF'!$B:$B,'Customized Embodied EF'!$E:$E,\"error\",0)),\"Factor error\"),\"Factor error\")","v":0},{"$f":"IFERROR(IF(OR($H79='Customized Embodied EF'!$B:$B),SUMIFS(AB:AB,$F:$F,$H79,$C:$C,\"G4.\")*IF($F79=\"Customized\",IF(_xlfn.XLOOKUP($H79,'Customized Embodied EF'!$B:$B,'Customized Embodied EF'!U:U,\"error\",0)=\"\",\"Factor error\",(_xlfn.XLOOKUP($H79,'Customized Embodied EF'!$B:$B,'Customized Embodied EF'!U:U,\"error\",0))),_xlfn.XLOOKUP($H79,'Customized Embodied EF'!$B:$B,'Customized Embodied EF'!$E:$E,\"error\",0)),\"Factor error\"),\"Factor error\")","v":0},{"$f":"IFERROR(IF(OR($H79='Customized Embodied EF'!$B:$B),SUMIFS(AC:AC,$F:$F,$H79,$C:$C,\"G4.\")*IF($F79=\"Customized\",IF(_xlfn.XLOOKUP($H79,'Customized Embodied EF'!$B:$B,'Customized Embodied EF'!V:V,\"error\",0)=\"\",\"Factor error\",(_xlfn.XLOOKUP($H79,'Customized Embodied EF'!$B:$B,'Customized Embodied EF'!V:V,\"error\",0))),_xlfn.XLOOKUP($H79,'Customized Embodied EF'!$B:$B,'Customized Embodied EF'!$E:$E,\"error\",0)),\"Factor error\"),\"Factor error\")","v":0},{"$f":"IFERROR(IF(OR($H79='Customized Embodied EF'!$B:$B),SUMIFS(AD:AD,$F:$F,$H79,$C:$C,\"G4.\")*IF($F79=\"Customized\",IF(_xlfn.XLOOKUP($H79,'Customized Embodied EF'!$B:$B,'Customized Embodied EF'!W:W,\"error\",0)=\"\",\"Factor error\",(_xlfn.XLOOKUP($H79,'Customized Embodied EF'!$B:$B,'Customized Embodied EF'!W:W,\"error\",0))),_xlfn.XLOOKUP($H79,'Customized Embodied EF'!$B:$B,'Customized Embodied EF'!$E:$E,\"error\",0)),\"Factor error\"),\"Factor error\")","v":0}]
[null,null,null,"A1.1.1",".11",null,null,"Plasticizer",null,"[t CO2e/reporting period]","",null,{"$f":"IFERROR(IF(OR($H80='Customized Embodied EF'!$B:$B),SUMIFS(M:M,$F:$F,$H80,$C:$C,\"G4.\")*IF($F80=\"Customized\",IF(_xlfn.XLOOKUP($H80,'Customized Embodied EF'!$B:$B,'Customized Embodied EF'!F:F,\"error\",0)=\"\",\"Factor error\",(_xlfn.XLOOKUP($H80,'Customized Embodied EF'!$B:$B,'Customized Embodied EF'!F:F,\"error\",0))),_xlfn.XLOOKUP($H80,'Customized Embodied EF'!$B:$B,'Customized Embodied EF'!$E:$E,\"error\",0)),\"Factor error\"),\"Factor error\")","v":0},{"$f":"IFERROR(IF(OR($H80='Customized Embodied EF'!$B:$B),SUMIFS(N:N,$F:$F,$H80,$C:$C,\"G4.\")*IF($F80=\"Customized\",IF(_xlfn.XLOOKUP($H80,'Customized Embodied EF'!$B:$B,'Customized Embodied EF'!G:G,\"error\",0)=\"\",\"Factor error\",(_xlfn.XLOOKUP($H80,'Customized Embodied EF'!$B:$B,'Customized Embodied EF'!G:G,\"error\",0))),_xlfn.XLOOKUP($H80,'Customized Embodied EF'!$B:$B,'Customized Embodied EF'!$E:$E,\"error\",0)),\"Factor error\"),\"Factor error\")","v":0},{"$f":"IFERROR(IF(OR($H80='Customized Embodied EF'!$B:$B),SUMIFS(O:O,$F:$F,$H80,$C:$C,\"G4.\")*IF($F80=\"Customized\",IF(_xlfn.XLOOKUP($H80,'Customized Embodied EF'!$B:$B,'Customized Embodied EF'!H:H,\"error\",0)=\"\",\"Factor error\",(_xlfn.XLOOKUP($H80,'Customized Embodied EF'!$B:$B,'Customized Embodied EF'!H:H,\"error\",0))),_xlfn.XLOOKUP($H80,'Customized Embodied EF'!$B:$B,'Customized Embodied EF'!$E:$E,\"error\",0)),\"Factor error\"),\"Factor error\")","v":0},{"$f":"IFERROR(IF(OR($H80='Customized Embodied EF'!$B:$B),SUMIFS(P:P,$F:$F,$H80,$C:$C,\"G4.\")*IF($F80=\"Customized\",IF(_xlfn.XLOOKUP($H80,'Customized Embodied EF'!$B:$B,'Customized Embodied EF'!I:I,\"error\",0)=\"\",\"Factor error\",(_xlfn.XLOOKUP($H80,'Customized Embodied EF'!$B:$B,'Customized Embodied EF'!I:I,\"error\",0))),_xlfn.XLOOKUP($H80,'Customized Embodied EF'!$B:$B,'Customized Embodied EF'!$E:$E,\"error\",0)),\"Factor error\"),\"Factor error\")","v":0},{"$f":"IFERROR(IF(OR($H80='Customized Embodied EF'!$B:$B),SUMIFS(Q:Q,$F:$F,$H80,$C:$C,\"G4.\")*IF($F80=\"Customized\",IF(_xlfn.XLOOKUP($H80,'Customized Embodied EF'!$B:$B,'Customized Embodied EF'!J:J,\"error\",0)=\"\",\"Factor error\",(_xlfn.XLOOKUP($H80,'Customized Embodied EF'!$B:$B,'Customized Embodied EF'!J:J,\"error\",0))),_xlfn.XLOOKUP($H80,'Customized Embodied EF'!$B:$B,'Customized Embodied EF'!$E:$E,\"error\",0)),\"Factor error\"),\"Factor error\")","v":0},{"$f":"IFERROR(IF(OR($H80='Customized Embodied EF'!$B:$B),SUMIFS(R:R,$F:$F,$H80,$C:$C,\"G4.\")*IF($F80=\"Customized\",IF(_xlfn.XLOOKUP($H80,'Customized Embodied EF'!$B:$B,'Customized Embodied EF'!K:K,\"error\",0)=\"\",\"Factor error\",(_xlfn.XLOOKUP($H80,'Customized Embodied EF'!$B:$B,'Customized Embodied EF'!K:K,\"error\",0))),_xlfn.XLOOKUP($H80,'Customized Embodied EF'!$B:$B,'Customized Embodied EF'!$E:$E,\"error\",0)),\"Factor error\"),\"Factor error\")","v":0},{"$f":"IFERROR(IF(OR($H80='Customized Embodied EF'!$B:$B),SUMIFS(S:S,$F:$F,$H80,$C:$C,\"G4.\")*IF($F80=\"Customized\",IF(_xlfn.XLOOKUP($H80,'Customized Embodied EF'!$B:$B,'Customized Embodied EF'!L:L,\"error\",0)=\"\",\"Factor error\",(_xlfn.XLOOKUP($H80,'Customized Embodied EF'!$B:$B,'Customized Embodied EF'!L:L,\"error\",0))),_xlfn.XLOOKUP($H80,'Customized Embodied EF'!$B:$B,'Customized Embodied EF'!$E:$E,\"error\",0)),\"Factor error\"),\"Factor error\")","v":0},{"$f":"IFERROR(IF(OR($H80='Customized Embodied EF'!$B:$B),SUMIFS(T:T,$F:$F,$H80,$C:$C,\"G4.\")*IF($F80=\"Customized\",IF(_xlfn.XLOOKUP($H80,'Customized Embodied EF'!$B:$B,'Customized Embodied EF'!M:M,\"error\",0)=\"\",\"Factor error\",(_xlfn.XLOOKUP($H80,'Customized Embodied EF'!$B:$B,'Customized Embodied EF'!M:M,\"error\",0))),_xlfn.XLOOKUP($H80,'Customized Embodied EF'!$B:$B,'Customized Embodied EF'!$E:$E,\"error\",0)),\"Factor error\"),\"Factor error\")","v":0},{"$f":"IFERROR(IF(OR($H80='Customized Embodied EF'!$B:$B),SUMIFS(U:U,$F:$F,$H80,$C:$C,\"G4.\")*IF($F80=\"Customized\",IF(_xlfn.XLOOKUP($H80,'Customized Embodied EF'!$B:$B,'Customized Embodied EF'!N:N,\"error\",0)=\"\",\"Factor error\",(_xlfn.XLOOKUP($H80,'Customized Embodied EF'!$B:$B,'Customized Embodied EF'!N:N,\"error\",0))),_xlfn.XLOOKUP($H80,'Customized Embodied EF'!$B:$B,'Customized Embodied EF'!$E:$E,\"error\",0)),\"Factor error\"),\"Factor error\")","v":0},{"$f":"IFERROR(IF(OR($H80='Customized Embodied EF'!$B:$B),SUMIFS(V:V,$F:$F,$H80,$C:$C,\"G4.\")*IF($F80=\"Customized\",IF(_xlfn.XLOOKUP($H80,'Customized Embodied EF'!$B:$B,'Customized Embodied EF'!O:O,\"error\",0)=\"\",\"Factor error\",(_xlfn.XLOOKUP($H80,'Customized Embodied EF'!$B:$B,'Customized Embodied EF'!O:O,\"error\",0))),_xlfn.XLOOKUP($H80,'Customized Embodied EF'!$B:$B,'Customized Embodied EF'!$E:$E,\"error\",0)),\"Factor error\"),\"Factor error\")","v":0},{"$f":"IFERROR(IF(OR($H80='Customized Embodied EF'!$B:$B),SUMIFS(W:W,$F:$F,$H80,$C:$C,\"G4.\")*IF($F80=\"Customized\",IF(_xlfn.XLOOKUP($H80,'Customized Embodied EF'!$B:$B,'Customized Embodied EF'!P:P,\"error\",0)=\"\",\"Factor error\",(_xlfn.XLOOKUP($H80,'Customized Embodied EF'!$B:$B,'Customized Embodied EF'!P:P,\"error\",0))),_xlfn.XLOOKUP($H80,'Customized Embodied EF'!$B:$B,'Customized Embodied EF'!$E:$E,\"error\",0)),\"Factor error\"),\"Factor error\")","v":0},{"$f":"IFERROR(IF(OR($H80='Customized Embodied EF'!$B:$B),SUMIFS(X:X,$F:$F,$H80,$C:$C,\"G4.\")*IF($F80=\"Customized\",IF(_xlfn.XLOOKUP($H80,'Customized Embodied EF'!$B:$B,'Customized Embodied EF'!Q:Q,\"error\",0)=\"\",\"Factor error\",(_xlfn.XLOOKUP($H80,'Customized Embodied EF'!$B:$B,'Customized Embodied EF'!Q:Q,\"error\",0))),_xlfn.XLOOKUP($H80,'Customized Embodied EF'!$B:$B,'Customized Embodied EF'!$E:$E,\"error\",0)),\"Factor error\"),\"Factor error\")","v":0},{"$f":"IFERROR(IF(OR($H80='Customized Embodied EF'!$B:$B),SUMIFS(Y:Y,$F:$F,$H80,$C:$C,\"G4.\")*IF($F80=\"Customized\",IF(_xlfn.XLOOKUP($H80,'Customized Embodied EF'!$B:$B,'Customized Embodied EF'!R:R,\"error\",0)=\"\",\"Factor error\",(_xlfn.XLOOKUP($H80,'Customized Embodied EF'!$B:$B,'Customized Embodied EF'!R:R,\"error\",0))),_xlfn.XLOOKUP($H80,'Customized Embodied EF'!$B:$B,'Customized Embodied EF'!$E:$E,\"error\",0)),\"Factor error\"),\"Factor error\")","v":0},{"$f":"IFERROR(IF(OR($H80='Customized Embodied EF'!$B:$B),SUMIFS(Z:Z,$F:$F,$H80,$C:$C,\"G4.\")*IF($F80=\"Customized\",IF(_xlfn.XLOOKUP($H80,'Customized Embodied EF'!$B:$B,'Customized Embodied EF'!S:S,\"error\",0)=\"\",\"Factor error\",(_xlfn.XLOOKUP($H80,'Customized Embodied EF'!$B:$B,'Customized Embodied EF'!S:S,\"error\",0))),_xlfn.XLOOKUP($H80,'Customized Embodied EF'!$B:$B,'Customized Embodied EF'!$E:$E,\"error\",0)),\"Factor error\"),\"Factor error\")","v":0},{"$f":"IFERROR(IF(OR($H80='Customized Embodied EF'!$B:$B),SUMIFS(AA:AA,$F:$F,$H80,$C:$C,\"G4.\")*IF($F80=\"Customized\",IF(_xlfn.XLOOKUP($H80,'Customized Embodied EF'!$B:$B,'Customized Embodied EF'!T:T,\"error\",0)=\"\",\"Factor error\",(_xlfn.XLOOKUP($H80,'Customized Embodied EF'!$B:$B,'Customized Embodied EF'!T:T,\"error\",0))),_xlfn.XLOOKUP($H80,'Customized Embodied EF'!$B:$B,'Customized Embodied EF'!$E:$E,\"error\",0)),\"Factor error\"),\"Factor error\")","v":0},{"$f":"IFERROR(IF(OR($H80='Customized Embodied EF'!$B:$B),SUMIFS(AB:AB,$F:$F,$H80,$C:$C,\"G4.\")*IF($F80=\"Customized\",IF(_xlfn.XLOOKUP($H80,'Customized Embodied EF'!$B:$B,'Customized Embodied EF'!U:U,\"error\",0)=\"\",\"Factor error\",(_xlfn.XLOOKUP($H80,'Customized Embodied EF'!$B:$B,'Customized Embodied EF'!U:U,\"error\",0))),_xlfn.XLOOKUP($H80,'Customized Embodied EF'!$B:$B,'Customized Embodied EF'!$E:$E,\"error\",0)),\"Factor error\"),\"Factor error\")","v":0},{"$f":"IFERROR(IF(OR($H80='Customized Embodied EF'!$B:$B),SUMIFS(AC:AC,$F:$F,$H80,$C:$C,\"G4.\")*IF($F80=\"Customized\",IF(_xlfn.XLOOKUP($H80,'Customized Embodied EF'!$B:$B,'Customized Embodied EF'!V:V,\"error\",0)=\"\",\"Factor error\",(_xlfn.XLOOKUP($H80,'Customized Embodied EF'!$B:$B,'Customized Embodied EF'!V:V,\"error\",0))),_xlfn.XLOOKUP($H80,'Customized Embodied EF'!$B:$B,'Customized Embodied EF'!$E:$E,\"error\",0)),\"Factor error\"),\"Factor error\")","v":0},{"$f":"IFERROR(IF(OR($H80='Customized Embodied EF'!$B:$B),SUMIFS(AD:AD,$F:$F,$H80,$C:$C,\"G4.\")*IF($F80=\"Customized\",IF(_xlfn.XLOOKUP($H80,'Customized Embodied EF'!$B:$B,'Customized Embodied EF'!W:W,\"error\",0)=\"\",\"Factor error\",(_xlfn.XLOOKUP($H80,'Customized Embodied EF'!$B:$B,'Customized Embodied EF'!W:W,\"error\",0))),_xlfn.XLOOKUP($H80,'Customized Embodied EF'!$B:$B,'Customized Embodied EF'!$E:$E,\"error\",0)),\"Factor error\"),\"Factor error\")","v":0}]
[null,null,null,{"$f":"D80","v":"A1.1.1"},".12",null,null,"Setting accelerator",null,"[t CO2e/reporting period]",{"$f":"IF(SUM(M81:AD81)=0,\"\",SUM(M81:AD81))","v":""},null,{"$f":"IFERROR(IF(OR($H81='Customized Embodied EF'!$B:$B),SUMIFS(M:M,$F:$F,$H81,$C:$C,\"G4.\")*IF($F81=\"Customized\",IF(_xlfn.XLOOKUP($H81,'Customized Embodied EF'!$B:$B,'Customized Embodied EF'!F:F,\"error\",0)=\"\",\"Factor error\",(_xlfn.XLOOKUP($H81,'Customized Embodied EF'!$B:$B,'Customized Embodied EF'!F:F,\"error\",0))),_xlfn.XLOOKUP($H81,'Customized Embodied EF'!$B:$B,'Customized Embodied EF'!$E:$E,\"error\",0)),\"Factor error\"),\"Factor error\")","v":0},{"$f":"IFERROR(IF(OR($H81='Customized Embodied EF'!$B:$B),SUMIFS(N:N,$F:$F,$H81,$C:$C,\"G4.\")*IF($F81=\"Customized\",IF(_xlfn.XLOOKUP($H81,'Customized Embodied EF'!$B:$B,'Customized Embodied EF'!G:G,\"error\",0)=\"\",\"Factor error\",(_xlfn.XLOOKUP($H81,'Customized Embodied EF'!$B:$B,'Customized Embodied EF'!G:G,\"error\",0))),_xlfn.XLOOKUP($H81,'Customized Embodied EF'!$B:$B,'Customized Embodied EF'!$E:$E,\"error\",0)),\"Factor error\"),\"Factor error\")","v":0},{"$f":"IFERROR(IF(OR($H81='Customized Embodied EF'!$B:$B),SUMIFS(O:O,$F:$F,$H81,$C:$C,\"G4.\")*IF($F81=\"Customized\",IF(_xlfn.XLOOKUP($H81,'Customized Embodied EF'!$B:$B,'Customized Embodied EF'!H:H,\"error\",0)=\"\",\"Factor error\",(_xlfn.XLOOKUP($H81,'Customized Embodied EF'!$B:$B,'Customized Embodied EF'!H:H,\"error\",0))),_xlfn.XLOOKUP($H81,'Customized Embodied EF'!$B:$B,'Customized Embodied EF'!$E:$E,\"error\",0)),\"Factor error\"),\"Factor error\")","v":0},{"$f":"IFERROR(IF(OR($H81='Customized Embodied EF'!$B:$B),SUMIFS(P:P,$F:$F,$H81,$C:$C,\"G4.\")*IF($F81=\"Customized\",IF(_xlfn.XLOOKUP($H81,'Customized Embodied EF'!$B:$B,'Customized Embodied EF'!I:I,\"error\",0)=\"\",\"Factor error\",(_xlfn.XLOOKUP($H81,'Customized Embodied EF'!$B:$B,'Customized Embodied EF'!I:I,\"error\",0))),_xlfn.XLOOKUP($H81,'Customized Embodied EF'!$B:$B,'Customized Embodied EF'!$E:$E,\"error\",0)),\"Factor error\"),\"Factor error\")","v":0},{"$f":"IFERROR(IF(OR($H81='Customized Embodied EF'!$B:$B),SUMIFS(Q:Q,$F:$F,$H81,$C:$C,\"G4.\")*IF($F81=\"Customized\",IF(_xlfn.XLOOKUP($H81,'Customized Embodied EF'!$B:$B,'Customized Embodied EF'!J:J,\"error\",0)=\"\",\"Factor error\",(_xlfn.XLOOKUP($H81,'Customized Embodied EF'!$B:$B,'Customized Embodied EF'!J:J,\"error\",0))),_xlfn.XLOOKUP($H81,'Customized Embodied EF'!$B:$B,'Customized Embodied EF'!$E:$E,\"error\",0)),\"Factor error\"),\"Factor error\")","v":0},{"$f":"IFERROR(IF(OR($H81='Customized Embodied EF'!$B:$B),SUMIFS(R:R,$F:$F,$H81,$C:$C,\"G4.\")*IF($F81=\"Customized\",IF(_xlfn.XLOOKUP($H81,'Customized Embodied EF'!$B:$B,'Customized Embodied EF'!K:K,\"error\",0)=\"\",\"Factor error\",(_xlfn.XLOOKUP($H81,'Customized Embodied EF'!$B:$B,'Customized Embodied EF'!K:K,\"error\",0))),_xlfn.XLOOKUP($H81,'Customized Embodied EF'!$B:$B,'Customized Embodied EF'!$E:$E,\"error\",0)),\"Factor error\"),\"Factor error\")","v":0},{"$f":"IFERROR(IF(OR($H81='Customized Embodied EF'!$B:$B),SUMIFS(S:S,$F:$F,$H81,$C:$C,\"G4.\")*IF($F81=\"Customized\",IF(_xlfn.XLOOKUP($H81,'Customized Embodied EF'!$B:$B,'Customized Embodied EF'!L:L,\"error\",0)=\"\",\"Factor error\",(_xlfn.XLOOKUP($H81,'Customized Embodied EF'!$B:$B,'Customized Embodied EF'!L:L,\"error\",0))),_xlfn.XLOOKUP($H81,'Customized Embodied EF'!$B:$B,'Customized Embodied EF'!$E:$E,\"error\",0)),\"Factor error\"),\"Factor error\")","v":0},{"$f":"IFERROR(IF(OR($H81='Customized Embodied EF'!$B:$B),SUMIFS(T:T,$F:$F,$H81,$C:$C,\"G4.\")*IF($F81=\"Customized\",IF(_xlfn.XLOOKUP($H81,'Customized Embodied EF'!$B:$B,'Customized Embodied EF'!M:M,\"error\",0)=\"\",\"Factor error\",(_xlfn.XLOOKUP($H81,'Customized Embodied EF'!$B:$B,'Customized Embodied EF'!M:M,\"error\",0))),_xlfn.XLOOKUP($H81,'Customized Embodied EF'!$B:$B,'Customized Embodied EF'!$E:$E,\"error\",0)),\"Factor error\"),\"Factor error\")","v":0},{"$f":"IFERROR(IF(OR($H81='Customized Embodied EF'!$B:$B),SUMIFS(U:U,$F:$F,$H81,$C:$C,\"G4.\")*IF($F81=\"Customized\",IF(_xlfn.XLOOKUP($H81,'Customized Embodied EF'!$B:$B,'Customized Embodied EF'!N:N,\"error\",0)=\"\",\"Factor error\",(_xlfn.XLOOKUP($H81,'Customized Embodied EF'!$B:$B,'Customized Embodied EF'!N:N,\"error\",0))),_xlfn.XLOOKUP($H81,'Customized Embodied EF'!$B:$B,'Customized Embodied EF'!$E:$E,\"error\",0)),\"Factor error\"),\"Factor error\")","v":0},{"$f":"IFERROR(IF(OR($H81='Customized Embodied EF'!$B:$B),SUMIFS(V:V,$F:$F,$H81,$C:$C,\"G4.\")*IF($F81=\"Customized\",IF(_xlfn.XLOOKUP($H81,'Customized Embodied EF'!$B:$B,'Customized Embodied EF'!O:O,\"error\",0)=\"\",\"Factor error\",(_xlfn.XLOOKUP($H81,'Customized Embodied EF'!$B:$B,'Customized Embodied EF'!O:O,\"error\",0))),_xlfn.XLOOKUP($H81,'Customized Embodied EF'!$B:$B,'Customized Embodied EF'!$E:$E,\"error\",0)),\"Factor error\"),\"Factor error\")","v":0},{"$f":"IFERROR(IF(OR($H81='Customized Embodied EF'!$B:$B),SUMIFS(W:W,$F:$F,$H81,$C:$C,\"G4.\")*IF($F81=\"Customized\",IF(_xlfn.XLOOKUP($H81,'Customized Embodied EF'!$B:$B,'Customized Embodied EF'!P:P,\"error\",0)=\"\",\"Factor error\",(_xlfn.XLOOKUP($H81,'Customized Embodied EF'!$B:$B,'Customized Embodied EF'!P:P,\"error\",0))),_xlfn.XLOOKUP($H81,'Customized Embodied EF'!$B:$B,'Customized Embodied EF'!$E:$E,\"error\",0)),\"Factor error\"),\"Factor error\")","v":0},{"$f":"IFERROR(IF(OR($H81='Customized Embodied EF'!$B:$B),SUMIFS(X:X,$F:$F,$H81,$C:$C,\"G4.\")*IF($F81=\"Customized\",IF(_xlfn.XLOOKUP($H81,'Customized Embodied EF'!$B:$B,'Customized Embodied EF'!Q:Q,\"error\",0)=\"\",\"Factor error\",(_xlfn.XLOOKUP($H81,'Customized Embodied EF'!$B:$B,'Customized Embodied EF'!Q:Q,\"error\",0))),_xlfn.XLOOKUP($H81,'Customized Embodied EF'!$B:$B,'Customized Embodied EF'!$E:$E,\"error\",0)),\"Factor error\"),\"Factor error\")","v":0},{"$f":"IFERROR(IF(OR($H81='Customized Embodied EF'!$B:$B),SUMIFS(Y:Y,$F:$F,$H81,$C:$C,\"G4.\")*IF($F81=\"Customized\",IF(_xlfn.XLOOKUP($H81,'Customized Embodied EF'!$B:$B,'Customized Embodied EF'!R:R,\"error\",0)=\"\",\"Factor error\",(_xlfn.XLOOKUP($H81,'Customized Embodied EF'!$B:$B,'Customized Embodied EF'!R:R,\"error\",0))),_xlfn.XLOOKUP($H81,'Customized Embodied EF'!$B:$B,'Customized Embodied EF'!$E:$E,\"error\",0)),\"Factor error\"),\"Factor error\")","v":0},{"$f":"IFERROR(IF(OR($H81='Customized Embodied EF'!$B:$B),SUMIFS(Z:Z,$F:$F,$H81,$C:$C,\"G4.\")*IF($F81=\"Customized\",IF(_xlfn.XLOOKUP($H81,'Customized Embodied EF'!$B:$B,'Customized Embodied EF'!S:S,\"error\",0)=\"\",\"Factor error\",(_xlfn.XLOOKUP($H81,'Customized Embodied EF'!$B:$B,'Customized Embodied EF'!S:S,\"error\",0))),_xlfn.XLOOKUP($H81,'Customized Embodied EF'!$B:$B,'Customized Embodied EF'!$E:$E,\"error\",0)),\"Factor error\"),\"Factor error\")","v":0},{"$f":"IFERROR(IF(OR($H81='Customized Embodied EF'!$B:$B),SUMIFS(AA:AA,$F:$F,$H81,$C:$C,\"G4.\")*IF($F81=\"Customized\",IF(_xlfn.XLOOKUP($H81,'Customized Embodied EF'!$B:$B,'Customized Embodied EF'!T:T,\"error\",0)=\"\",\"Factor error\",(_xlfn.XLOOKUP($H81,'Customized Embodied EF'!$B:$B,'Customized Embodied EF'!T:T,\"error\",0))),_xlfn.XLOOKUP($H81,'Customized Embodied EF'!$B:$B,'Customized Embodied EF'!$E:$E,\"error\",0)),\"Factor error\"),\"Factor error\")","v":0},{"$f":"IFERROR(IF(OR($H81='Customized Embodied EF'!$B:$B),SUMIFS(AB:AB,$F:$F,$H81,$C:$C,\"G4.\")*IF($F81=\"Customized\",IF(_xlfn.XLOOKUP($H81,'Customized Embodied EF'!$B:$B,'Customized Embodied EF'!U:U,\"error\",0)=\"\",\"Factor error\",(_xlfn.XLOOKUP($H81,'Customized Embodied EF'!$B:$B,'Customized Embodied EF'!U:U,\"error\",0))),_xlfn.XLOOKUP($H81,'Customized Embodied EF'!$B:$B,'Customized Embodied EF'!$E:$E,\"error\",0)),\"Factor error\"),\"Factor error\")","v":0},{"$f":"IFERROR(IF(OR($H81='Customized Embodied EF'!$B:$B),SUMIFS(AC:AC,$F:$F,$H81,$C:$C,\"G4.\")*IF($F81=\"Customized\",IF(_xlfn.XLOOKUP($H81,'Customized Embodied EF'!$B:$B,'Customized Embodied EF'!V:V,\"error\",0)=\"\",\"Factor error\",(_xlfn.XLOOKUP($H81,'Customized Embodied EF'!$B:$B,'Customized Embodied EF'!V:V,\"error\",0))),_xlfn.XLOOKUP($H81,'Customized Embodied EF'!$B:$B,'Customized Embodied EF'!$E:$E,\"error\",0)),\"Factor error\"),\"Factor error\")","v":0},{"$f":"IFERROR(IF(OR($H81='Customized Embodied EF'!$B:$B),SUMIFS(AD:AD,$F:$F,$H81,$C:$C,\"G4.\")*IF($F81=\"Customized\",IF(_xlfn.XLOOKUP($H81,'Customized Embodied EF'!$B:$B,'Customized Embodied EF'!W:W,\"error\",0)=\"\",\"Factor error\",(_xlfn.XLOOKUP($H81,'Customized Embodied EF'!$B:$B,'Customized Embodied EF'!W:W,\"error\",0))),_xlfn.XLOOKUP($H81,'Customized Embodied EF'!$B:$B,'Customized Embodied EF'!$E:$E,\"error\",0)),\"Factor error\"),\"Factor error\")","v":0}]
[null,null,null,{"$f":"D81","v":"A1.1.1"},".13",null,null,null,null,"[t CO2e/reporting period]",{"$f":"IF(SUM(M82:AD82)=0,\"\",SUM(M82:AD82))","v":""},null,{"$f":"IFERROR(IF(OR($H82='Customized Embodied EF'!$B:$B),SUMIFS(M:M,$F:$F,$H82,$C:$C,\"G4.\")*IF($F82=\"Customized\",IF(_xlfn.XLOOKUP($H82,'Customized Embodied EF'!$B:$B,'Customized Embodied EF'!F:F,\"error\",0)=\"\",\"Factor error\",(_xlfn.XLOOKUP($H82,'Customized Embodied EF'!$B:$B,'Customized Embodied EF'!F:F,\"error\",0))),_xlfn.XLOOKUP($H82,'Customized Embodied EF'!$B:$B,'Customized Embodied EF'!$E:$E,\"error\",0)),\"Factor error\"),\"Factor error\")","v":0},{"$f":"IFERROR(IF(OR($H82='Customized Embodied EF'!$B:$B),SUMIFS(N:N,$F:$F,$H82,$C:$C,\"G4.\")*IF($F82=\"Customized\",IF(_xlfn.XLOOKUP($H82,'Customized Embodied EF'!$B:$B,'Customized Embodied EF'!G:G,\"error\",0)=\"\",\"Factor error\",(_xlfn.XLOOKUP($H82,'Customized Embodied EF'!$B:$B,'Customized Embodied EF'!G:G,\"error\",0))),_xlfn.XLOOKUP($H82,'Customized Embodied EF'!$B:$B,'Customized Embodied EF'!$E:$E,\"error\",0)),\"Factor error\"),\"Factor error\")","v":0},{"$f":"IFERROR(IF(OR($H82='Customized Embodied EF'!$B:$B),SUMIFS(O:O,$F:$F,$H82,$C:$C,\"G4.\")*IF($F82=\"Customized\",IF(_xlfn.XLOOKUP($H82,'Customized Embodied EF'!$B:$B,'Customized Embodied EF'!H:H,\"error\",0)=\"\",\"Factor error\",(_xlfn.XLOOKUP($H82,'Customized Embodied EF'!$B:$B,'Customized Embodied EF'!H:H,\"error\",0))),_xlfn.XLOOKUP($H82,'Customized Embodied EF'!$B:$B,'Customized Embodied EF'!$E:$E,\"error\",0)),\"Factor error\"),\"Factor error\")","v":0},{"$f":"IFERROR(IF(OR($H82='Customized Embodied EF'!$B:$B),SUMIFS(P:P,$F:$F,$H82,$C:$C,\"G4.\")*IF($F82=\"Customized\",IF(_xlfn.XLOOKUP($H82,'Customized Embodied EF'!$B:$B,'Customized Embodied EF'!I:I,\"error\",0)=\"\",\"Factor error\",(_xlfn.XLOOKUP($H82,'Customized Embodied EF'!$B:$B,'Customized Embodied EF'!I:I,\"error\",0))),_xlfn.XLOOKUP($H82,'Customized Embodied EF'!$B:$B,'Customized Embodied EF'!$E:$E,\"error\",0)),\"Factor error\"),\"Factor error\")","v":0},{"$f":"IFERROR(IF(OR($H82='Customized Embodied EF'!$B:$B),SUMIFS(Q:Q,$F:$F,$H82,$C:$C,\"G4.\")*IF($F82=\"Customized\",IF(_xlfn.XLOOKUP($H82,'Customized Embodied EF'!$B:$B,'Customized Embodied EF'!J:J,\"error\",0)=\"\",\"Factor error\",(_xlfn.XLOOKUP($H82,'Customized Embodied EF'!$B:$B,'Customized Embodied EF'!J:J,\"error\",0))),_xlfn.XLOOKUP($H82,'Customized Embodied EF'!$B:$B,'Customized Embodied EF'!$E:$E,\"error\",0)),\"Factor error\"),\"Factor error\")","v":0},{"$f":"IFERROR(IF(OR($H82='Customized Embodied EF'!$B:$B),SUMIFS(R:R,$F:$F,$H82,$C:$C,\"G4.\")*IF($F82=\"Customized\",IF(_xlfn.XLOOKUP($H82,'Customized Embodied EF'!$B:$B,'Customized Embodied EF'!K:K,\"error\",0)=\"\",\"Factor error\",(_xlfn.XLOOKUP($H82,'Customized Embodied EF'!$B:$B,'Customized Embodied EF'!K:K,\"error\",0))),_xlfn.XLOOKUP($H82,'Customized Embodied EF'!$B:$B,'Customized Embodied EF'!$E:$E,\"error\",0)),\"Factor error\"),\"Factor error\")","v":0},{"$f":"IFERROR(IF(OR($H82='Customized Embodied EF'!$B:$B),SUMIFS(S:S,$F:$F,$H82,$C:$C,\"G4.\")*IF($F82=\"Customized\",IF(_xlfn.XLOOKUP($H82,'Customized Embodied EF'!$B:$B,'Customized Embodied EF'!L:L,\"error\",0)=\"\",\"Factor error\",(_xlfn.XLOOKUP($H82,'Customized Embodied EF'!$B:$B,'Customized Embodied EF'!L:L,\"error\",0))),_xlfn.XLOOKUP($H82,'Customized Embodied EF'!$B:$B,'Customized Embodied EF'!$E:$E,\"error\",0)),\"Factor error\"),\"Factor error\")","v":0},{"$f":"IFERROR(IF(OR($H82='Customized Embodied EF'!$B:$B),SUMIFS(T:T,$F:$F,$H82,$C:$C,\"G4.\")*IF($F82=\"Customized\",IF(_xlfn.XLOOKUP($H82,'Customized Embodied EF'!$B:$B,'Customized Embodied EF'!M:M,\"error\",0)=\"\",\"Factor error\",(_xlfn.XLOOKUP($H82,'Customized Embodied EF'!$B:$B,'Customized Embodied EF'!M:M,\"error\",0))),_xlfn.XLOOKUP($H82,'Customized Embodied EF'!$B:$B,'Customized Embodied EF'!$E:$E,\"error\",0)),\"Factor error\"),\"Factor error\")","v":0},{"$f":"IFERROR(IF(OR($H82='Customized Embodied EF'!$B:$B),SUMIFS(U:U,$F:$F,$H82,$C:$C,\"G4.\")*IF($F82=\"Customized\",IF(_xlfn.XLOOKUP($H82,'Customized Embodied EF'!$B:$B,'Customized Embodied EF'!N:N,\"error\",0)=\"\",\"Factor error\",(_xlfn.XLOOKUP($H82,'Customized Embodied EF'!$B:$B,'Customized Embodied EF'!N:N,\"error\",0))),_xlfn.XLOOKUP($H82,'Customized Embodied EF'!$B:$B,'Customized Embodied EF'!$E:$E,\"error\",0)),\"Factor error\"),\"Factor error\")","v":0},{"$f":"IFERROR(IF(OR($H82='Customized Embodied EF'!$B:$B),SUMIFS(V:V,$F:$F,$H82,$C:$C,\"G4.\")*IF($F82=\"Customized\",IF(_xlfn.XLOOKUP($H82,'Customized Embodied EF'!$B:$B,'Customized Embodied EF'!O:O,\"error\",0)=\"\",\"Factor error\",(_xlfn.XLOOKUP($H82,'Customized Embodied EF'!$B:$B,'Customized Embodied EF'!O:O,\"error\",0))),_xlfn.XLOOKUP($H82,'Customized Embodied EF'!$B:$B,'Customized Embodied EF'!$E:$E,\"error\",0)),\"Factor error\"),\"Factor error\")","v":0},{"$f":"IFERROR(IF(OR($H82='Customized Embodied EF'!$B:$B),SUMIFS(W:W,$F:$F,$H82,$C:$C,\"G4.\")*IF($F82=\"Customized\",IF(_xlfn.XLOOKUP($H82,'Customized Embodied EF'!$B:$B,'Customized Embodied EF'!P:P,\"error\",0)=\"\",\"Factor error\",(_xlfn.XLOOKUP($H82,'Customized Embodied EF'!$B:$B,'Customized Embodied EF'!P:P,\"error\",0))),_xlfn.XLOOKUP($H82,'Customized Embodied EF'!$B:$B,'Customized Embodied EF'!$E:$E,\"error\",0)),\"Factor error\"),\"Factor error\")","v":0},{"$f":"IFERROR(IF(OR($H82='Customized Embodied EF'!$B:$B),SUMIFS(X:X,$F:$F,$H82,$C:$C,\"G4.\")*IF($F82=\"Customized\",IF(_xlfn.XLOOKUP($H82,'Customized Embodied EF'!$B:$B,'Customized Embodied EF'!Q:Q,\"error\",0)=\"\",\"Factor error\",(_xlfn.XLOOKUP($H82,'Customized Embodied EF'!$B:$B,'Customized Embodied EF'!Q:Q,\"error\",0))),_xlfn.XLOOKUP($H82,'Customized Embodied EF'!$B:$B,'Customized Embodied EF'!$E:$E,\"error\",0)),\"Factor error\"),\"Factor error\")","v":0},{"$f":"IFERROR(IF(OR($H82='Customized Embodied EF'!$B:$B),SUMIFS(Y:Y,$F:$F,$H82,$C:$C,\"G4.\")*IF($F82=\"Customized\",IF(_xlfn.XLOOKUP($H82,'Customized Embodied EF'!$B:$B,'Customized Embodied EF'!R:R,\"error\",0)=\"\",\"Factor error\",(_xlfn.XLOOKUP($H82,'Customized Embodied EF'!$B:$B,'Customized Embodied EF'!R:R,\"error\",0))),_xlfn.XLOOKUP($H82,'Customized Embodied EF'!$B:$B,'Customized Embodied EF'!$E:$E,\"error\",0)),\"Factor error\"),\"Factor error\")","v":0},{"$f":"IFERROR(IF(OR($H82='Customized Embodied EF'!$B:$B),SUMIFS(Z:Z,$F:$F,$H82,$C:$C,\"G4.\")*IF($F82=\"Customized\",IF(_xlfn.XLOOKUP($H82,'Customized Embodied EF'!$B:$B,'Customized Embodied EF'!S:S,\"error\",0)=\"\",\"Factor error\",(_xlfn.XLOOKUP($H82,'Customized Embodied EF'!$B:$B,'Customized Embodied EF'!S:S,\"error\",0))),_xlfn.XLOOKUP($H82,'Customized Embodied EF'!$B:$B,'Customized Embodied EF'!$E:$E,\"error\",0)),\"Factor error\"),\"Factor error\")","v":0},{"$f":"IFERROR(IF(OR($H82='Customized Embodied EF'!$B:$B),SUMIFS(AA:AA,$F:$F,$H82,$C:$C,\"G4.\")*IF($F82=\"Customized\",IF(_xlfn.XLOOKUP($H82,'Customized Embodied EF'!$B:$B,'Customized Embodied EF'!T:T,\"error\",0)=\"\",\"Factor error\",(_xlfn.XLOOKUP($H82,'Customized Embodied EF'!$B:$B,'Customized Embodied EF'!T:T,\"error\",0))),_xlfn.XLOOKUP($H82,'Customized Embodied EF'!$B:$B,'Customized Embodied EF'!$E:$E,\"error\",0)),\"Factor error\"),\"Factor error\")","v":0},{"$f":"IFERROR(IF(OR($H82='Customized Embodied EF'!$B:$B),SUMIFS(AB:AB,$F:$F,$H82,$C:$C,\"G4.\")*IF($F82=\"Customized\",IF(_xlfn.XLOOKUP($H82,'Customized Embodied EF'!$B:$B,'Customized Embodied EF'!U:U,\"error\",0)=\"\",\"Factor error\",(_xlfn.XLOOKUP($H82,'Customized Embodied EF'!$B:$B,'Customized Embodied EF'!U:U,\"error\",0))),_xlfn.XLOOKUP($H82,'Customized Embodied EF'!$B:$B,'Customized Embodied EF'!$E:$E,\"error\",0)),\"Factor error\"),\"Factor error\")","v":0},{"$f":"IFERROR(IF(OR($H82='Customized Embodied EF'!$B:$B),SUMIFS(AC:AC,$F:$F,$H82,$C:$C,\"G4.\")*IF($F82=\"Customized\",IF(_xlfn.XLOOKUP($H82,'Customized Embodied EF'!$B:$B,'Customized Embodied EF'!V:V,\"error\",0)=\"\",\"Factor error\",(_xlfn.XLOOKUP($H82,'Customized Embodied EF'!$B:$B,'Customized Embodied EF'!V:V,\"error\",0))),_xlfn.XLOOKUP($H82,'Customized Embodied EF'!$B:$B,'Customized Embodied EF'!$E:$E,\"error\",0)),\"Factor error\"),\"Factor error\")","v":0},{"$f":"IFERROR(IF(OR($H82='Customized Embodied EF'!$B:$B),SUMIFS(AD:AD,$F:$F,$H82,$C:$C,\"G4.\")*IF($F82=\"Customized\",IF(_xlfn.XLOOKUP($H82,'Customized Embodied EF'!$B:$B,'Customized Embodied EF'!W:W,\"error\",0)=\"\",\"Factor error\",(_xlfn.XLOOKUP($H82,'Customized Embodied EF'!$B:$B,'Customized Embodied EF'!W:W,\"error\",0))),_xlfn.XLOOKUP($H82,'Customized Embodied EF'!$B:$B,'Customized Embodied EF'!$E:$E,\"error\",0)),\"Factor error\"),\"Factor error\")","v":0}]
[null,null,"A1.1.2",null,null,"CO2e from bought energy commodity",null,null,null,"[t CO2e/reporting period]","",null,{"$f":"SUMIF($D:$D,$C83,M:M)","v":0},{"$f":"SUMIF($D:$D,$C83,N:N)","v":0},0,0,0,0,0,0,0,0,0,0,0,0,0,0,0,0]
[null,null,null,null,null,"Adopting CO2e Factors ",null,"[Please insert additional rows if more energy commodities are included]"]
[null,null,null,{"$f":"C83","v":"A1.1.2"},".1",null,null,{"$f":"H56","v":"Energy commodity :"},null,"[t CO2e/reporting period]",{"$f":"SUM(M85:AD85)","v":0},null,{"$f":"IFERROR(IF(OR($I85='Customized Embodied EF'!$C:$C),(SUMIFS(M:M,$I:$I,$I85,$C:$C,\"G4.\")*IF($F85=\"Customized\",\nIF(_xlfn.XLOOKUP($I85,'Customized Embodied EF'!$C:$C,'Customized Embodied EF'!F:F,\"error\",0)=\"\",\"Factor error\",_xlfn.XLOOKUP($I85,'Customized Embodied EF'!$C:$C,'Customized Embodied EF'!F:F,\"error\",0)),\n(_xlfn.XLOOKUP($I85,'Customized Embodied EF'!$C:$C,'Customized Embodied EF'!$E:$E,\"error\",0)))),\"Factor error\"),\"Factor error\")","v":0},{"$f":"IFERROR(IF(OR($I85='Customized Embodied EF'!$C:$C),(SUMIFS(N:N,$I:$I,$I85,$C:$C,\"G4.\")*IF($F85=\"Customized\",\nIF(_xlfn.XLOOKUP($I85,'Customized Embodied EF'!$C:$C,'Customized Embodied EF'!G:G,\"error\",0)=\"\",\"Factor error\",_xlfn.XLOOKUP($I85,'Customized Embodied EF'!$C:$C,'Customized Embodied EF'!G:G,\"error\",0)),\n(_xlfn.XLOOKUP($I85,'Customized Embodied EF'!$C:$C,'Customized Embodied EF'!$E:$E,\"error\",0)))),\"Factor error\"),\"Factor error\")","v":0},{"$f":"IFERROR(IF(OR($I85='Customized Embodied EF'!$C:$C),(SUMIFS(O:O,$I:$I,$I85,$C:$C,\"G4.\")*IF($F85=\"Customized\",\nIF(_xlfn.XLOOKUP($I85,'Customized Embodied EF'!$C:$C,'Customized Embodied EF'!H:H,\"error\",0)=\"\",\"Factor error\",_xlfn.XLOOKUP($I85,'Customized Embodied EF'!$C:$C,'Customized Embodied EF'!H:H,\"error\",0)),\n(_xlfn.XLOOKUP($I85,'Customized Embodied EF'!$C:$C,'Customized Embodied EF'!$E:$E,\"error\",0)))),\"Factor error\"),\"Factor error\")","v":0},{"$f":"IFERROR(IF(OR($I85='Customized Embodied EF'!$C:$C),(SUMIFS(P:P,$I:$I,$I85,$C:$C,\"G4.\")*IF($F85=\"Customized\",\nIF(_xlfn.XLOOKUP($I85,'Customized Embodied EF'!$C:$C,'Customized Embodied EF'!I:I,\"error\",0)=\"\",\"Factor error\",_xlfn.XLOOKUP($I85,'Customized Embodied EF'!$C:$C,'Customized Embodied EF'!I:I,\"error\",0)),\n(_xlfn.XLOOKUP($I85,'Customized Embodied EF'!$C:$C,'Customized Embodied EF'!$E:$E,\"error\",0)))),\"Factor error\"),\"Factor error\")","v":0},{"$f":"IFERROR(IF(OR($I85='Customized Embodied EF'!$C:$C),(SUMIFS(Q:Q,$I:$I,$I85,$C:$C,\"G4.\")*IF($F85=\"Customized\",\nIF(_xlfn.XLOOKUP($I85,'Customized Embodied EF'!$C:$C,'Customized Embodied EF'!J:J,\"error\",0)=\"\",\"Factor error\",_xlfn.XLOOKUP($I85,'Customized Embodied EF'!$C:$C,'Customized Embodied EF'!J:J,\"error\",0)),\n(_xlfn.XLOOKUP($I85,'Customized Embodied EF'!$C:$C,'Customized Embodied EF'!$E:$E,\"error\",0)))),\"Factor error\"),\"Factor error\")","v":0},{"$f":"IFERROR(IF(OR($I85='Customized Embodied EF'!$C:$C),(SUMIFS(R:R,$I:$I,$I85,$C:$C,\"G4.\")*IF($F85=\"Customized\",\nIF(_xlfn.XLOOKUP($I85,'Customized Embodied EF'!$C:$C,'Customized Embodied EF'!K:K,\"error\",0)=\"\",\"Factor error\",_xlfn.XLOOKUP($I85,'Customized Embodied EF'!$C:$C,'Customized Embodied EF'!K:K,\"error\",0)),\n(_xlfn.XLOOKUP($I85,'Customized Embodied EF'!$C:$C,'Customized Embodied EF'!$E:$E,\"error\",0)))),\"Factor error\"),\"Factor error\")","v":0},{"$f":"IFERROR(IF(OR($I85='Customized Embodied EF'!$C:$C),(SUMIFS(S:S,$I:$I,$I85,$C:$C,\"G4.\")*IF($F85=\"Customized\",\nIF(_xlfn.XLOOKUP($I85,'Customized Embodied EF'!$C:$C,'Customized Embodied EF'!L:L,\"error\",0)=\"\",\"Factor error\",_xlfn.XLOOKUP($I85,'Customized Embodied EF'!$C:$C,'Customized Embodied EF'!L:L,\"error\",0)),\n(_xlfn.XLOOKUP($I85,'Customized Embodied EF'!$C:$C,'Customized Embodied EF'!$E:$E,\"error\",0)))),\"Factor error\"),\"Factor error\")","v":0},{"$f":"IFERROR(IF(OR($I85='Customized Embodied EF'!$C:$C),(SUMIFS(T:T,$I:$I,$I85,$C:$C,\"G4.\")*IF($F85=\"Customized\",\nIF(_xlfn.XLOOKUP($I85,'Customized Embodied EF'!$C:$C,'Customized Embodied EF'!M:M,\"error\",0)=\"\",\"Factor error\",_xlfn.XLOOKUP($I85,'Customized Embodied EF'!$C:$C,'Customized Embodied EF'!M:M,\"error\",0)),\n(_xlfn.XLOOKUP($I85,'Customized Embodied EF'!$C:$C,'Customized Embodied EF'!$E:$E,\"error\",0)))),\"Factor error\"),\"Factor error\")","v":0},{"$f":"IFERROR(IF(OR($I85='Customized Embodied EF'!$C:$C),(SUMIFS(U:U,$I:$I,$I85,$C:$C,\"G4.\")*IF($F85=\"Customized\",\nIF(_xlfn.XLOOKUP($I85,'Customized Embodied EF'!$C:$C,'Customized Embodied EF'!N:N,\"error\",0)=\"\",\"Factor error\",_xlfn.XLOOKUP($I85,'Customized Embodied EF'!$C:$C,'Customized Embodied EF'!N:N,\"error\",0)),\n(_xlfn.XLOOKUP($I85,'Customized Embodied EF'!$C:$C,'Customized Embodied EF'!$E:$E,\"error\",0)))),\"Factor error\"),\"Factor error\")","v":0},{"$f":"IFERROR(IF(OR($I85='Customized Embodied EF'!$C:$C),(SUMIFS(V:V,$I:$I,$I85,$C:$C,\"G4.\")*IF($F85=\"Customized\",\nIF(_xlfn.XLOOKUP($I85,'Customized Embodied EF'!$C:$C,'Customized Embodied EF'!O:O,\"error\",0)=\"\",\"Factor error\",_xlfn.XLOOKUP($I85,'Customized Embodied EF'!$C:$C,'Customized Embodied EF'!O:O,\"error\",0)),\n(_xlfn.XLOOKUP($I85,'Customized Embodied EF'!$C:$C,'Customized Embodied EF'!$E:$E,\"error\",0)))),\"Factor error\"),\"Factor error\")","v":0},{"$f":"IFERROR(IF(OR($I85='Customized Embodied EF'!$C:$C),(SUMIFS(W:W,$I:$I,$I85,$C:$C,\"G4.\")*IF($F85=\"Customized\",\nIF(_xlfn.XLOOKUP($I85,'Customized Embodied EF'!$C:$C,'Customized Embodied EF'!P:P,\"error\",0)=\"\",\"Factor error\",_xlfn.XLOOKUP($I85,'Customized Embodied EF'!$C:$C,'Customized Embodied EF'!P:P,\"error\",0)),\n(_xlfn.XLOOKUP($I85,'Customized Embodied EF'!$C:$C,'Customized Embodied EF'!$E:$E,\"error\",0)))),\"Factor error\"),\"Factor error\")","v":0},{"$f":"IFERROR(IF(OR($I85='Customized Embodied EF'!$C:$C),(SUMIFS(X:X,$I:$I,$I85,$C:$C,\"G4.\")*IF($F85=\"Customized\",\nIF(_xlfn.XLOOKUP($I85,'Customized Embodied EF'!$C:$C,'Customized Embodied EF'!Q:Q,\"error\",0)=\"\",\"Factor error\",_xlfn.XLOOKUP($I85,'Customized Embodied EF'!$C:$C,'Customized Embodied EF'!Q:Q,\"error\",0)),\n(_xlfn.XLOOKUP($I85,'Customized Embodied EF'!$C:$C,'Customized Embodied EF'!$E:$E,\"error\",0)))),\"Factor error\"),\"Factor error\")","v":0},{"$f":"IFERROR(IF(OR($I85='Customized Embodied EF'!$C:$C),(SUMIFS(Y:Y,$I:$I,$I85,$C:$C,\"G4.\")*IF($F85=\"Customized\",\nIF(_xlfn.XLOOKUP($I85,'Customized Embodied EF'!$C:$C,'Customized Embodied EF'!R:R,\"error\",0)=\"\",\"Factor error\",_xlfn.XLOOKUP($I85,'Customized Embodied EF'!$C:$C,'Customized Embodied EF'!R:R,\"error\",0)),\n(_xlfn.XLOOKUP($I85,'Customized Embodied EF'!$C:$C,'Customized Embodied EF'!$E:$E,\"error\",0)))),\"Factor error\"),\"Factor error\")","v":0},{"$f":"IFERROR(IF(OR($I85='Customized Embodied EF'!$C:$C),(SUMIFS(Z:Z,$I:$I,$I85,$C:$C,\"G4.\")*IF($F85=\"Customized\",\nIF(_xlfn.XLOOKUP($I85,'Customized Embodied EF'!$C:$C,'Customized Embodied EF'!S:S,\"error\",0)=\"\",\"Factor error\",_xlfn.XLOOKUP($I85,'Customized Embodied EF'!$C:$C,'Customized Embodied EF'!S:S,\"error\",0)),\n(_xlfn.XLOOKUP($I85,'Customized Embodied EF'!$C:$C,'Customized Embodied EF'!$E:$E,\"error\",0)))),\"Factor error\"),\"Factor error\")","v":0},{"$f":"IFERROR(IF(OR($I85='Customized Embodied EF'!$C:$C),(SUMIFS(AA:AA,$I:$I,$I85,$C:$C,\"G4.\")*IF($F85=\"Customized\",\nIF(_xlfn.XLOOKUP($I85,'Customized Embodied EF'!$C:$C,'Customized Embodied EF'!T:T,\"error\",0)=\"\",\"Factor error\",_xlfn.XLOOKUP($I85,'Customized Embodied EF'!$C:$C,'Customized Embodied EF'!T:T,\"error\",0)),\n(_xlfn.XLOOKUP($I85,'Customized Embodied EF'!$C:$C,'Customized Embodied EF'!$E:$E,\"error\",0)))),\"Factor error\"),\"Factor error\")","v":0},{"$f":"IFERROR(IF(OR($I85='Customized Embodied EF'!$C:$C),(SUMIFS(AB:AB,$I:$I,$I85,$C:$C,\"G4.\")*IF($F85=\"Customized\",\nIF(_xlfn.XLOOKUP($I85,'Customized Embodied EF'!$C:$C,'Customized Embodied EF'!U:U,\"error\",0)=\"\",\"Factor error\",_xlfn.XLOOKUP($I85,'Customized Embodied EF'!$C:$C,'Customized Embodied EF'!U:U,\"error\",0)),\n(_xlfn.XLOOKUP($I85,'Customized Embodied EF'!$C:$C,'Customized Embodied EF'!$E:$E,\"error\",0)))),\"Factor error\"),\"Factor error\")","v":0},{"$f":"IFERROR(IF(OR($I85='Customized Embodied EF'!$C:$C),(SUMIFS(AC:AC,$I:$I,$I85,$C:$C,\"G4.\")*IF($F85=\"Customized\",\nIF(_xlfn.XLOOKUP($I85,'Customized Embodied EF'!$C:$C,'Customized Embodied EF'!V:V,\"error\",0)=\"\",\"Factor error\",_xlfn.XLOOKUP($I85,'Customized Embodied EF'!$C:$C,'Customized Embodied EF'!V:V,\"error\",0)),\n(_xlfn.XLOOKUP($I85,'Customized Embodied EF'!$C:$C,'Customized Embodied EF'!$E:$E,\"error\",0)))),\"Factor error\"),\"Factor error\")","v":0},{"$f":"IFERROR(IF(OR($I85='Customized Embodied EF'!$C:$C),(SUMIFS(AD:AD,$I:$I,$I85,$C:$C,\"G4.\")*IF($F85=\"Customized\",\nIF(_xlfn.XLOOKUP($I85,'Customized Embodied EF'!$C:$C,'Customized Embodied EF'!W:W,\"error\",0)=\"\",\"Factor error\",_xlfn.XLOOKUP($I85,'Customized Embodied EF'!$C:$C,'Customized Embodied EF'!W:W,\"error\",0)),\n(_xlfn.XLOOKUP($I85,'Customized Embodied EF'!$C:$C,'Customized Embodied EF'!$E:$E,\"error\",0)))),\"Factor error\"),\"Factor error\")","v":0}]
[null,null,null,{"$f":"D85","v":"A1.1.2"},".2",null,null,{"$f":"H57","v":"Energy commodity :"},null,"[t CO2e/reporting period]",{"$f":"SUM(M86:AD86)","v":0},null,{"$f":"IFERROR(IF(OR($I86='Customized Embodied EF'!$C:$C),(SUMIFS(M:M,$I:$I,$I86,$C:$C,\"G4.\")*IF($F86=\"Customized\",\nIF(_xlfn.XLOOKUP($I86,'Customized Embodied EF'!$C:$C,'Customized Embodied EF'!F:F,\"error\",0)=\"\",\"Factor error\",_xlfn.XLOOKUP($I86,'Customized Embodied EF'!$C:$C,'Customized Embodied EF'!F:F,\"error\",0)),\n(_xlfn.XLOOKUP($I86,'Customized Embodied EF'!$C:$C,'Customized Embodied EF'!$E:$E,\"error\",0)))),\"Factor error\"),\"Factor error\")","v":0},{"$f":"IFERROR(IF(OR($I86='Customized Embodied EF'!$C:$C),(SUMIFS(N:N,$I:$I,$I86,$C:$C,\"G4.\")*IF($F86=\"Customized\",\nIF(_xlfn.XLOOKUP($I86,'Customized Embodied EF'!$C:$C,'Customized Embodied EF'!G:G,\"error\",0)=\"\",\"Factor error\",_xlfn.XLOOKUP($I86,'Customized Embodied EF'!$C:$C,'Customized Embodied EF'!G:G,\"error\",0)),\n(_xlfn.XLOOKUP($I86,'Customized Embodied EF'!$C:$C,'Customized Embodied EF'!$E:$E,\"error\",0)))),\"Factor error\"),\"Factor error\")","v":0},{"$f":"IFERROR(IF(OR($I86='Customized Embodied EF'!$C:$C),(SUMIFS(O:O,$I:$I,$I86,$C:$C,\"G4.\")*IF($F86=\"Customized\",\nIF(_xlfn.XLOOKUP($I86,'Customized Embodied EF'!$C:$C,'Customized Embodied EF'!H:H,\"error\",0)=\"\",\"Factor error\",_xlfn.XLOOKUP($I86,'Customized Embodied EF'!$C:$C,'Customized Embodied EF'!H:H,\"error\",0)),\n(_xlfn.XLOOKUP($I86,'Customized Embodied EF'!$C:$C,'Customized Embodied EF'!$E:$E,\"error\",0)))),\"Factor error\"),\"Factor error\")","v":0},{"$f":"IFERROR(IF(OR($I86='Customized Embodied EF'!$C:$C),(SUMIFS(P:P,$I:$I,$I86,$C:$C,\"G4.\")*IF($F86=\"Customized\",\nIF(_xlfn.XLOOKUP($I86,'Customized Embodied EF'!$C:$C,'Customized Embodied EF'!I:I,\"error\",0)=\"\",\"Factor error\",_xlfn.XLOOKUP($I86,'Customized Embodied EF'!$C:$C,'Customized Embodied EF'!I:I,\"error\",0)),\n(_xlfn.XLOOKUP($I86,'Customized Embodied EF'!$C:$C,'Customized Embodied EF'!$E:$E,\"error\",0)))),\"Factor error\"),\"Factor error\")","v":0},{"$f":"IFERROR(IF(OR($I86='Customized Embodied EF'!$C:$C),(SUMIFS(Q:Q,$I:$I,$I86,$C:$C,\"G4.\")*IF($F86=\"Customized\",\nIF(_xlfn.XLOOKUP($I86,'Customized Embodied EF'!$C:$C,'Customized Embodied EF'!J:J,\"error\",0)=\"\",\"Factor error\",_xlfn.XLOOKUP($I86,'Customized Embodied EF'!$C:$C,'Customized Embodied EF'!J:J,\"error\",0)),\n(_xlfn.XLOOKUP($I86,'Customized Embodied EF'!$C:$C,'Customized Embodied EF'!$E:$E,\"error\",0)))),\"Factor error\"),\"Factor error\")","v":0},{"$f":"IFERROR(IF(OR($I86='Customized Embodied EF'!$C:$C),(SUMIFS(R:R,$I:$I,$I86,$C:$C,\"G4.\")*IF($F86=\"Customized\",\nIF(_xlfn.XLOOKUP($I86,'Customized Embodied EF'!$C:$C,'Customized Embodied EF'!K:K,\"error\",0)=\"\",\"Factor error\",_xlfn.XLOOKUP($I86,'Customized Embodied EF'!$C:$C,'Customized Embodied EF'!K:K,\"error\",0)),\n(_xlfn.XLOOKUP($I86,'Customized Embodied EF'!$C:$C,'Customized Embodied EF'!$E:$E,\"error\",0)))),\"Factor error\"),\"Factor error\")","v":0},{"$f":"IFERROR(IF(OR($I86='Customized Embodied EF'!$C:$C),(SUMIFS(S:S,$I:$I,$I86,$C:$C,\"G4.\")*IF($F86=\"Customized\",\nIF(_xlfn.XLOOKUP($I86,'Customized Embodied EF'!$C:$C,'Customized Embodied EF'!L:L,\"error\",0)=\"\",\"Factor error\",_xlfn.XLOOKUP($I86,'Customized Embodied EF'!$C:$C,'Customized Embodied EF'!L:L,\"error\",0)),\n(_xlfn.XLOOKUP($I86,'Customized Embodied EF'!$C:$C,'Customized Embodied EF'!$E:$E,\"error\",0)))),\"Factor error\"),\"Factor error\")","v":0},{"$f":"IFERROR(IF(OR($I86='Customized Embodied EF'!$C:$C),(SUMIFS(T:T,$I:$I,$I86,$C:$C,\"G4.\")*IF($F86=\"Customized\",\nIF(_xlfn.XLOOKUP($I86,'Customized Embodied EF'!$C:$C,'Customized Embodied EF'!M:M,\"error\",0)=\"\",\"Factor error\",_xlfn.XLOOKUP($I86,'Customized Embodied EF'!$C:$C,'Customized Embodied EF'!M:M,\"error\",0)),\n(_xlfn.XLOOKUP($I86,'Customized Embodied EF'!$C:$C,'Customized Embodied EF'!$E:$E,\"error\",0)))),\"Factor error\"),\"Factor error\")","v":0},{"$f":"IFERROR(IF(OR($I86='Customized Embodied EF'!$C:$C),(SUMIFS(U:U,$I:$I,$I86,$C:$C,\"G4.\")*IF($F86=\"Customized\",\nIF(_xlfn.XLOOKUP($I86,'Customized Embodied EF'!$C:$C,'Customized Embodied EF'!N:N,\"error\",0)=\"\",\"Factor error\",_xlfn.XLOOKUP($I86,'Customized Embodied EF'!$C:$C,'Customized Embodied EF'!N:N,\"error\",0)),\n(_xlfn.XLOOKUP($I86,'Customized Embodied EF'!$C:$C,'Customized Embodied EF'!$E:$E,\"error\",0)))),\"Factor error\"),\"Factor error\")","v":0},{"$f":"IFERROR(IF(OR($I86='Customized Embodied EF'!$C:$C),(SUMIFS(V:V,$I:$I,$I86,$C:$C,\"G4.\")*IF($F86=\"Customized\",\nIF(_xlfn.XLOOKUP($I86,'Customized Embodied EF'!$C:$C,'Customized Embodied EF'!O:O,\"error\",0)=\"\",\"Factor error\",_xlfn.XLOOKUP($I86,'Customized Embodied EF'!$C:$C,'Customized Embodied EF'!O:O,\"error\",0)),\n(_xlfn.XLOOKUP($I86,'Customized Embodied EF'!$C:$C,'Customized Embodied EF'!$E:$E,\"error\",0)))),\"Factor error\"),\"Factor error\")","v":0},{"$f":"IFERROR(IF(OR($I86='Customized Embodied EF'!$C:$C),(SUMIFS(W:W,$I:$I,$I86,$C:$C,\"G4.\")*IF($F86=\"Customized\",\nIF(_xlfn.XLOOKUP($I86,'Customized Embodied EF'!$C:$C,'Customized Embodied EF'!P:P,\"error\",0)=\"\",\"Factor error\",_xlfn.XLOOKUP($I86,'Customized Embodied EF'!$C:$C,'Customized Embodied EF'!P:P,\"error\",0)),\n(_xlfn.XLOOKUP($I86,'Customized Embodied EF'!$C:$C,'Customized Embodied EF'!$E:$E,\"error\",0)))),\"Factor error\"),\"Factor error\")","v":0},{"$f":"IFERROR(IF(OR($I86='Customized Embodied EF'!$C:$C),(SUMIFS(X:X,$I:$I,$I86,$C:$C,\"G4.\")*IF($F86=\"Customized\",\nIF(_xlfn.XLOOKUP($I86,'Customized Embodied EF'!$C:$C,'Customized Embodied EF'!Q:Q,\"error\",0)=\"\",\"Factor error\",_xlfn.XLOOKUP($I86,'Customized Embodied EF'!$C:$C,'Customized Embodied EF'!Q:Q,\"error\",0)),\n(_xlfn.XLOOKUP($I86,'Customized Embodied EF'!$C:$C,'Customized Embodied EF'!$E:$E,\"error\",0)))),\"Factor error\"),\"Factor error\")","v":0},{"$f":"IFERROR(IF(OR($I86='Customized Embodied EF'!$C:$C),(SUMIFS(Y:Y,$I:$I,$I86,$C:$C,\"G4.\")*IF($F86=\"Customized\",\nIF(_xlfn.XLOOKUP($I86,'Customized Embodied EF'!$C:$C,'Customized Embodied EF'!R:R,\"error\",0)=\"\",\"Factor error\",_xlfn.XLOOKUP($I86,'Customized Embodied EF'!$C:$C,'Customized Embodied EF'!R:R,\"error\",0)),\n(_xlfn.XLOOKUP($I86,'Customized Embodied EF'!$C:$C,'Customized Embodied EF'!$E:$E,\"error\",0)))),\"Factor error\"),\"Factor error\")","v":0},{"$f":"IFERROR(IF(OR($I86='Customized Embodied EF'!$C:$C),(SUMIFS(Z:Z,$I:$I,$I86,$C:$C,\"G4.\")*IF($F86=\"Customized\",\nIF(_xlfn.XLOOKUP($I86,'Customized Embodied EF'!$C:$C,'Customized Embodied EF'!S:S,\"error\",0)=\"\",\"Factor error\",_xlfn.XLOOKUP($I86,'Customized Embodied EF'!$C:$C,'Customized Embodied EF'!S:S,\"error\",0)),\n(_xlfn.XLOOKUP($I86,'Customized Embodied EF'!$C:$C,'Customized Embodied EF'!$E:$E,\"error\",0)))),\"Factor error\"),\"Factor error\")","v":0},{"$f":"IFERROR(IF(OR($I86='Customized Embodied EF'!$C:$C),(SUMIFS(AA:AA,$I:$I,$I86,$C:$C,\"G4.\")*IF($F86=\"Customized\",\nIF(_xlfn.XLOOKUP($I86,'Customized Embodied EF'!$C:$C,'Customized Embodied EF'!T:T,\"error\",0)=\"\",\"Factor error\",_xlfn.XLOOKUP($I86,'Customized Embodied EF'!$C:$C,'Customized Embodied EF'!T:T,\"error\",0)),\n(_xlfn.XLOOKUP($I86,'Customized Embodied EF'!$C:$C,'Customized Embodied EF'!$E:$E,\"error\",0)))),\"Factor error\"),\"Factor error\")","v":0},{"$f":"IFERROR(IF(OR($I86='Customized Embodied EF'!$C:$C),(SUMIFS(AB:AB,$I:$I,$I86,$C:$C,\"G4.\")*IF($F86=\"Customized\",\nIF(_xlfn.XLOOKUP($I86,'Customized Embodied EF'!$C:$C,'Customized Embodied EF'!U:U,\"error\",0)=\"\",\"Factor error\",_xlfn.XLOOKUP($I86,'Customized Embodied EF'!$C:$C,'Customized Embodied EF'!U:U,\"error\",0)),\n(_xlfn.XLOOKUP($I86,'Customized Embodied EF'!$C:$C,'Customized Embodied EF'!$E:$E,\"error\",0)))),\"Factor error\"),\"Factor error\")","v":0},{"$f":"IFERROR(IF(OR($I86='Customized Embodied EF'!$C:$C),(SUMIFS(AC:AC,$I:$I,$I86,$C:$C,\"G4.\")*IF($F86=\"Customized\",\nIF(_xlfn.XLOOKUP($I86,'Customized Embodied EF'!$C:$C,'Customized Embodied EF'!V:V,\"error\",0)=\"\",\"Factor error\",_xlfn.XLOOKUP($I86,'Customized Embodied EF'!$C:$C,'Customized Embodied EF'!V:V,\"error\",0)),\n(_xlfn.XLOOKUP($I86,'Customized Embodied EF'!$C:$C,'Customized Embodied EF'!$E:$E,\"error\",0)))),\"Factor error\"),\"Factor error\")","v":0},{"$f":"IFERROR(IF(OR($I86='Customized Embodied EF'!$C:$C),(SUMIFS(AD:AD,$I:$I,$I86,$C:$C,\"G4.\")*IF($F86=\"Customized\",\nIF(_xlfn.XLOOKUP($I86,'Customized Embodied EF'!$C:$C,'Customized Embodied EF'!W:W,\"error\",0)=\"\",\"Factor error\",_xlfn.XLOOKUP($I86,'Customized Embodied EF'!$C:$C,'Customized Embodied EF'!W:W,\"error\",0)),\n(_xlfn.XLOOKUP($I86,'Customized Embodied EF'!$C:$C,'Customized Embodied EF'!$E:$E,\"error\",0)))),\"Factor error\"),\"Factor error\")","v":0}]
[null,null,"A1.2.5",null,null,null,null,null,"Total CO2e in Stage A1","[t CO2e/reporting period]",{"$f":"SUM(M87:AD87)","v":0},null,{"$f":"IF(AND(M68=\"\",M83=\"\"),\"\",(M68+M83))","v":0},{"$f":"IF(AND(N68=\"\",N83=\"\"),\"\",(N68+N83))","v":0},0,0,0,0,0,0,0,0,0,0,0,0,0,0,0,0]
[null,"A2","PROJECT LIFE CYCLE STAGE: A2 OFF-SITE TRANSPORTATION OF RAW MATERIALS TO MANUFACTURING PLANT"]
[null,null,"A2.1 CO2e EMISSIONS ",null,null,null,null,null,null,"unit","Total",null,"Product 1","Product 2","Product 3","Product 4","Product 5","Product 6","Product 7","Product 8","Product 9","Product 10","Product 11","Product 12","Product 13","Product 14","Product 15","Product 16","Product 17","Product 18"]
[null,null,"A2.1.1",null,null,"CO2e from off-site transportation of raw material to manufacturing plant"]
[null,null,null,{"$f":"C90","v":"A2.1.1"},".1","CO2e calculated using either 1) WRI & WBCSD's protocol OR 2) EPD & EMSD's carbon audit tool)",null,null,null,"[t CO2e/reporting period]",{"$f":"SUM(M91:AD91)","v":0}]
[null,null,"A2.1.2",null,null,null,null,null,"Total CO2e in Stage A2","[t CO2e/reporting period]",{"$f":"IF(AND(K91=\"\"),\"\",(K91))","v":0},null,{"$f":"IF(AND(M91=\"\"),\"\",(M91))","v":""},{"$f":"IF(AND(N91=\"\"),\"\",(N91))","v":""},{"$f":"IF(AND(O91=\"\"),\"\",(O91))","v":""},"","","","","","","","","","","","","","",""]
[null,"A3","PROJECT LIFE CYCLE STAGE: A3 PRODUCT MANUFACTURING AND FABRICATION (WITHOUT WASTAGE)"]
[null,null,"A3.1 CO2e EMISSIONS ",null,null,null,null,null,null,"unit","Total",null,"Product 1","Product 2","Product 3","Product 4","Product 5","Product 6","Product 7","Product 8","Product 9","Product 10","Product 11","Product 12","Product 13","Product 14","Product 15","Product 16","Product 17","Product 18"]
[null,null,"A3.1.1",null,null,"CO2e from product manufacturing (stationary combustion sources)",null,null,null,"[t CO2e/reporting period]",{"$f":"SUM(M95:AD95)","v":0},null,{"$f":"SUMIF($D:$D,$C95,M:M)","v":0},0,0,0,0,0,0,0,0,0,0,0,0,0,0,0,0,0]
[null,null,null,null,null,"Adopting CO2e Factors ","Adopting LHV Factors ","[Please insert additional rows if more energy commodities are included]"]
[null,null,null,{"$f":"C95","v":"A3.1.1"},".1",null,null,null,null,"[t CO2e/reporting period]",{"$f":"SUM(M97:AD97)","v":0},null,{"$f":"IFERROR(IF(OR($H97='Customized Fuel EF'!$A:$A),(SUMIFS(M:M,$D:$D,$D56,$I:$I,$H97)*IF($G97=\"Customized\",\nIF(_xlfn.XLOOKUP($H97,'Customized Fuel LHV'!$A:$A,'Customized Fuel LHV'!D:D,\"No LHV\",0)=\"\",\"Factor error\",_xlfn.XLOOKUP($H97,'Customized Fuel LHV'!$A:$A,'Customized Fuel LHV'!D:D,\"No LHV\",0)),_xlfn.XLOOKUP($H97,'Customized Fuel LHV'!$A:$A,'Customized Fuel LHV'!$C:$C,\"No LHV\",0)))\n*IF($F97=\"Customized\",IF(_xlfn.XLOOKUP($H97,'Customized Fuel EF'!$A:$A,'Customized Fuel EF'!D:D,\"No EF\",0)=\"\",\"Factor error\",_xlfn.XLOOKUP($H97,'Customized Fuel EF'!$A:$A,'Customized Fuel EF'!D:D,\"No EF\",0)),_xlfn.XLOOKUP($H97,'Customized Fuel EF'!$A:$A,'Customized Fuel EF'!$C:$C,\"No EF\",0))/1000,\"Factor error\"),\"Factor error\")","v":0},{"$f":"IFERROR(IF(OR($H97='Customized Fuel EF'!$A:$A),(SUMIFS(N:N,$D:$D,$D56,$I:$I,$H97)*IF($G97=\"Customized\",\nIF(_xlfn.XLOOKUP($H97,'Customized Fuel LHV'!$A:$A,'Customized Fuel LHV'!E:E,\"No LHV\",0)=\"\",\"Factor error\",_xlfn.XLOOKUP($H97,'Customized Fuel LHV'!$A:$A,'Customized Fuel LHV'!E:E,\"No LHV\",0)),_xlfn.XLOOKUP($H97,'Customized Fuel LHV'!$A:$A,'Customized Fuel LHV'!$C:$C,\"No LHV\",0)))\n*IF($F97=\"Customized\",IF(_xlfn.XLOOKUP($H97,'Customized Fuel EF'!$A:$A,'Customized Fuel EF'!E:E,\"No EF\",0)=\"\",\"Factor error\",_xlfn.XLOOKUP($H97,'Customized Fuel EF'!$A:$A,'Customized Fuel EF'!E:E,\"No EF\",0)),_xlfn.XLOOKUP($H97,'Customized Fuel EF'!$A:$A,'Customized Fuel EF'!$C:$C,\"No EF\",0))/1000,\"Factor error\"),\"Factor error\")","v":0},{"$f":"IFERROR(IF(OR($H97='Customized Fuel EF'!$A:$A),(SUMIFS(O:O,$D:$D,$D56,$I:$I,$H97)*IF($G97=\"Customized\",\nIF(_xlfn.XLOOKUP($H97,'Customized Fuel LHV'!$A:$A,'Customized Fuel LHV'!F:F,\"No LHV\",0)=\"\",\"Factor error\",_xlfn.XLOOKUP($H97,'Customized Fuel LHV'!$A:$A,'Customized Fuel LHV'!F:F,\"No LHV\",0)),_xlfn.XLOOKUP($H97,'Customized Fuel LHV'!$A:$A,'Customized Fuel LHV'!$C:$C,\"No LHV\",0)))\n*IF($F97=\"Customized\",IF(_xlfn.XLOOKUP($H97,'Customized Fuel EF'!$A:$A,'Customized Fuel EF'!F:F,\"No EF\",0)=\"\",\"Factor error\",_xlfn.XLOOKUP($H97,'Customized Fuel EF'!$A:$A,'Customized Fuel EF'!F:F,\"No EF\",0)),_xlfn.XLOOKUP($H97,'Customized Fuel EF'!$A:$A,'Customized Fuel EF'!$C:$C,\"No EF\",0))/1000,\"Factor error\"),\"Factor error\")","v":0},{"$f":"IFERROR(IF(OR($H97='Customized Fuel EF'!$A:$A),(SUMIFS(P:P,$D:$D,$D56,$I:$I,$H97)*IF($G97=\"Customized\",\nIF(_xlfn.XLOOKUP($H97,'Customized Fuel LHV'!$A:$A,'Customized Fuel LHV'!G:G,\"No LHV\",0)=\"\",\"Factor error\",_xlfn.XLOOKUP($H97,'Customized Fuel LHV'!$A:$A,'Customized Fuel LHV'!G:G,\"No LHV\",0)),_xlfn.XLOOKUP($H97,'Customized Fuel LHV'!$A:$A,'Customized Fuel LHV'!$C:$C,\"No LHV\",0)))\n*IF($F97=\"Customized\",IF(_xlfn.XLOOKUP($H97,'Customized Fuel EF'!$A:$A,'Customized Fuel EF'!G:G,\"No EF\",0)=\"\",\"Factor error\",_xlfn.XLOOKUP($H97,'Customized Fuel EF'!$A:$A,'Customized Fuel EF'!G:G,\"No EF\",0)),_xlfn.XLOOKUP($H97,'Customized Fuel EF'!$A:$A,'Customized Fuel EF'!$C:$C,\"No EF\",0))/1000,\"Factor error\"),\"Factor error\")","v":0},{"$f":"IFERROR(IF(OR($H97='Customized Fuel EF'!$A:$A),(SUMIFS(Q:Q,$D:$D,$D56,$I:$I,$H97)*IF($G97=\"Customized\",\nIF(_xlfn.XLOOKUP($H97,'Customized Fuel LHV'!$A:$A,'Customized Fuel LHV'!H:H,\"No LHV\",0)=\"\",\"Factor error\",_xlfn.XLOOKUP($H97,'Customized Fuel LHV'!$A:$A,'Customized Fuel LHV'!H:H,\"No LHV\",0)),_xlfn.XLOOKUP($H97,'Customized Fuel LHV'!$A:$A,'Customized Fuel LHV'!$C:$C,\"No LHV\",0)))\n*IF($F97=\"Customized\",IF(_xlfn.XLOOKUP($H97,'Customized Fuel EF'!$A:$A,'Customized Fuel EF'!H:H,\"No EF\",0)=\"\",\"Factor error\",_xlfn.XLOOKUP($H97,'Customized Fuel EF'!$A:$A,'Customized Fuel EF'!H:H,\"No EF\",0)),_xlfn.XLOOKUP($H97,'Customized Fuel EF'!$A:$A,'Customized Fuel EF'!$C:$C,\"No EF\",0))/1000,\"Factor error\"),\"Factor error\")","v":0},{"$f":"IFERROR(IF(OR($H97='Customized Fuel EF'!$A:$A),(SUMIFS(R:R,$D:$D,$D56,$I:$I,$H97)*IF($G97=\"Customized\",\nIF(_xlfn.XLOOKUP($H97,'Customized Fuel LHV'!$A:$A,'Customized Fuel LHV'!I:I,\"No LHV\",0)=\"\",\"Factor error\",_xlfn.XLOOKUP($H97,'Customized Fuel LHV'!$A:$A,'Customized Fuel LHV'!I:I,\"No LHV\",0)),_xlfn.XLOOKUP($H97,'Customized Fuel LHV'!$A:$A,'Customized Fuel LHV'!$C:$C,\"No LHV\",0)))\n*IF($F97=\"Customized\",IF(_xlfn.XLOOKUP($H97,'Customized Fuel EF'!$A:$A,'Customized Fuel EF'!I:I,\"No EF\",0)=\"\",\"Factor error\",_xlfn.XLOOKUP($H97,'Customized Fuel EF'!$A:$A,'Customized Fuel EF'!I:I,\"No EF\",0)),_xlfn.XLOOKUP($H97,'Customized Fuel EF'!$A:$A,'Customized Fuel EF'!$C:$C,\"No EF\",0))/1000,\"Factor error\"),\"Factor error\")","v":0},{"$f":"IFERROR(IF(OR($H97='Customized Fuel EF'!$A:$A),(SUMIFS(S:S,$D:$D,$D56,$I:$I,$H97)*IF($G97=\"Customized\",\nIF(_xlfn.XLOOKUP($H97,'Customized Fuel LHV'!$A:$A,'Customized Fuel LHV'!J:J,\"No LHV\",0)=\"\",\"Factor error\",_xlfn.XLOOKUP($H97,'Customized Fuel LHV'!$A:$A,'Customized Fuel LHV'!J:J,\"No LHV\",0)),_xlfn.XLOOKUP($H97,'Customized Fuel LHV'!$A:$A,'Customized Fuel LHV'!$C:$C,\"No LHV\",0)))\n*IF($F97=\"Customized\",IF(_xlfn.XLOOKUP($H97,'Customized Fuel EF'!$A:$A,'Customized Fuel EF'!J:J,\"No EF\",0)=\"\",\"Factor error\",_xlfn.XLOOKUP($H97,'Customized Fuel EF'!$A:$A,'Customized Fuel EF'!J:J,\"No EF\",0)),_xlfn.XLOOKUP($H97,'Customized Fuel EF'!$A:$A,'Customized Fuel EF'!$C:$C,\"No EF\",0))/1000,\"Factor error\"),\"Factor error\")","v":0},{"$f":"IFERROR(IF(OR($H97='Customized Fuel EF'!$A:$A),(SUMIFS(T:T,$D:$D,$D56,$I:$I,$H97)*IF($G97=\"Customized\",\nIF(_xlfn.XLOOKUP($H97,'Customized Fuel LHV'!$A:$A,'Customized Fuel LHV'!K:K,\"No LHV\",0)=\"\",\"Factor error\",_xlfn.XLOOKUP($H97,'Customized Fuel LHV'!$A:$A,'Customized Fuel LHV'!K:K,\"No LHV\",0)),_xlfn.XLOOKUP($H97,'Customized Fuel LHV'!$A:$A,'Customized Fuel LHV'!$C:$C,\"No LHV\",0)))\n*IF($F97=\"Customized\",IF(_xlfn.XLOOKUP($H97,'Customized Fuel EF'!$A:$A,'Customized Fuel EF'!K:K,\"No EF\",0)=\"\",\"Factor error\",_xlfn.XLOOKUP($H97,'Customized Fuel EF'!$A:$A,'Customized Fuel EF'!K:K,\"No EF\",0)),_xlfn.XLOOKUP($H97,'Customized Fuel EF'!$A:$A,'Customized Fuel EF'!$C:$C,\"No EF\",0))/1000,\"Factor error\"),\"Factor error\")","v":0},{"$f":"IFERROR(IF(OR($H97='Customized Fuel EF'!$A:$A),(SUMIFS(U:U,$D:$D,$D56,$I:$I,$H97)*IF($G97=\"Customized\",\nIF(_xlfn.XLOOKUP($H97,'Customized Fuel LHV'!$A:$A,'Customized Fuel LHV'!L:L,\"No LHV\",0)=\"\",\"Factor error\",_xlfn.XLOOKUP($H97,'Customized Fuel LHV'!$A:$A,'Customized Fuel LHV'!L:L,\"No LHV\",0)),_xlfn.XLOOKUP($H97,'Customized Fuel LHV'!$A:$A,'Customized Fuel LHV'!$C:$C,\"No LHV\",0)))\n*IF($F97=\"Customized\",IF(_xlfn.XLOOKUP($H97,'Customized Fuel EF'!$A:$A,'Customized Fuel EF'!L:L,\"No EF\",0)=\"\",\"Factor error\",_xlfn.XLOOKUP($H97,'Customized Fuel EF'!$A:$A,'Customized Fuel EF'!L:L,\"No EF\",0)),_xlfn.XLOOKUP($H97,'Customized Fuel EF'!$A:$A,'Customized Fuel EF'!$C:$C,\"No EF\",0))/1000,\"Factor error\"),\"Factor error\")","v":0},{"$f":"IFERROR(IF(OR($H97='Customized Fuel EF'!$A:$A),(SUMIFS(V:V,$D:$D,$D56,$I:$I,$H97)*IF($G97=\"Customized\",\nIF(_xlfn.XLOOKUP($H97,'Customized Fuel LHV'!$A:$A,'Customized Fuel LHV'!M:M,\"No LHV\",0)=\"\",\"Factor error\",_xlfn.XLOOKUP($H97,'Customized Fuel LHV'!$A:$A,'Customized Fuel LHV'!M:M,\"No LHV\",0)),_xlfn.XLOOKUP($H97,'Customized Fuel LHV'!$A:$A,'Customized Fuel LHV'!$C:$C,\"No LHV\",0)))\n*IF($F97=\"Customized\",IF(_xlfn.XLOOKUP($H97,'Customized Fuel EF'!$A:$A,'Customized Fuel EF'!M:M,\"No EF\",0)=\"\",\"Factor error\",_xlfn.XLOOKUP($H97,'Customized Fuel EF'!$A:$A,'Customized Fuel EF'!M:M,\"No EF\",0)),_xlfn.XLOOKUP($H97,'Customized Fuel EF'!$A:$A,'Customized Fuel EF'!$C:$C,\"No EF\",0))/1000,\"Factor error\"),\"Factor error\")","v":0},{"$f":"IFERROR(IF(OR($H97='Customized Fuel EF'!$A:$A),(SUMIFS(W:W,$D:$D,$D56,$I:$I,$H97)*IF($G97=\"Customized\",\nIF(_xlfn.XLOOKUP($H97,'Customized Fuel LHV'!$A:$A,'Customized Fuel LHV'!N:N,\"No LHV\",0)=\"\",\"Factor error\",_xlfn.XLOOKUP($H97,'Customized Fuel LHV'!$A:$A,'Customized Fuel LHV'!N:N,\"No LHV\",0)),_xlfn.XLOOKUP($H97,'Customized Fuel LHV'!$A:$A,'Customized Fuel LHV'!$C:$C,\"No LHV\",0)))\n*IF($F97=\"Customized\",IF(_xlfn.XLOOKUP($H97,'Customized Fuel EF'!$A:$A,'Customized Fuel EF'!N:N,\"No EF\",0)=\"\",\"Factor error\",_xlfn.XLOOKUP($H97,'Customized Fuel EF'!$A:$A,'Customized Fuel EF'!N:N,\"No EF\",0)),_xlfn.XLOOKUP($H97,'Customized Fuel EF'!$A:$A,'Customized Fuel EF'!$C:$C,\"No EF\",0))/1000,\"Factor error\"),\"Factor error\")","v":0},{"$f":"IFERROR(IF(OR($H97='Customized Fuel EF'!$A:$A),(SUMIFS(X:X,$D:$D,$D56,$I:$I,$H97)*IF($G97=\"Customized\",\nIF(_xlfn.XLOOKUP($H97,'Customized Fuel LHV'!$A:$A,'Customized Fuel LHV'!O:O,\"No LHV\",0)=\"\",\"Factor error\",_xlfn.XLOOKUP($H97,'Customized Fuel LHV'!$A:$A,'Customized Fuel LHV'!O:O,\"No LHV\",0)),_xlfn.XLOOKUP($H97,'Customized Fuel LHV'!$A:$A,'Customized Fuel LHV'!$C:$C,\"No LHV\",0)))\n*IF($F97=\"Customized\",IF(_xlfn.XLOOKUP($H97,'Customized Fuel EF'!$A:$A,'Customized Fuel EF'!O:O,\"No EF\",0)=\"\",\"Factor error\",_xlfn.XLOOKUP($H97,'Customized Fuel EF'!$A:$A,'Customized Fuel EF'!O:O,\"No EF\",0)),_xlfn.XLOOKUP($H97,'Customized Fuel EF'!$A:$A,'Customized Fuel EF'!$C:$C,\"No EF\",0))/1000,\"Factor error\"),\"Factor error\")","v":0},{"$f":"IFERROR(IF(OR($H97='Customized Fuel EF'!$A:$A),(SUMIFS(Y:Y,$D:$D,$D56,$I:$I,$H97)*IF($G97=\"Customized\",\nIF(_xlfn.XLOOKUP($H97,'Customized Fuel LHV'!$A:$A,'Customized Fuel LHV'!P:P,\"No LHV\",0)=\"\",\"Factor error\",_xlfn.XLOOKUP($H97,'Customized Fuel LHV'!$A:$A,'Customized Fuel LHV'!P:P,\"No LHV\",0)),_xlfn.XLOOKUP($H97,'Customized Fuel LHV'!$A:$A,'Customized Fuel LHV'!$C:$C,\"No LHV\",0)))\n*IF($F97=\"Customized\",IF(_xlfn.XLOOKUP($H97,'Customized Fuel EF'!$A:$A,'Customized Fuel EF'!P:P,\"No EF\",0)=\"\",\"Factor error\",_xlfn.XLOOKUP($H97,'Customized Fuel EF'!$A:$A,'Customized Fuel EF'!P:P,\"No EF\",0)),_xlfn.XLOOKUP($H97,'Customized Fuel EF'!$A:$A,'Customized Fuel EF'!$C:$C,\"No EF\",0))/1000,\"Factor error\"),\"Factor error\")","v":0},{"$f":"IFERROR(IF(OR($H97='Customized Fuel EF'!$A:$A),(SUMIFS(Z:Z,$D:$D,$D56,$I:$I,$H97)*IF($G97=\"Customized\",\nIF(_xlfn.XLOOKUP($H97,'Customized Fuel LHV'!$A:$A,'Customized Fuel LHV'!Q:Q,\"No LHV\",0)=\"\",\"Factor error\",_xlfn.XLOOKUP($H97,'Customized Fuel LHV'!$A:$A,'Customized Fuel LHV'!Q:Q,\"No LHV\",0)),_xlfn.XLOOKUP($H97,'Customized Fuel LHV'!$A:$A,'Customized Fuel LHV'!$C:$C,\"No LHV\",0)))\n*IF($F97=\"Customized\",IF(_xlfn.XLOOKUP($H97,'Customized Fuel EF'!$A:$A,'Customized Fuel EF'!Q:Q,\"No EF\",0)=\"\",\"Factor error\",_xlfn.XLOOKUP($H97,'Customized Fuel EF'!$A:$A,'Customized Fuel EF'!Q:Q,\"No EF\",0)),_xlfn.XLOOKUP($H97,'Customized Fuel EF'!$A:$A,'Customized Fuel EF'!$C:$C,\"No EF\",0))/1000,\"Factor error\"),\"Factor error\")","v":0},{"$f":"IFERROR(IF(OR($H97='Customized Fuel EF'!$A:$A),(SUMIFS(AA:AA,$D:$D,$D56,$I:$I,$H97)*IF($G97=\"Customized\",\nIF(_xlfn.XLOOKUP($H97,'Customized Fuel LHV'!$A:$A,'Customized Fuel LHV'!R:R,\"No LHV\",0)=\"\",\"Factor error\",_xlfn.XLOOKUP($H97,'Customized Fuel LHV'!$A:$A,'Customized Fuel LHV'!R:R,\"No LHV\",0)),_xlfn.XLOOKUP($H97,'Customized Fuel LHV'!$A:$A,'Customized Fuel LHV'!$C:$C,\"No LHV\",0)))\n*IF($F97=\"Customized\",IF(_xlfn.XLOOKUP($H97,'Customized Fuel EF'!$A:$A,'Customized Fuel EF'!R:R,\"No EF\",0)=\"\",\"Factor error\",_xlfn.XLOOKUP($H97,'Customized Fuel EF'!$A:$A,'Customized Fuel EF'!R:R,\"No EF\",0)),_xlfn.XLOOKUP($H97,'Customized Fuel EF'!$A:$A,'Customized Fuel EF'!$C:$C,\"No EF\",0))/1000,\"Factor error\"),\"Factor error\")","v":0},{"$f":"IFERROR(IF(OR($H97='Customized Fuel EF'!$A:$A),(SUMIFS(AB:AB,$D:$D,$D56,$I:$I,$H97)*IF($G97=\"Customized\",\nIF(_xlfn.XLOOKUP($H97,'Customized Fuel LHV'!$A:$A,'Customized Fuel LHV'!S:S,\"No LHV\",0)=\"\",\"Factor error\",_xlfn.XLOOKUP($H97,'Customized Fuel LHV'!$A:$A,'Customized Fuel LHV'!S:S,\"No LHV\",0)),_xlfn.XLOOKUP($H97,'Customized Fuel LHV'!$A:$A,'Customized Fuel LHV'!$C:$C,\"No LHV\",0)))\n*IF($F97=\"Customized\",IF(_xlfn.XLOOKUP($H97,'Customized Fuel EF'!$A:$A,'Customized Fuel EF'!S:S,\"No EF\",0)=\"\",\"Factor error\",_xlfn.XLOOKUP($H97,'Customized Fuel EF'!$A:$A,'Customized Fuel EF'!S:S,\"No EF\",0)),_xlfn.XLOOKUP($H97,'Customized Fuel EF'!$A:$A,'Customized Fuel EF'!$C:$C,\"No EF\",0))/1000,\"Factor error\"),\"Factor error\")","v":0},{"$f":"IFERROR(IF(OR($H97='Customized Fuel EF'!$A:$A),(SUMIFS(AC:AC,$D:$D,$D56,$I:$I,$H97)*IF($G97=\"Customized\",\nIF(_xlfn.XLOOKUP($H97,'Customized Fuel LHV'!$A:$A,'Customized Fuel LHV'!T:T,\"No LHV\",0)=\"\",\"Factor error\",_xlfn.XLOOKUP($H97,'Customized Fuel LHV'!$A:$A,'Customized Fuel LHV'!T:T,\"No LHV\",0)),_xlfn.XLOOKUP($H97,'Customized Fuel LHV'!$A:$A,'Customized Fuel LHV'!$C:$C,\"No LHV\",0)))\n*IF($F97=\"Customized\",IF(_xlfn.XLOOKUP($H97,'Customized Fuel EF'!$A:$A,'Customized Fuel EF'!T:T,\"No EF\",0)=\"\",\"Factor error\",_xlfn.XLOOKUP($H97,'Customized Fuel EF'!$A:$A,'Customized Fuel EF'!T:T,\"No EF\",0)),_xlfn.XLOOKUP($H97,'Customized Fuel EF'!$A:$A,'Customized Fuel EF'!$C:$C,\"No EF\",0))/1000,\"Factor error\"),\"Factor error\")","v":0},{"$f":"IFERROR(IF(OR($H97='Customized Fuel EF'!$A:$A),(SUMIFS(AD:AD,$D:$D,$D56,$I:$I,$H97)*IF($G97=\"Customized\",\nIF(_xlfn.XLOOKUP($H97,'Customized Fuel LHV'!$A:$A,'Customized Fuel LHV'!U:U,\"No LHV\",0)=\"\",\"Factor error\",_xlfn.XLOOKUP($H97,'Customized Fuel LHV'!$A:$A,'Customized Fuel LHV'!U:U,\"No LHV\",0)),_xlfn.XLOOKUP($H97,'Customized Fuel LHV'!$A:$A,'Customized Fuel LHV'!$C:$C,\"No LHV\",0)))\n*IF($F97=\"Customized\",IF(_xlfn.XLOOKUP($H97,'Customized Fuel EF'!$A:$A,'Customized Fuel EF'!U:U,\"No EF\",0)=\"\",\"Factor error\",_xlfn.XLOOKUP($H97,'Customized Fuel EF'!$A:$A,'Customized Fuel EF'!U:U,\"No EF\",0)),_xlfn.XLOOKUP($H97,'Customized Fuel EF'!$A:$A,'Customized Fuel EF'!$C:$C,\"No EF\",0))/1000,\"Factor error\"),\"Factor error\")","v":0}]
[null,null,null,{"$f":"C95","v":"A3.1.1"},".2",null,null,null,null,"[t CO2e/reporting period]",{"$f":"SUM(M98:AD98)","v":0},null,{"$f":"IFERROR(IF(OR($H98='Customized Fuel EF'!$A:$A),(SUMIFS(M:M,$D:$D,$D57,$I:$I,$H98)*IF($G98=\"Customized\",\nIF(_xlfn.XLOOKUP($H98,'Customized Fuel LHV'!$A:$A,'Customized Fuel LHV'!D:D,\"No LHV\",0)=\"\",\"Factor error\",_xlfn.XLOOKUP($H98,'Customized Fuel LHV'!$A:$A,'Customized Fuel LHV'!D:D,\"No LHV\",0)),_xlfn.XLOOKUP($H98,'Customized Fuel LHV'!$A:$A,'Customized Fuel LHV'!$C:$C,\"No LHV\",0)))\n*IF($F98=\"Customized\",IF(_xlfn.XLOOKUP($H98,'Customized Fuel EF'!$A:$A,'Customized Fuel EF'!D:D,\"No EF\",0)=\"\",\"Factor error\",_xlfn.XLOOKUP($H98,'Customized Fuel EF'!$A:$A,'Customized Fuel EF'!D:D,\"No EF\",0)),_xlfn.XLOOKUP($H98,'Customized Fuel EF'!$A:$A,'Customized Fuel EF'!$C:$C,\"No EF\",0))/1000,\"Factor error\"),\"Factor error\")","v":0},{"$f":"IFERROR(IF(OR($H98='Customized Fuel EF'!$A:$A),(SUMIFS(N:N,$D:$D,$D57,$I:$I,$H98)*IF($G98=\"Customized\",\nIF(_xlfn.XLOOKUP($H98,'Customized Fuel LHV'!$A:$A,'Customized Fuel LHV'!E:E,\"No LHV\",0)=\"\",\"Factor error\",_xlfn.XLOOKUP($H98,'Customized Fuel LHV'!$A:$A,'Customized Fuel LHV'!E:E,\"No LHV\",0)),_xlfn.XLOOKUP($H98,'Customized Fuel LHV'!$A:$A,'Customized Fuel LHV'!$C:$C,\"No LHV\",0)))\n*IF($F98=\"Customized\",IF(_xlfn.XLOOKUP($H98,'Customized Fuel EF'!$A:$A,'Customized Fuel EF'!E:E,\"No EF\",0)=\"\",\"Factor error\",_xlfn.XLOOKUP($H98,'Customized Fuel EF'!$A:$A,'Customized Fuel EF'!E:E,\"No EF\",0)),_xlfn.XLOOKUP($H98,'Customized Fuel EF'!$A:$A,'Customized Fuel EF'!$C:$C,\"No EF\",0))/1000,\"Factor error\"),\"Factor error\")","v":0},{"$f":"IFERROR(IF(OR($H98='Customized Fuel EF'!$A:$A),(SUMIFS(O:O,$D:$D,$D57,$I:$I,$H98)*IF($G98=\"Customized\",\nIF(_xlfn.XLOOKUP($H98,'Customized Fuel LHV'!$A:$A,'Customized Fuel LHV'!F:F,\"No LHV\",0)=\"\",\"Factor error\",_xlfn.XLOOKUP($H98,'Customized Fuel LHV'!$A:$A,'Customized Fuel LHV'!F:F,\"No LHV\",0)),_xlfn.XLOOKUP($H98,'Customized Fuel LHV'!$A:$A,'Customized Fuel LHV'!$C:$C,\"No LHV\",0)))\n*IF($F98=\"Customized\",IF(_xlfn.XLOOKUP($H98,'Customized Fuel EF'!$A:$A,'Customized Fuel EF'!F:F,\"No EF\",0)=\"\",\"Factor error\",_xlfn.XLOOKUP($H98,'Customized Fuel EF'!$A:$A,'Customized Fuel EF'!F:F,\"No EF\",0)),_xlfn.XLOOKUP($H98,'Customized Fuel EF'!$A:$A,'Customized Fuel EF'!$C:$C,\"No EF\",0))/1000,\"Factor error\"),\"Factor error\")","v":0},{"$f":"IFERROR(IF(OR($H98='Customized Fuel EF'!$A:$A),(SUMIFS(P:P,$D:$D,$D57,$I:$I,$H98)*IF($G98=\"Customized\",\nIF(_xlfn.XLOOKUP($H98,'Customized Fuel LHV'!$A:$A,'Customized Fuel LHV'!G:G,\"No LHV\",0)=\"\",\"Factor error\",_xlfn.XLOOKUP($H98,'Customized Fuel LHV'!$A:$A,'Customized Fuel LHV'!G:G,\"No LHV\",0)),_xlfn.XLOOKUP($H98,'Customized Fuel LHV'!$A:$A,'Customized Fuel LHV'!$C:$C,\"No LHV\",0)))\n*IF($F98=\"Customized\",IF(_xlfn.XLOOKUP($H98,'Customized Fuel EF'!$A:$A,'Customized Fuel EF'!G:G,\"No EF\",0)=\"\",\"Factor error\",_xlfn.XLOOKUP($H98,'Customized Fuel EF'!$A:$A,'Customized Fuel EF'!G:G,\"No EF\",0)),_xlfn.XLOOKUP($H98,'Customized Fuel EF'!$A:$A,'Customized Fuel EF'!$C:$C,\"No EF\",0))/1000,\"Factor error\"),\"Factor error\")","v":0},{"$f":"IFERROR(IF(OR($H98='Customized Fuel EF'!$A:$A),(SUMIFS(Q:Q,$D:$D,$D57,$I:$I,$H98)*IF($G98=\"Customized\",\nIF(_xlfn.XLOOKUP($H98,'Customized Fuel LHV'!$A:$A,'Customized Fuel LHV'!H:H,\"No LHV\",0)=\"\",\"Factor error\",_xlfn.XLOOKUP($H98,'Customized Fuel LHV'!$A:$A,'Customized Fuel LHV'!H:H,\"No LHV\",0)),_xlfn.XLOOKUP($H98,'Customized Fuel LHV'!$A:$A,'Customized Fuel LHV'!$C:$C,\"No LHV\",0)))\n*IF($F98=\"Customized\",IF(_xlfn.XLOOKUP($H98,'Customized Fuel EF'!$A:$A,'Customized Fuel EF'!H:H,\"No EF\",0)=\"\",\"Factor error\",_xlfn.XLOOKUP($H98,'Customized Fuel EF'!$A:$A,'Customized Fuel EF'!H:H,\"No EF\",0)),_xlfn.XLOOKUP($H98,'Customized Fuel EF'!$A:$A,'Customized Fuel EF'!$C:$C,\"No EF\",0))/1000,\"Factor error\"),\"Factor error\")","v":0},{"$f":"IFERROR(IF(OR($H98='Customized Fuel EF'!$A:$A),(SUMIFS(R:R,$D:$D,$D57,$I:$I,$H98)*IF($G98=\"Customized\",\nIF(_xlfn.XLOOKUP($H98,'Customized Fuel LHV'!$A:$A,'Customized Fuel LHV'!I:I,\"No LHV\",0)=\"\",\"Factor error\",_xlfn.XLOOKUP($H98,'Customized Fuel LHV'!$A:$A,'Customized Fuel LHV'!I:I,\"No LHV\",0)),_xlfn.XLOOKUP($H98,'Customized Fuel LHV'!$A:$A,'Customized Fuel LHV'!$C:$C,\"No LHV\",0)))\n*IF($F98=\"Customized\",IF(_xlfn.XLOOKUP($H98,'Customized Fuel EF'!$A:$A,'Customized Fuel EF'!I:I,\"No EF\",0)=\"\",\"Factor error\",_xlfn.XLOOKUP($H98,'Customized Fuel EF'!$A:$A,'Customized Fuel EF'!I:I,\"No EF\",0)),_xlfn.XLOOKUP($H98,'Customized Fuel EF'!$A:$A,'Customized Fuel EF'!$C:$C,\"No EF\",0))/1000,\"Factor error\"),\"Factor error\")","v":0},{"$f":"IFERROR(IF(OR($H98='Customized Fuel EF'!$A:$A),(SUMIFS(S:S,$D:$D,$D57,$I:$I,$H98)*IF($G98=\"Customized\",\nIF(_xlfn.XLOOKUP($H98,'Customized Fuel LHV'!$A:$A,'Customized Fuel LHV'!J:J,\"No LHV\",0)=\"\",\"Factor error\",_xlfn.XLOOKUP($H98,'Customized Fuel LHV'!$A:$A,'Customized Fuel LHV'!J:J,\"No LHV\",0)),_xlfn.XLOOKUP($H98,'Customized Fuel LHV'!$A:$A,'Customized Fuel LHV'!$C:$C,\"No LHV\",0)))\n*IF($F98=\"Customized\",IF(_xlfn.XLOOKUP($H98,'Customized Fuel EF'!$A:$A,'Customized Fuel EF'!J:J,\"No EF\",0)=\"\",\"Factor error\",_xlfn.XLOOKUP($H98,'Customized Fuel EF'!$A:$A,'Customized Fuel EF'!J:J,\"No EF\",0)),_xlfn.XLOOKUP($H98,'Customized Fuel EF'!$A:$A,'Customized Fuel EF'!$C:$C,\"No EF\",0))/1000,\"Factor error\"),\"Factor error\")","v":0},{"$f":"IFERROR(IF(OR($H98='Customized Fuel EF'!$A:$A),(SUMIFS(T:T,$D:$D,$D57,$I:$I,$H98)*IF($G98=\"Customized\",\nIF(_xlfn.XLOOKUP($H98,'Customized Fuel LHV'!$A:$A,'Customized Fuel LHV'!K:K,\"No LHV\",0)=\"\",\"Factor error\",_xlfn.XLOOKUP($H98,'Customized Fuel LHV'!$A:$A,'Customized Fuel LHV'!K:K,\"No LHV\",0)),_xlfn.XLOOKUP($H98,'Customized Fuel LHV'!$A:$A,'Customized Fuel LHV'!$C:$C,\"No LHV\",0)))\n*IF($F98=\"Customized\",IF(_xlfn.XLOOKUP($H98,'Customized Fuel EF'!$A:$A,'Customized Fuel EF'!K:K,\"No EF\",0)=\"\",\"Factor error\",_xlfn.XLOOKUP($H98,'Customized Fuel EF'!$A:$A,'Customized Fuel EF'!K:K,\"No EF\",0)),_xlfn.XLOOKUP($H98,'Customized Fuel EF'!$A:$A,'Customized Fuel EF'!$C:$C,\"No EF\",0))/1000,\"Factor error\"),\"Factor error\")","v":0},{"$f":"IFERROR(IF(OR($H98='Customized Fuel EF'!$A:$A),(SUMIFS(U:U,$D:$D,$D57,$I:$I,$H98)*IF($G98=\"Customized\",\nIF(_xlfn.XLOOKUP($H98,'Customized Fuel LHV'!$A:$A,'Customized Fuel LHV'!L:L,\"No LHV\",0)=\"\",\"Factor error\",_xlfn.XLOOKUP($H98,'Customized Fuel LHV'!$A:$A,'Customized Fuel LHV'!L:L,\"No LHV\",0)),_xlfn.XLOOKUP($H98,'Customized Fuel LHV'!$A:$A,'Customized Fuel LHV'!$C:$C,\"No LHV\",0)))\n*IF($F98=\"Customized\",IF(_xlfn.XLOOKUP($H98,'Customized Fuel EF'!$A:$A,'Customized Fuel EF'!L:L,\"No EF\",0)=\"\",\"Factor error\",_xlfn.XLOOKUP($H98,'Customized Fuel EF'!$A:$A,'Customized Fuel EF'!L:L,\"No EF\",0)),_xlfn.XLOOKUP($H98,'Customized Fuel EF'!$A:$A,'Customized Fuel EF'!$C:$C,\"No EF\",0))/1000,\"Factor error\"),\"Factor error\")","v":0},{"$f":"IFERROR(IF(OR($H98='Customized Fuel EF'!$A:$A),(SUMIFS(V:V,$D:$D,$D57,$I:$I,$H98)*IF($G98=\"Customized\",\nIF(_xlfn.XLOOKUP($H98,'Customized Fuel LHV'!$A:$A,'Customized Fuel LHV'!M:M,\"No LHV\",0)=\"\",\"Factor error\",_xlfn.XLOOKUP($H98,'Customized Fuel LHV'!$A:$A,'Customized Fuel LHV'!M:M,\"No LHV\",0)),_xlfn.XLOOKUP($H98,'Customized Fuel LHV'!$A:$A,'Customized Fuel LHV'!$C:$C,\"No LHV\",0)))\n*IF($F98=\"Customized\",IF(_xlfn.XLOOKUP($H98,'Customized Fuel EF'!$A:$A,'Customized Fuel EF'!M:M,\"No EF\",0)=\"\",\"Factor error\",_xlfn.XLOOKUP($H98,'Customized Fuel EF'!$A:$A,'Customized Fuel EF'!M:M,\"No EF\",0)),_xlfn.XLOOKUP($H98,'Customized Fuel EF'!$A:$A,'Customized Fuel EF'!$C:$C,\"No EF\",0))/1000,\"Factor error\"),\"Factor error\")","v":0},{"$f":"IFERROR(IF(OR($H98='Customized Fuel EF'!$A:$A),(SUMIFS(W:W,$D:$D,$D57,$I:$I,$H98)*IF($G98=\"Customized\",\nIF(_xlfn.XLOOKUP($H98,'Customized Fuel LHV'!$A:$A,'Customized Fuel LHV'!N:N,\"No LHV\",0)=\"\",\"Factor error\",_xlfn.XLOOKUP($H98,'Customized Fuel LHV'!$A:$A,'Customized Fuel LHV'!N:N,\"No LHV\",0)),_xlfn.XLOOKUP($H98,'Customized Fuel LHV'!$A:$A,'Customized Fuel LHV'!$C:$C,\"No LHV\",0)))\n*IF($F98=\"Customized\",IF(_xlfn.XLOOKUP($H98,'Customized Fuel EF'!$A:$A,'Customized Fuel EF'!N:N,\"No EF\",0)=\"\",\"Factor error\",_xlfn.XLOOKUP($H98,'Customized Fuel EF'!$A:$A,'Customized Fuel EF'!N:N,\"No EF\",0)),_xlfn.XLOOKUP($H98,'Customized Fuel EF'!$A:$A,'Customized Fuel EF'!$C:$C,\"No EF\",0))/1000,\"Factor error\"),\"Factor error\")","v":0},{"$f":"IFERROR(IF(OR($H98='Customized Fuel EF'!$A:$A),(SUMIFS(X:X,$D:$D,$D57,$I:$I,$H98)*IF($G98=\"Customized\",\nIF(_xlfn.XLOOKUP($H98,'Customized Fuel LHV'!$A:$A,'Customized Fuel LHV'!O:O,\"No LHV\",0)=\"\",\"Factor error\",_xlfn.XLOOKUP($H98,'Customized Fuel LHV'!$A:$A,'Customized Fuel LHV'!O:O,\"No LHV\",0)),_xlfn.XLOOKUP($H98,'Customized Fuel LHV'!$A:$A,'Customized Fuel LHV'!$C:$C,\"No LHV\",0)))\n*IF($F98=\"Customized\",IF(_xlfn.XLOOKUP($H98,'Customized Fuel EF'!$A:$A,'Customized Fuel EF'!O:O,\"No EF\",0)=\"\",\"Factor error\",_xlfn.XLOOKUP($H98,'Customized Fuel EF'!$A:$A,'Customized Fuel EF'!O:O,\"No EF\",0)),_xlfn.XLOOKUP($H98,'Customized Fuel EF'!$A:$A,'Customized Fuel EF'!$C:$C,\"No EF\",0))/1000,\"Factor error\"),\"Factor error\")","v":0},{"$f":"IFERROR(IF(OR($H98='Customized Fuel EF'!$A:$A),(SUMIFS(Y:Y,$D:$D,$D57,$I:$I,$H98)*IF($G98=\"Customized\",\nIF(_xlfn.XLOOKUP($H98,'Customized Fuel LHV'!$A:$A,'Customized Fuel LHV'!P:P,\"No LHV\",0)=\"\",\"Factor error\",_xlfn.XLOOKUP($H98,'Customized Fuel LHV'!$A:$A,'Customized Fuel LHV'!P:P,\"No LHV\",0)),_xlfn.XLOOKUP($H98,'Customized Fuel LHV'!$A:$A,'Customized Fuel LHV'!$C:$C,\"No LHV\",0)))\n*IF($F98=\"Customized\",IF(_xlfn.XLOOKUP($H98,'Customized Fuel EF'!$A:$A,'Customized Fuel EF'!P:P,\"No EF\",0)=\"\",\"Factor error\",_xlfn.XLOOKUP($H98,'Customized Fuel EF'!$A:$A,'Customized Fuel EF'!P:P,\"No EF\",0)),_xlfn.XLOOKUP($H98,'Customized Fuel EF'!$A:$A,'Customized Fuel EF'!$C:$C,\"No EF\",0))/1000,\"Factor error\"),\"Factor error\")","v":0},{"$f":"IFERROR(IF(OR($H98='Customized Fuel EF'!$A:$A),(SUMIFS(Z:Z,$D:$D,$D57,$I:$I,$H98)*IF($G98=\"Customized\",\nIF(_xlfn.XLOOKUP($H98,'Customized Fuel LHV'!$A:$A,'Customized Fuel LHV'!Q:Q,\"No LHV\",0)=\"\",\"Factor error\",_xlfn.XLOOKUP($H98,'Customized Fuel LHV'!$A:$A,'Customized Fuel LHV'!Q:Q,\"No LHV\",0)),_xlfn.XLOOKUP($H98,'Customized Fuel LHV'!$A:$A,'Customized Fuel LHV'!$C:$C,\"No LHV\",0)))\n*IF($F98=\"Customized\",IF(_xlfn.XLOOKUP($H98,'Customized Fuel EF'!$A:$A,'Customized Fuel EF'!Q:Q,\"No EF\",0)=\"\",\"Factor error\",_xlfn.XLOOKUP($H98,'Customized Fuel EF'!$A:$A,'Customized Fuel EF'!Q:Q,\"No EF\",0)),_xlfn.XLOOKUP($H98,'Customized Fuel EF'!$A:$A,'Customized Fuel EF'!$C:$C,\"No EF\",0))/1000,\"Factor error\"),\"Factor error\")","v":0},{"$f":"IFERROR(IF(OR($H98='Customized Fuel EF'!$A:$A),(SUMIFS(AA:AA,$D:$D,$D57,$I:$I,$H98)*IF($G98=\"Customized\",\nIF(_xlfn.XLOOKUP($H98,'Customized Fuel LHV'!$A:$A,'Customized Fuel LHV'!R:R,\"No LHV\",0)=\"\",\"Factor error\",_xlfn.XLOOKUP($H98,'Customized Fuel LHV'!$A:$A,'Customized Fuel LHV'!R:R,\"No LHV\",0)),_xlfn.XLOOKUP($H98,'Customized Fuel LHV'!$A:$A,'Customized Fuel LHV'!$C:$C,\"No LHV\",0)))\n*IF($F98=\"Customized\",IF(_xlfn.XLOOKUP($H98,'Customized Fuel EF'!$A:$A,'Customized Fuel EF'!R:R,\"No EF\",0)=\"\",\"Factor error\",_xlfn.XLOOKUP($H98,'Customized Fuel EF'!$A:$A,'Customized Fuel EF'!R:R,\"No EF\",0)),_xlfn.XLOOKUP($H98,'Customized Fuel EF'!$A:$A,'Customized Fuel EF'!$C:$C,\"No EF\",0))/1000,\"Factor error\"),\"Factor error\")","v":0},{"$f":"IFERROR(IF(OR($H98='Customized Fuel EF'!$A:$A),(SUMIFS(AB:AB,$D:$D,$D57,$I:$I,$H98)*IF($G98=\"Customized\",\nIF(_xlfn.XLOOKUP($H98,'Customized Fuel LHV'!$A:$A,'Customized Fuel LHV'!S:S,\"No LHV\",0)=\"\",\"Factor error\",_xlfn.XLOOKUP($H98,'Customized Fuel LHV'!$A:$A,'Customized Fuel LHV'!S:S,\"No LHV\",0)),_xlfn.XLOOKUP($H98,'Customized Fuel LHV'!$A:$A,'Customized Fuel LHV'!$C:$C,\"No LHV\",0)))\n*IF($F98=\"Customized\",IF(_xlfn.XLOOKUP($H98,'Customized Fuel EF'!$A:$A,'Customized Fuel EF'!S:S,\"No EF\",0)=\"\",\"Factor error\",_xlfn.XLOOKUP($H98,'Customized Fuel EF'!$A:$A,'Customized Fuel EF'!S:S,\"No EF\",0)),_xlfn.XLOOKUP($H98,'Customized Fuel EF'!$A:$A,'Customized Fuel EF'!$C:$C,\"No EF\",0))/1000,\"Factor error\"),\"Factor error\")","v":0},{"$f":"IFERROR(IF(OR($H98='Customized Fuel EF'!$A:$A),(SUMIFS(AC:AC,$D:$D,$D57,$I:$I,$H98)*IF($G98=\"Customized\",\nIF(_xlfn.XLOOKUP($H98,'Customized Fuel LHV'!$A:$A,'Customized Fuel LHV'!T:T,\"No LHV\",0)=\"\",\"Factor error\",_xlfn.XLOOKUP($H98,'Customized Fuel LHV'!$A:$A,'Customized Fuel LHV'!T:T,\"No LHV\",0)),_xlfn.XLOOKUP($H98,'Customized Fuel LHV'!$A:$A,'Customized Fuel LHV'!$C:$C,\"No LHV\",0)))\n*IF($F98=\"Customized\",IF(_xlfn.XLOOKUP($H98,'Customized Fuel EF'!$A:$A,'Customized Fuel EF'!T:T,\"No EF\",0)=\"\",\"Factor error\",_xlfn.XLOOKUP($H98,'Customized Fuel EF'!$A:$A,'Customized Fuel EF'!T:T,\"No EF\",0)),_xlfn.XLOOKUP($H98,'Customized Fuel EF'!$A:$A,'Customized Fuel EF'!$C:$C,\"No EF\",0))/1000,\"Factor error\"),\"Factor error\")","v":0},{"$f":"IFERROR(IF(OR($H98='Customized Fuel EF'!$A:$A),(SUMIFS(AD:AD,$D:$D,$D57,$I:$I,$H98)*IF($G98=\"Customized\",\nIF(_xlfn.XLOOKUP($H98,'Customized Fuel LHV'!$A:$A,'Customized Fuel LHV'!U:U,\"No LHV\",0)=\"\",\"Factor error\",_xlfn.XLOOKUP($H98,'Customized Fuel LHV'!$A:$A,'Customized Fuel LHV'!U:U,\"No LHV\",0)),_xlfn.XLOOKUP($H98,'Customized Fuel LHV'!$A:$A,'Customized Fuel LHV'!$C:$C,\"No LHV\",0)))\n*IF($F98=\"Customized\",IF(_xlfn.XLOOKUP($H98,'Customized Fuel EF'!$A:$A,'Customized Fuel EF'!U:U,\"No EF\",0)=\"\",\"Factor error\",_xlfn.XLOOKUP($H98,'Customized Fuel EF'!$A:$A,'Customized Fuel EF'!U:U,\"No EF\",0)),_xlfn.XLOOKUP($H98,'Customized Fuel EF'!$A:$A,'Customized Fuel EF'!$C:$C,\"No EF\",0))/1000,\"Factor error\"),\"Factor error\")","v":0}]
[null,null,"A3.1.2",null,null,"CO2e from on-site transportation (mobile combustion sources)",null,"CO2e from on-site power generation","CO2e from on-site power generation","[t CO2e/reporting period]",{"$f":"SUM(M99:AD99)","v":0},null,{"$f":"SUMIF($D:$D,$C99,M:M)","v":0},0,0,0,0,0,0,0,0,0,0,0,0,0,0,0,0,0]
[null,null,null,null,null,"Adopting CO2e Factors ","Adopting LHV Factors ","[Please insert additional rows if more energy commodities are included]"]
[null,null,null,{"$f":"C99","v":"A3.1.2"},".1",null,null,null,null,"[t CO2e/reporting period]",{"$f":"SUM(M101:AD101)","v":0},null,{"$f":"IFERROR(IF(OR($H101='Customized Fuel EF'!$A:$A),(SUMIFS(M:M,$D:$D,$D59,$I:$I,$H101)*IF($G101=\"Customized\",\nIF(_xlfn.XLOOKUP($H101,'Customized Fuel LHV'!$A:$A,'Customized Fuel LHV'!D:D,\"No LHV\",0)=\"\",\"Factor error\",_xlfn.XLOOKUP($H101,'Customized Fuel LHV'!$A:$A,'Customized Fuel LHV'!D:D,\"No LHV\",0)),_xlfn.XLOOKUP($H101,'Customized Fuel LHV'!$A:$A,'Customized Fuel LHV'!$C:$C,\"No LHV\",0)))\n*IF($F101=\"Customized\",IF(_xlfn.XLOOKUP($H101,'Customized Fuel EF'!$A:$A,'Customized Fuel EF'!D:D,\"No EF\",0)=\"\",\"Factor error\",_xlfn.XLOOKUP($H101,'Customized Fuel EF'!$A:$A,'Customized Fuel EF'!D:D,\"No EF\",0)),_xlfn.XLOOKUP($H101,'Customized Fuel EF'!$A:$A,'Customized Fuel EF'!$C:$C,\"No EF\",0))/1000,\"Factor error\"),\"Factor error\")","v":0},{"$f":"IFERROR(IF(OR($H101='Customized Fuel EF'!$A:$A),(SUMIFS(N:N,$D:$D,$D59,$I:$I,$H101)*IF($G101=\"Customized\",\nIF(_xlfn.XLOOKUP($H101,'Customized Fuel LHV'!$A:$A,'Customized Fuel LHV'!E:E,\"No LHV\",0)=\"\",\"Factor error\",_xlfn.XLOOKUP($H101,'Customized Fuel LHV'!$A:$A,'Customized Fuel LHV'!E:E,\"No LHV\",0)),_xlfn.XLOOKUP($H101,'Customized Fuel LHV'!$A:$A,'Customized Fuel LHV'!$C:$C,\"No LHV\",0)))\n*IF($F101=\"Customized\",IF(_xlfn.XLOOKUP($H101,'Customized Fuel EF'!$A:$A,'Customized Fuel EF'!E:E,\"No EF\",0)=\"\",\"Factor error\",_xlfn.XLOOKUP($H101,'Customized Fuel EF'!$A:$A,'Customized Fuel EF'!E:E,\"No EF\",0)),_xlfn.XLOOKUP($H101,'Customized Fuel EF'!$A:$A,'Customized Fuel EF'!$C:$C,\"No EF\",0))/1000,\"Factor error\"),\"Factor error\")","v":0},{"$f":"IFERROR(IF(OR($H101='Customized Fuel EF'!$A:$A),(SUMIFS(O:O,$D:$D,$D59,$I:$I,$H101)*IF($G101=\"Customized\",\nIF(_xlfn.XLOOKUP($H101,'Customized Fuel LHV'!$A:$A,'Customized Fuel LHV'!F:F,\"No LHV\",0)=\"\",\"Factor error\",_xlfn.XLOOKUP($H101,'Customized Fuel LHV'!$A:$A,'Customized Fuel LHV'!F:F,\"No LHV\",0)),_xlfn.XLOOKUP($H101,'Customized Fuel LHV'!$A:$A,'Customized Fuel LHV'!$C:$C,\"No LHV\",0)))\n*IF($F101=\"Customized\",IF(_xlfn.XLOOKUP($H101,'Customized Fuel EF'!$A:$A,'Customized Fuel EF'!F:F,\"No EF\",0)=\"\",\"Factor error\",_xlfn.XLOOKUP($H101,'Customized Fuel EF'!$A:$A,'Customized Fuel EF'!F:F,\"No EF\",0)),_xlfn.XLOOKUP($H101,'Customized Fuel EF'!$A:$A,'Customized Fuel EF'!$C:$C,\"No EF\",0))/1000,\"Factor error\"),\"Factor error\")","v":0},{"$f":"IFERROR(IF(OR($H101='Customized Fuel EF'!$A:$A),(SUMIFS(P:P,$D:$D,$D59,$I:$I,$H101)*IF($G101=\"Customized\",\nIF(_xlfn.XLOOKUP($H101,'Customized Fuel LHV'!$A:$A,'Customized Fuel LHV'!G:G,\"No LHV\",0)=\"\",\"Factor error\",_xlfn.XLOOKUP($H101,'Customized Fuel LHV'!$A:$A,'Customized Fuel LHV'!G:G,\"No LHV\",0)),_xlfn.XLOOKUP($H101,'Customized Fuel LHV'!$A:$A,'Customized Fuel LHV'!$C:$C,\"No LHV\",0)))\n*IF($F101=\"Customized\",IF(_xlfn.XLOOKUP($H101,'Customized Fuel EF'!$A:$A,'Customized Fuel EF'!G:G,\"No EF\",0)=\"\",\"Factor error\",_xlfn.XLOOKUP($H101,'Customized Fuel EF'!$A:$A,'Customized Fuel EF'!G:G,\"No EF\",0)),_xlfn.XLOOKUP($H101,'Customized Fuel EF'!$A:$A,'Customized Fuel EF'!$C:$C,\"No EF\",0))/1000,\"Factor error\"),\"Factor error\")","v":0},{"$f":"IFERROR(IF(OR($H101='Customized Fuel EF'!$A:$A),(SUMIFS(Q:Q,$D:$D,$D59,$I:$I,$H101)*IF($G101=\"Customized\",\nIF(_xlfn.XLOOKUP($H101,'Customized Fuel LHV'!$A:$A,'Customized Fuel LHV'!H:H,\"No LHV\",0)=\"\",\"Factor error\",_xlfn.XLOOKUP($H101,'Customized Fuel LHV'!$A:$A,'Customized Fuel LHV'!H:H,\"No LHV\",0)),_xlfn.XLOOKUP($H101,'Customized Fuel LHV'!$A:$A,'Customized Fuel LHV'!$C:$C,\"No LHV\",0)))\n*IF($F101=\"Customized\",IF(_xlfn.XLOOKUP($H101,'Customized Fuel EF'!$A:$A,'Customized Fuel EF'!H:H,\"No EF\",0)=\"\",\"Factor error\",_xlfn.XLOOKUP($H101,'Customized Fuel EF'!$A:$A,'Customized Fuel EF'!H:H,\"No EF\",0)),_xlfn.XLOOKUP($H101,'Customized Fuel EF'!$A:$A,'Customized Fuel EF'!$C:$C,\"No EF\",0))/1000,\"Factor error\"),\"Factor error\")","v":0},{"$f":"IFERROR(IF(OR($H101='Customized Fuel EF'!$A:$A),(SUMIFS(R:R,$D:$D,$D59,$I:$I,$H101)*IF($G101=\"Customized\",\nIF(_xlfn.XLOOKUP($H101,'Customized Fuel LHV'!$A:$A,'Customized Fuel LHV'!I:I,\"No LHV\",0)=\"\",\"Factor error\",_xlfn.XLOOKUP($H101,'Customized Fuel LHV'!$A:$A,'Customized Fuel LHV'!I:I,\"No LHV\",0)),_xlfn.XLOOKUP($H101,'Customized Fuel LHV'!$A:$A,'Customized Fuel LHV'!$C:$C,\"No LHV\",0)))\n*IF($F101=\"Customized\",IF(_xlfn.XLOOKUP($H101,'Customized Fuel EF'!$A:$A,'Customized Fuel EF'!I:I,\"No EF\",0)=\"\",\"Factor error\",_xlfn.XLOOKUP($H101,'Customized Fuel EF'!$A:$A,'Customized Fuel EF'!I:I,\"No EF\",0)),_xlfn.XLOOKUP($H101,'Customized Fuel EF'!$A:$A,'Customized Fuel EF'!$C:$C,\"No EF\",0))/1000,\"Factor error\"),\"Factor error\")","v":0},{"$f":"IFERROR(IF(OR($H101='Customized Fuel EF'!$A:$A),(SUMIFS(S:S,$D:$D,$D59,$I:$I,$H101)*IF($G101=\"Customized\",\nIF(_xlfn.XLOOKUP($H101,'Customized Fuel LHV'!$A:$A,'Customized Fuel LHV'!J:J,\"No LHV\",0)=\"\",\"Factor error\",_xlfn.XLOOKUP($H101,'Customized Fuel LHV'!$A:$A,'Customized Fuel LHV'!J:J,\"No LHV\",0)),_xlfn.XLOOKUP($H101,'Customized Fuel LHV'!$A:$A,'Customized Fuel LHV'!$C:$C,\"No LHV\",0)))\n*IF($F101=\"Customized\",IF(_xlfn.XLOOKUP($H101,'Customized Fuel EF'!$A:$A,'Customized Fuel EF'!J:J,\"No EF\",0)=\"\",\"Factor error\",_xlfn.XLOOKUP($H101,'Customized Fuel EF'!$A:$A,'Customized Fuel EF'!J:J,\"No EF\",0)),_xlfn.XLOOKUP($H101,'Customized Fuel EF'!$A:$A,'Customized Fuel EF'!$C:$C,\"No EF\",0))/1000,\"Factor error\"),\"Factor error\")","v":0},{"$f":"IFERROR(IF(OR($H101='Customized Fuel EF'!$A:$A),(SUMIFS(T:T,$D:$D,$D59,$I:$I,$H101)*IF($G101=\"Customized\",\nIF(_xlfn.XLOOKUP($H101,'Customized Fuel LHV'!$A:$A,'Customized Fuel LHV'!K:K,\"No LHV\",0)=\"\",\"Factor error\",_xlfn.XLOOKUP($H101,'Customized Fuel LHV'!$A:$A,'Customized Fuel LHV'!K:K,\"No LHV\",0)),_xlfn.XLOOKUP($H101,'Customized Fuel LHV'!$A:$A,'Customized Fuel LHV'!$C:$C,\"No LHV\",0)))\n*IF($F101=\"Customized\",IF(_xlfn.XLOOKUP($H101,'Customized Fuel EF'!$A:$A,'Customized Fuel EF'!K:K,\"No EF\",0)=\"\",\"Factor error\",_xlfn.XLOOKUP($H101,'Customized Fuel EF'!$A:$A,'Customized Fuel EF'!K:K,\"No EF\",0)),_xlfn.XLOOKUP($H101,'Customized Fuel EF'!$A:$A,'Customized Fuel EF'!$C:$C,\"No EF\",0))/1000,\"Factor error\"),\"Factor error\")","v":0},{"$f":"IFERROR(IF(OR($H101='Customized Fuel EF'!$A:$A),(SUMIFS(U:U,$D:$D,$D59,$I:$I,$H101)*IF($G101=\"Customized\",\nIF(_xlfn.XLOOKUP($H101,'Customized Fuel LHV'!$A:$A,'Customized Fuel LHV'!L:L,\"No LHV\",0)=\"\",\"Factor error\",_xlfn.XLOOKUP($H101,'Customized Fuel LHV'!$A:$A,'Customized Fuel LHV'!L:L,\"No LHV\",0)),_xlfn.XLOOKUP($H101,'Customized Fuel LHV'!$A:$A,'Customized Fuel LHV'!$C:$C,\"No LHV\",0)))\n*IF($F101=\"Customized\",IF(_xlfn.XLOOKUP($H101,'Customized Fuel EF'!$A:$A,'Customized Fuel EF'!L:L,\"No EF\",0)=\"\",\"Factor error\",_xlfn.XLOOKUP($H101,'Customized Fuel EF'!$A:$A,'Customized Fuel EF'!L:L,\"No EF\",0)),_xlfn.XLOOKUP($H101,'Customized Fuel EF'!$A:$A,'Customized Fuel EF'!$C:$C,\"No EF\",0))/1000,\"Factor error\"),\"Factor error\")","v":0},{"$f":"IFERROR(IF(OR($H101='Customized Fuel EF'!$A:$A),(SUMIFS(V:V,$D:$D,$D59,$I:$I,$H101)*IF($G101=\"Customized\",\nIF(_xlfn.XLOOKUP($H101,'Customized Fuel LHV'!$A:$A,'Customized Fuel LHV'!M:M,\"No LHV\",0)=\"\",\"Factor error\",_xlfn.XLOOKUP($H101,'Customized Fuel LHV'!$A:$A,'Customized Fuel LHV'!M:M,\"No LHV\",0)),_xlfn.XLOOKUP($H101,'Customized Fuel LHV'!$A:$A,'Customized Fuel LHV'!$C:$C,\"No LHV\",0)))\n*IF($F101=\"Customized\",IF(_xlfn.XLOOKUP($H101,'Customized Fuel EF'!$A:$A,'Customized Fuel EF'!M:M,\"No EF\",0)=\"\",\"Factor error\",_xlfn.XLOOKUP($H101,'Customized Fuel EF'!$A:$A,'Customized Fuel EF'!M:M,\"No EF\",0)),_xlfn.XLOOKUP($H101,'Customized Fuel EF'!$A:$A,'Customized Fuel EF'!$C:$C,\"No EF\",0))/1000,\"Factor error\"),\"Factor error\")","v":0},{"$f":"IFERROR(IF(OR($H101='Customized Fuel EF'!$A:$A),(SUMIFS(W:W,$D:$D,$D59,$I:$I,$H101)*IF($G101=\"Customized\",\nIF(_xlfn.XLOOKUP($H101,'Customized Fuel LHV'!$A:$A,'Customized Fuel LHV'!N:N,\"No LHV\",0)=\"\",\"Factor error\",_xlfn.XLOOKUP($H101,'Customized Fuel LHV'!$A:$A,'Customized Fuel LHV'!N:N,\"No LHV\",0)),_xlfn.XLOOKUP($H101,'Customized Fuel LHV'!$A:$A,'Customized Fuel LHV'!$C:$C,\"No LHV\",0)))\n*IF($F101=\"Customized\",IF(_xlfn.XLOOKUP($H101,'Customized Fuel EF'!$A:$A,'Customized Fuel EF'!N:N,\"No EF\",0)=\"\",\"Factor error\",_xlfn.XLOOKUP($H101,'Customized Fuel EF'!$A:$A,'Customized Fuel EF'!N:N,\"No EF\",0)),_xlfn.XLOOKUP($H101,'Customized Fuel EF'!$A:$A,'Customized Fuel EF'!$C:$C,\"No EF\",0))/1000,\"Factor error\"),\"Factor error\")","v":0},{"$f":"IFERROR(IF(OR($H101='Customized Fuel EF'!$A:$A),(SUMIFS(X:X,$D:$D,$D59,$I:$I,$H101)*IF($G101=\"Customized\",\nIF(_xlfn.XLOOKUP($H101,'Customized Fuel LHV'!$A:$A,'Customized Fuel LHV'!O:O,\"No LHV\",0)=\"\",\"Factor error\",_xlfn.XLOOKUP($H101,'Customized Fuel LHV'!$A:$A,'Customized Fuel LHV'!O:O,\"No LHV\",0)),_xlfn.XLOOKUP($H101,'Customized Fuel LHV'!$A:$A,'Customized Fuel LHV'!$C:$C,\"No LHV\",0)))\n*IF($F101=\"Customized\",IF(_xlfn.XLOOKUP($H101,'Customized Fuel EF'!$A:$A,'Customized Fuel EF'!O:O,\"No EF\",0)=\"\",\"Factor error\",_xlfn.XLOOKUP($H101,'Customized Fuel EF'!$A:$A,'Customized Fuel EF'!O:O,\"No EF\",0)),_xlfn.XLOOKUP($H101,'Customized Fuel EF'!$A:$A,'Customized Fuel EF'!$C:$C,\"No EF\",0))/1000,\"Factor error\"),\"Factor error\")","v":0},{"$f":"IFERROR(IF(OR($H101='Customized Fuel EF'!$A:$A),(SUMIFS(Y:Y,$D:$D,$D59,$I:$I,$H101)*IF($G101=\"Customized\",\nIF(_xlfn.XLOOKUP($H101,'Customized Fuel LHV'!$A:$A,'Customized Fuel LHV'!P:P,\"No LHV\",0)=\"\",\"Factor error\",_xlfn.XLOOKUP($H101,'Customized Fuel LHV'!$A:$A,'Customized Fuel LHV'!P:P,\"No LHV\",0)),_xlfn.XLOOKUP($H101,'Customized Fuel LHV'!$A:$A,'Customized Fuel LHV'!$C:$C,\"No LHV\",0)))\n*IF($F101=\"Customized\",IF(_xlfn.XLOOKUP($H101,'Customized Fuel EF'!$A:$A,'Customized Fuel EF'!P:P,\"No EF\",0)=\"\",\"Factor error\",_xlfn.XLOOKUP($H101,'Customized Fuel EF'!$A:$A,'Customized Fuel EF'!P:P,\"No EF\",0)),_xlfn.XLOOKUP($H101,'Customized Fuel EF'!$A:$A,'Customized Fuel EF'!$C:$C,\"No EF\",0))/1000,\"Factor error\"),\"Factor error\")","v":0},{"$f":"IFERROR(IF(OR($H101='Customized Fuel EF'!$A:$A),(SUMIFS(Z:Z,$D:$D,$D59,$I:$I,$H101)*IF($G101=\"Customized\",\nIF(_xlfn.XLOOKUP($H101,'Customized Fuel LHV'!$A:$A,'Customized Fuel LHV'!Q:Q,\"No LHV\",0)=\"\",\"Factor error\",_xlfn.XLOOKUP($H101,'Customized Fuel LHV'!$A:$A,'Customized Fuel LHV'!Q:Q,\"No LHV\",0)),_xlfn.XLOOKUP($H101,'Customized Fuel LHV'!$A:$A,'Customized Fuel LHV'!$C:$C,\"No LHV\",0)))\n*IF($F101=\"Customized\",IF(_xlfn.XLOOKUP($H101,'Customized Fuel EF'!$A:$A,'Customized Fuel EF'!Q:Q,\"No EF\",0)=\"\",\"Factor error\",_xlfn.XLOOKUP($H101,'Customized Fuel EF'!$A:$A,'Customized Fuel EF'!Q:Q,\"No EF\",0)),_xlfn.XLOOKUP($H101,'Customized Fuel EF'!$A:$A,'Customized Fuel EF'!$C:$C,\"No EF\",0))/1000,\"Factor error\"),\"Factor error\")","v":0},{"$f":"IFERROR(IF(OR($H101='Customized Fuel EF'!$A:$A),(SUMIFS(AA:AA,$D:$D,$D59,$I:$I,$H101)*IF($G101=\"Customized\",\nIF(_xlfn.XLOOKUP($H101,'Customized Fuel LHV'!$A:$A,'Customized Fuel LHV'!R:R,\"No LHV\",0)=\"\",\"Factor error\",_xlfn.XLOOKUP($H101,'Customized Fuel LHV'!$A:$A,'Customized Fuel LHV'!R:R,\"No LHV\",0)),_xlfn.XLOOKUP($H101,'Customized Fuel LHV'!$A:$A,'Customized Fuel LHV'!$C:$C,\"No LHV\",0)))\n*IF($F101=\"Customized\",IF(_xlfn.XLOOKUP($H101,'Customized Fuel EF'!$A:$A,'Customized Fuel EF'!R:R,\"No EF\",0)=\"\",\"Factor error\",_xlfn.XLOOKUP($H101,'Customized Fuel EF'!$A:$A,'Customized Fuel EF'!R:R,\"No EF\",0)),_xlfn.XLOOKUP($H101,'Customized Fuel EF'!$A:$A,'Customized Fuel EF'!$C:$C,\"No EF\",0))/1000,\"Factor error\"),\"Factor error\")","v":0},{"$f":"IFERROR(IF(OR($H101='Customized Fuel EF'!$A:$A),(SUMIFS(AB:AB,$D:$D,$D59,$I:$I,$H101)*IF($G101=\"Customized\",\nIF(_xlfn.XLOOKUP($H101,'Customized Fuel LHV'!$A:$A,'Customized Fuel LHV'!S:S,\"No LHV\",0)=\"\",\"Factor error\",_xlfn.XLOOKUP($H101,'Customized Fuel LHV'!$A:$A,'Customized Fuel LHV'!S:S,\"No LHV\",0)),_xlfn.XLOOKUP($H101,'Customized Fuel LHV'!$A:$A,'Customized Fuel LHV'!$C:$C,\"No LHV\",0)))\n*IF($F101=\"Customized\",IF(_xlfn.XLOOKUP($H101,'Customized Fuel EF'!$A:$A,'Customized Fuel EF'!S:S,\"No EF\",0)=\"\",\"Factor error\",_xlfn.XLOOKUP($H101,'Customized Fuel EF'!$A:$A,'Customized Fuel EF'!S:S,\"No EF\",0)),_xlfn.XLOOKUP($H101,'Customized Fuel EF'!$A:$A,'Customized Fuel EF'!$C:$C,\"No EF\",0))/1000,\"Factor error\"),\"Factor error\")","v":0},{"$f":"IFERROR(IF(OR($H101='Customized Fuel EF'!$A:$A),(SUMIFS(AC:AC,$D:$D,$D59,$I:$I,$H101)*IF($G101=\"Customized\",\nIF(_xlfn.XLOOKUP($H101,'Customized Fuel LHV'!$A:$A,'Customized Fuel LHV'!T:T,\"No LHV\",0)=\"\",\"Factor error\",_xlfn.XLOOKUP($H101,'Customized Fuel LHV'!$A:$A,'Customized Fuel LHV'!T:T,\"No LHV\",0)),_xlfn.XLOOKUP($H101,'Customized Fuel LHV'!$A:$A,'Customized Fuel LHV'!$C:$C,\"No LHV\",0)))\n*IF($F101=\"Customized\",IF(_xlfn.XLOOKUP($H101,'Customized Fuel EF'!$A:$A,'Customized Fuel EF'!T:T,\"No EF\",0)=\"\",\"Factor error\",_xlfn.XLOOKUP($H101,'Customized Fuel EF'!$A:$A,'Customized Fuel EF'!T:T,\"No EF\",0)),_xlfn.XLOOKUP($H101,'Customized Fuel EF'!$A:$A,'Customized Fuel EF'!$C:$C,\"No EF\",0))/1000,\"Factor error\"),\"Factor error\")","v":0},{"$f":"IFERROR(IF(OR($H101='Customized Fuel EF'!$A:$A),(SUMIFS(AD:AD,$D:$D,$D59,$I:$I,$H101)*IF($G101=\"Customized\",\nIF(_xlfn.XLOOKUP($H101,'Customized Fuel LHV'!$A:$A,'Customized Fuel LHV'!U:U,\"No LHV\",0)=\"\",\"Factor error\",_xlfn.XLOOKUP($H101,'Customized Fuel LHV'!$A:$A,'Customized Fuel LHV'!U:U,\"No LHV\",0)),_xlfn.XLOOKUP($H101,'Customized Fuel LHV'!$A:$A,'Customized Fuel LHV'!$C:$C,\"No LHV\",0)))\n*IF($F101=\"Customized\",IF(_xlfn.XLOOKUP($H101,'Customized Fuel EF'!$A:$A,'Customized Fuel EF'!U:U,\"No EF\",0)=\"\",\"Factor error\",_xlfn.XLOOKUP($H101,'Customized Fuel EF'!$A:$A,'Customized Fuel EF'!U:U,\"No EF\",0)),_xlfn.XLOOKUP($H101,'Customized Fuel EF'!$A:$A,'Customized Fuel EF'!$C:$C,\"No EF\",0))/1000,\"Factor error\"),\"Factor error\")","v":0}]
[null,null,null,{"$f":"C99","v":"A3.1.2"},".2",null,null,null,null,"[t CO2e/reporting period]",{"$f":"SUM(M102:AD102)","v":0},null,{"$f":"IFERROR(IF(OR($H102='Customized Fuel EF'!$A:$A),(SUMIFS(M:M,$D:$D,$D60,$I:$I,$H102)*IF($G102=\"Customized\",\nIF(_xlfn.XLOOKUP($H102,'Customized Fuel LHV'!$A:$A,'Customized Fuel LHV'!D:D,\"No LHV\",0)=\"\",\"Factor error\",_xlfn.XLOOKUP($H102,'Customized Fuel LHV'!$A:$A,'Customized Fuel LHV'!D:D,\"No LHV\",0)),_xlfn.XLOOKUP($H102,'Customized Fuel LHV'!$A:$A,'Customized Fuel LHV'!$C:$C,\"No LHV\",0)))\n*IF($F102=\"Customized\",IF(_xlfn.XLOOKUP($H102,'Customized Fuel EF'!$A:$A,'Customized Fuel EF'!D:D,\"No EF\",0)=\"\",\"Factor error\",_xlfn.XLOOKUP($H102,'Customized Fuel EF'!$A:$A,'Customized Fuel EF'!D:D,\"No EF\",0)),_xlfn.XLOOKUP($H102,'Customized Fuel EF'!$A:$A,'Customized Fuel EF'!$C:$C,\"No EF\",0))/1000,\"Factor error\"),\"Factor error\")","v":0},{"$f":"IFERROR(IF(OR($H102='Customized Fuel EF'!$A:$A),(SUMIFS(N:N,$D:$D,$D60,$I:$I,$H102)*IF($G102=\"Customized\",\nIF(_xlfn.XLOOKUP($H102,'Customized Fuel LHV'!$A:$A,'Customized Fuel LHV'!E:E,\"No LHV\",0)=\"\",\"Factor error\",_xlfn.XLOOKUP($H102,'Customized Fuel LHV'!$A:$A,'Customized Fuel LHV'!E:E,\"No LHV\",0)),_xlfn.XLOOKUP($H102,'Customized Fuel LHV'!$A:$A,'Customized Fuel LHV'!$C:$C,\"No LHV\",0)))\n*IF($F102=\"Customized\",IF(_xlfn.XLOOKUP($H102,'Customized Fuel EF'!$A:$A,'Customized Fuel EF'!E:E,\"No EF\",0)=\"\",\"Factor error\",_xlfn.XLOOKUP($H102,'Customized Fuel EF'!$A:$A,'Customized Fuel EF'!E:E,\"No EF\",0)),_xlfn.XLOOKUP($H102,'Customized Fuel EF'!$A:$A,'Customized Fuel EF'!$C:$C,\"No EF\",0))/1000,\"Factor error\"),\"Factor error\")","v":0},{"$f":"IFERROR(IF(OR($H102='Customized Fuel EF'!$A:$A),(SUMIFS(O:O,$D:$D,$D60,$I:$I,$H102)*IF($G102=\"Customized\",\nIF(_xlfn.XLOOKUP($H102,'Customized Fuel LHV'!$A:$A,'Customized Fuel LHV'!F:F,\"No LHV\",0)=\"\",\"Factor error\",_xlfn.XLOOKUP($H102,'Customized Fuel LHV'!$A:$A,'Customized Fuel LHV'!F:F,\"No LHV\",0)),_xlfn.XLOOKUP($H102,'Customized Fuel LHV'!$A:$A,'Customized Fuel LHV'!$C:$C,\"No LHV\",0)))\n*IF($F102=\"Customized\",IF(_xlfn.XLOOKUP($H102,'Customized Fuel EF'!$A:$A,'Customized Fuel EF'!F:F,\"No EF\",0)=\"\",\"Factor error\",_xlfn.XLOOKUP($H102,'Customized Fuel EF'!$A:$A,'Customized Fuel EF'!F:F,\"No EF\",0)),_xlfn.XLOOKUP($H102,'Customized Fuel EF'!$A:$A,'Customized Fuel EF'!$C:$C,\"No EF\",0))/1000,\"Factor error\"),\"Factor error\")","v":0},{"$f":"IFERROR(IF(OR($H102='Customized Fuel EF'!$A:$A),(SUMIFS(P:P,$D:$D,$D60,$I:$I,$H102)*IF($G102=\"Customized\",\nIF(_xlfn.XLOOKUP($H102,'Customized Fuel LHV'!$A:$A,'Customized Fuel LHV'!G:G,\"No LHV\",0)=\"\",\"Factor error\",_xlfn.XLOOKUP($H102,'Customized Fuel LHV'!$A:$A,'Customized Fuel LHV'!G:G,\"No LHV\",0)),_xlfn.XLOOKUP($H102,'Customized Fuel LHV'!$A:$A,'Customized Fuel LHV'!$C:$C,\"No LHV\",0)))\n*IF($F102=\"Customized\",IF(_xlfn.XLOOKUP($H102,'Customized Fuel EF'!$A:$A,'Customized Fuel EF'!G:G,\"No EF\",0)=\"\",\"Factor error\",_xlfn.XLOOKUP($H102,'Customized Fuel EF'!$A:$A,'Customized Fuel EF'!G:G,\"No EF\",0)),_xlfn.XLOOKUP($H102,'Customized Fuel EF'!$A:$A,'Customized Fuel EF'!$C:$C,\"No EF\",0))/1000,\"Factor error\"),\"Factor error\")","v":0},{"$f":"IFERROR(IF(OR($H102='Customized Fuel EF'!$A:$A),(SUMIFS(Q:Q,$D:$D,$D60,$I:$I,$H102)*IF($G102=\"Customized\",\nIF(_xlfn.XLOOKUP($H102,'Customized Fuel LHV'!$A:$A,'Customized Fuel LHV'!H:H,\"No LHV\",0)=\"\",\"Factor error\",_xlfn.XLOOKUP($H102,'Customized Fuel LHV'!$A:$A,'Customized Fuel LHV'!H:H,\"No LHV\",0)),_xlfn.XLOOKUP($H102,'Customized Fuel LHV'!$A:$A,'Customized Fuel LHV'!$C:$C,\"No LHV\",0)))\n*IF($F102=\"Customized\",IF(_xlfn.XLOOKUP($H102,'Customized Fuel EF'!$A:$A,'Customized Fuel EF'!H:H,\"No EF\",0)=\"\",\"Factor error\",_xlfn.XLOOKUP($H102,'Customized Fuel EF'!$A:$A,'Customized Fuel EF'!H:H,\"No EF\",0)),_xlfn.XLOOKUP($H102,'Customized Fuel EF'!$A:$A,'Customized Fuel EF'!$C:$C,\"No EF\",0))/1000,\"Factor error\"),\"Factor error\")","v":0},{"$f":"IFERROR(IF(OR($H102='Customized Fuel EF'!$A:$A),(SUMIFS(R:R,$D:$D,$D60,$I:$I,$H102)*IF($G102=\"Customized\",\nIF(_xlfn.XLOOKUP($H102,'Customized Fuel LHV'!$A:$A,'Customized Fuel LHV'!I:I,\"No LHV\",0)=\"\",\"Factor error\",_xlfn.XLOOKUP($H102,'Customized Fuel LHV'!$A:$A,'Customized Fuel LHV'!I:I,\"No LHV\",0)),_xlfn.XLOOKUP($H102,'Customized Fuel LHV'!$A:$A,'Customized Fuel LHV'!$C:$C,\"No LHV\",0)))\n*IF($F102=\"Customized\",IF(_xlfn.XLOOKUP($H102,'Customized Fuel EF'!$A:$A,'Customized Fuel EF'!I:I,\"No EF\",0)=\"\",\"Factor error\",_xlfn.XLOOKUP($H102,'Customized Fuel EF'!$A:$A,'Customized Fuel EF'!I:I,\"No EF\",0)),_xlfn.XLOOKUP($H102,'Customized Fuel EF'!$A:$A,'Customized Fuel EF'!$C:$C,\"No EF\",0))/1000,\"Factor error\"),\"Factor error\")","v":0},{"$f":"IFERROR(IF(OR($H102='Customized Fuel EF'!$A:$A),(SUMIFS(S:S,$D:$D,$D60,$I:$I,$H102)*IF($G102=\"Customized\",\nIF(_xlfn.XLOOKUP($H102,'Customized Fuel LHV'!$A:$A,'Customized Fuel LHV'!J:J,\"No LHV\",0)=\"\",\"Factor error\",_xlfn.XLOOKUP($H102,'Customized Fuel LHV'!$A:$A,'Customized Fuel LHV'!J:J,\"No LHV\",0)),_xlfn.XLOOKUP($H102,'Customized Fuel LHV'!$A:$A,'Customized Fuel LHV'!$C:$C,\"No LHV\",0)))\n*IF($F102=\"Customized\",IF(_xlfn.XLOOKUP($H102,'Customized Fuel EF'!$A:$A,'Customized Fuel EF'!J:J,\"No EF\",0)=\"\",\"Factor error\",_xlfn.XLOOKUP($H102,'Customized Fuel EF'!$A:$A,'Customized Fuel EF'!J:J,\"No EF\",0)),_xlfn.XLOOKUP($H102,'Customized Fuel EF'!$A:$A,'Customized Fuel EF'!$C:$C,\"No EF\",0))/1000,\"Factor error\"),\"Factor error\")","v":0},{"$f":"IFERROR(IF(OR($H102='Customized Fuel EF'!$A:$A),(SUMIFS(T:T,$D:$D,$D60,$I:$I,$H102)*IF($G102=\"Customized\",\nIF(_xlfn.XLOOKUP($H102,'Customized Fuel LHV'!$A:$A,'Customized Fuel LHV'!K:K,\"No LHV\",0)=\"\",\"Factor error\",_xlfn.XLOOKUP($H102,'Customized Fuel LHV'!$A:$A,'Customized Fuel LHV'!K:K,\"No LHV\",0)),_xlfn.XLOOKUP($H102,'Customized Fuel LHV'!$A:$A,'Customized Fuel LHV'!$C:$C,\"No LHV\",0)))\n*IF($F102=\"Customized\",IF(_xlfn.XLOOKUP($H102,'Customized Fuel EF'!$A:$A,'Customized Fuel EF'!K:K,\"No EF\",0)=\"\",\"Factor error\",_xlfn.XLOOKUP($H102,'Customized Fuel EF'!$A:$A,'Customized Fuel EF'!K:K,\"No EF\",0)),_xlfn.XLOOKUP($H102,'Customized Fuel EF'!$A:$A,'Customized Fuel EF'!$C:$C,\"No EF\",0))/1000,\"Factor error\"),\"Factor error\")","v":0},{"$f":"IFERROR(IF(OR($H102='Customized Fuel EF'!$A:$A),(SUMIFS(U:U,$D:$D,$D60,$I:$I,$H102)*IF($G102=\"Customized\",\nIF(_xlfn.XLOOKUP($H102,'Customized Fuel LHV'!$A:$A,'Customized Fuel LHV'!L:L,\"No LHV\",0)=\"\",\"Factor error\",_xlfn.XLOOKUP($H102,'Customized Fuel LHV'!$A:$A,'Customized Fuel LHV'!L:L,\"No LHV\",0)),_xlfn.XLOOKUP($H102,'Customized Fuel LHV'!$A:$A,'Customized Fuel LHV'!$C:$C,\"No LHV\",0)))\n*IF($F102=\"Customized\",IF(_xlfn.XLOOKUP($H102,'Customized Fuel EF'!$A:$A,'Customized Fuel EF'!L:L,\"No EF\",0)=\"\",\"Factor error\",_xlfn.XLOOKUP($H102,'Customized Fuel EF'!$A:$A,'Customized Fuel EF'!L:L,\"No EF\",0)),_xlfn.XLOOKUP($H102,'Customized Fuel EF'!$A:$A,'Customized Fuel EF'!$C:$C,\"No EF\",0))/1000,\"Factor error\"),\"Factor error\")","v":0},{"$f":"IFERROR(IF(OR($H102='Customized Fuel EF'!$A:$A),(SUMIFS(V:V,$D:$D,$D60,$I:$I,$H102)*IF($G102=\"Customized\",\nIF(_xlfn.XLOOKUP($H102,'Customized Fuel LHV'!$A:$A,'Customized Fuel LHV'!M:M,\"No LHV\",0)=\"\",\"Factor error\",_xlfn.XLOOKUP($H102,'Customized Fuel LHV'!$A:$A,'Customized Fuel LHV'!M:M,\"No LHV\",0)),_xlfn.XLOOKUP($H102,'Customized Fuel LHV'!$A:$A,'Customized Fuel LHV'!$C:$C,\"No LHV\",0)))\n*IF($F102=\"Customized\",IF(_xlfn.XLOOKUP($H102,'Customized Fuel EF'!$A:$A,'Customized Fuel EF'!M:M,\"No EF\",0)=\"\",\"Factor error\",_xlfn.XLOOKUP($H102,'Customized Fuel EF'!$A:$A,'Customized Fuel EF'!M:M,\"No EF\",0)),_xlfn.XLOOKUP($H102,'Customized Fuel EF'!$A:$A,'Customized Fuel EF'!$C:$C,\"No EF\",0))/1000,\"Factor error\"),\"Factor error\")","v":0},{"$f":"IFERROR(IF(OR($H102='Customized Fuel EF'!$A:$A),(SUMIFS(W:W,$D:$D,$D60,$I:$I,$H102)*IF($G102=\"Customized\",\nIF(_xlfn.XLOOKUP($H102,'Customized Fuel LHV'!$A:$A,'Customized Fuel LHV'!N:N,\"No LHV\",0)=\"\",\"Factor error\",_xlfn.XLOOKUP($H102,'Customized Fuel LHV'!$A:$A,'Customized Fuel LHV'!N:N,\"No LHV\",0)),_xlfn.XLOOKUP($H102,'Customized Fuel LHV'!$A:$A,'Customized Fuel LHV'!$C:$C,\"No LHV\",0)))\n*IF($F102=\"Customized\",IF(_xlfn.XLOOKUP($H102,'Customized Fuel EF'!$A:$A,'Customized Fuel EF'!N:N,\"No EF\",0)=\"\",\"Factor error\",_xlfn.XLOOKUP($H102,'Customized Fuel EF'!$A:$A,'Customized Fuel EF'!N:N,\"No EF\",0)),_xlfn.XLOOKUP($H102,'Customized Fuel EF'!$A:$A,'Customized Fuel EF'!$C:$C,\"No EF\",0))/1000,\"Factor error\"),\"Factor error\")","v":0},{"$f":"IFERROR(IF(OR($H102='Customized Fuel EF'!$A:$A),(SUMIFS(X:X,$D:$D,$D60,$I:$I,$H102)*IF($G102=\"Customized\",\nIF(_xlfn.XLOOKUP($H102,'Customized Fuel LHV'!$A:$A,'Customized Fuel LHV'!O:O,\"No LHV\",0)=\"\",\"Factor error\",_xlfn.XLOOKUP($H102,'Customized Fuel LHV'!$A:$A,'Customized Fuel LHV'!O:O,\"No LHV\",0)),_xlfn.XLOOKUP($H102,'Customized Fuel LHV'!$A:$A,'Customized Fuel LHV'!$C:$C,\"No LHV\",0)))\n*IF($F102=\"Customized\",IF(_xlfn.XLOOKUP($H102,'Customized Fuel EF'!$A:$A,'Customized Fuel EF'!O:O,\"No EF\",0)=\"\",\"Factor error\",_xlfn.XLOOKUP($H102,'Customized Fuel EF'!$A:$A,'Customized Fuel EF'!O:O,\"No EF\",0)),_xlfn.XLOOKUP($H102,'Customized Fuel EF'!$A:$A,'Customized Fuel EF'!$C:$C,\"No EF\",0))/1000,\"Factor error\"),\"Factor error\")","v":0},{"$f":"IFERROR(IF(OR($H102='Customized Fuel EF'!$A:$A),(SUMIFS(Y:Y,$D:$D,$D60,$I:$I,$H102)*IF($G102=\"Customized\",\nIF(_xlfn.XLOOKUP($H102,'Customized Fuel LHV'!$A:$A,'Customized Fuel LHV'!P:P,\"No LHV\",0)=\"\",\"Factor error\",_xlfn.XLOOKUP($H102,'Customized Fuel LHV'!$A:$A,'Customized Fuel LHV'!P:P,\"No LHV\",0)),_xlfn.XLOOKUP($H102,'Customized Fuel LHV'!$A:$A,'Customized Fuel LHV'!$C:$C,\"No LHV\",0)))\n*IF($F102=\"Customized\",IF(_xlfn.XLOOKUP($H102,'Customized Fuel EF'!$A:$A,'Customized Fuel EF'!P:P,\"No EF\",0)=\"\",\"Factor error\",_xlfn.XLOOKUP($H102,'Customized Fuel EF'!$A:$A,'Customized Fuel EF'!P:P,\"No EF\",0)),_xlfn.XLOOKUP($H102,'Customized Fuel EF'!$A:$A,'Customized Fuel EF'!$C:$C,\"No EF\",0))/1000,\"Factor error\"),\"Factor error\")","v":0},{"$f":"IFERROR(IF(OR($H102='Customized Fuel EF'!$A:$A),(SUMIFS(Z:Z,$D:$D,$D60,$I:$I,$H102)*IF($G102=\"Customized\",\nIF(_xlfn.XLOOKUP($H102,'Customized Fuel LHV'!$A:$A,'Customized Fuel LHV'!Q:Q,\"No LHV\",0)=\"\",\"Factor error\",_xlfn.XLOOKUP($H102,'Customized Fuel LHV'!$A:$A,'Customized Fuel LHV'!Q:Q,\"No LHV\",0)),_xlfn.XLOOKUP($H102,'Customized Fuel LHV'!$A:$A,'Customized Fuel LHV'!$C:$C,\"No LHV\",0)))\n*IF($F102=\"Customized\",IF(_xlfn.XLOOKUP($H102,'Customized Fuel EF'!$A:$A,'Customized Fuel EF'!Q:Q,\"No EF\",0)=\"\",\"Factor error\",_xlfn.XLOOKUP($H102,'Customized Fuel EF'!$A:$A,'Customized Fuel EF'!Q:Q,\"No EF\",0)),_xlfn.XLOOKUP($H102,'Customized Fuel EF'!$A:$A,'Customized Fuel EF'!$C:$C,\"No EF\",0))/1000,\"Factor error\"),\"Factor error\")","v":0},{"$f":"IFERROR(IF(OR($H102='Customized Fuel EF'!$A:$A),(SUMIFS(AA:AA,$D:$D,$D60,$I:$I,$H102)*IF($G102=\"Customized\",\nIF(_xlfn.XLOOKUP($H102,'Customized Fuel LHV'!$A:$A,'Customized Fuel LHV'!R:R,\"No LHV\",0)=\"\",\"Factor error\",_xlfn.XLOOKUP($H102,'Customized Fuel LHV'!$A:$A,'Customized Fuel LHV'!R:R,\"No LHV\",0)),_xlfn.XLOOKUP($H102,'Customized Fuel LHV'!$A:$A,'Customized Fuel LHV'!$C:$C,\"No LHV\",0)))\n*IF($F102=\"Customized\",IF(_xlfn.XLOOKUP($H102,'Customized Fuel EF'!$A:$A,'Customized Fuel EF'!R:R,\"No EF\",0)=\"\",\"Factor error\",_xlfn.XLOOKUP($H102,'Customized Fuel EF'!$A:$A,'Customized Fuel EF'!R:R,\"No EF\",0)),_xlfn.XLOOKUP($H102,'Customized Fuel EF'!$A:$A,'Customized Fuel EF'!$C:$C,\"No EF\",0))/1000,\"Factor error\"),\"Factor error\")","v":0},{"$f":"IFERROR(IF(OR($H102='Customized Fuel EF'!$A:$A),(SUMIFS(AB:AB,$D:$D,$D60,$I:$I,$H102)*IF($G102=\"Customized\",\nIF(_xlfn.XLOOKUP($H102,'Customized Fuel LHV'!$A:$A,'Customized Fuel LHV'!S:S,\"No LHV\",0)=\"\",\"Factor error\",_xlfn.XLOOKUP($H102,'Customized Fuel LHV'!$A:$A,'Customized Fuel LHV'!S:S,\"No LHV\",0)),_xlfn.XLOOKUP($H102,'Customized Fuel LHV'!$A:$A,'Customized Fuel LHV'!$C:$C,\"No LHV\",0)))\n*IF($F102=\"Customized\",IF(_xlfn.XLOOKUP($H102,'Customized Fuel EF'!$A:$A,'Customized Fuel EF'!S:S,\"No EF\",0)=\"\",\"Factor error\",_xlfn.XLOOKUP($H102,'Customized Fuel EF'!$A:$A,'Customized Fuel EF'!S:S,\"No EF\",0)),_xlfn.XLOOKUP($H102,'Customized Fuel EF'!$A:$A,'Customized Fuel EF'!$C:$C,\"No EF\",0))/1000,\"Factor error\"),\"Factor error\")","v":0},{"$f":"IFERROR(IF(OR($H102='Customized Fuel EF'!$A:$A),(SUMIFS(AC:AC,$D:$D,$D60,$I:$I,$H102)*IF($G102=\"Customized\",\nIF(_xlfn.XLOOKUP($H102,'Customized Fuel LHV'!$A:$A,'Customized Fuel LHV'!T:T,\"No LHV\",0)=\"\",\"Factor error\",_xlfn.XLOOKUP($H102,'Customized Fuel LHV'!$A:$A,'Customized Fuel LHV'!T:T,\"No LHV\",0)),_xlfn.XLOOKUP($H102,'Customized Fuel LHV'!$A:$A,'Customized Fuel LHV'!$C:$C,\"No LHV\",0)))\n*IF($F102=\"Customized\",IF(_xlfn.XLOOKUP($H102,'Customized Fuel EF'!$A:$A,'Customized Fuel EF'!T:T,\"No EF\",0)=\"\",\"Factor error\",_xlfn.XLOOKUP($H102,'Customized Fuel EF'!$A:$A,'Customized Fuel EF'!T:T,\"No EF\",0)),_xlfn.XLOOKUP($H102,'Customized Fuel EF'!$A:$A,'Customized Fuel EF'!$C:$C,\"No EF\",0))/1000,\"Factor error\"),\"Factor error\")","v":0},{"$f":"IFERROR(IF(OR($H102='Customized Fuel EF'!$A:$A),(SUMIFS(AD:AD,$D:$D,$D60,$I:$I,$H102)*IF($G102=\"Customized\",\nIF(_xlfn.XLOOKUP($H102,'Customized Fuel LHV'!$A:$A,'Customized Fuel LHV'!U:U,\"No LHV\",0)=\"\",\"Factor error\",_xlfn.XLOOKUP($H102,'Customized Fuel LHV'!$A:$A,'Customized Fuel LHV'!U:U,\"No LHV\",0)),_xlfn.XLOOKUP($H102,'Customized Fuel LHV'!$A:$A,'Customized Fuel LHV'!$C:$C,\"No LHV\",0)))\n*IF($F102=\"Customized\",IF(_xlfn.XLOOKUP($H102,'Customized Fuel EF'!$A:$A,'Customized Fuel EF'!U:U,\"No EF\",0)=\"\",\"Factor error\",_xlfn.XLOOKUP($H102,'Customized Fuel EF'!$A:$A,'Customized Fuel EF'!U:U,\"No EF\",0)),_xlfn.XLOOKUP($H102,'Customized Fuel EF'!$A:$A,'Customized Fuel EF'!$C:$C,\"No EF\",0))/1000,\"Factor error\"),\"Factor error\")","v":0}]
[null,null,"A3.1.3",null,null,"Total CO2e from fuels combustion",null,null,null,"[t CO2e/reporting period]",{"$f":"SUM(M103:AD103)","v":0},null,{"$f":"IF(AND(M95=\"\",M99=\"\"),\"\",M95+M99)","v":0},{"$f":"IF(AND(N95=\"\",N99=\"\"),\"\",N95+N99)","v":0},{"$f":"IF(AND(O95=\"\",O99=\"\"),\"\",O95+O99)","v":0},0,0,0,0,0,0,0,0,0,0,0,0,0,0,0]
[null,null,"A3.1.4",null,null,"CO2e from external electricity production",null,null,null,"[t CO2e/reporting period]",{"$f":"SUM(M104:AD104)","v":0},null,{"$f":"IFERROR(M62*$K$63/1000,\"\")","v":""},"","","","","","","","","","","","","","","","",""]
[null,null,"A3.1.5",null,null,null,null,null,"Total CO2e in Stage A3","[t CO2e/reporting period]",{"$f":"SUM(M105:AD105)","v":0},null,{"$f":"IFERROR(IF(M104=\"\",\"\",M104)+IF(M103=\"\",\"\",M103),\"\")","v":""},{"$f":"IFERROR(IF(N104=\"\",\"\",N104)+IF(N103=\"\",\"\",N103),\"\")","v":""},{"$f":"IFERROR(IF(O104=\"\",\"\",O104)+IF(O103=\"\",\"\",O103),\"\")","v":""},"","","","","","","","","","","",{"$f":"IFERROR(IF(AA104=\"\",\"\",AA104)+IF(AA103=\"\",\"\",AA103),\"\")","v":""},{"$f":"IFERROR(IF(AB104=\"\",\"\",AB104)+IF(AB103=\"\",\"\",AB103),\"\")","v":""},"",""]
[null,"A4","PROJECT LIFE CYCLE STAGE: A4 OFF-SITE TRANSPORTATION OF PRODUCT TO CONSTRUCTION SITE "]
[null,null,"A4.1 CO2e EMISSIONS ",null,null,null,null,null,null,"unit","Total",null,"Product 1","Product 2","Product 3","Product 4","Product 5","Product 6","Product 7","Product 8","Product 9","Product 10","Product 11","Product 12","Product 13","Product 14","Product 15","Product 16","Product 17","Product 18"]
[null,null,"A4.1.1",null,null,"CO2e from off-site transportation of product to construction site (excluded from assessment boundary)"]
[null,null,null,{"$f":"C108","v":"A4.1.1"},".1","CO2e calculated using either 1) WRI & WBCSD's protocol OR 2) EPD & EMSD's carbon audit tool)",null,null,null,"[t CO2e/reporting period]",{"$f":"SUM(M109:AD109)","v":0}]
[null,null,"A4.1.2",null,null,null,null,null,"Total CO2e in Stage A4","[t CO2e/reporting period]",{"$f":"SUM(M110:AD110)","v":0},null,{"$f":"IFERROR(IF(M109=\"\",\"\",M109),\"\")","v":""},"","","","","","","","","","","","","","","","",""]
[]
[null,"P ","PERFORMANCE INDICATORS",null,null,null,null,null,null,"unit","Total",null,"Product 1","Product 2","Product 3","Product 4","Product 5","Product 6","Product 7","Product 8","Product 9","Product 10","Product 11","Product 12","Product 13","Product 14","Product 15","Product 16","Product 17","Product 18"]
[null,"P",{"$f":"LEFT($B$112,2)","v":"P "},1,null,"Gross CO2e (A1-A3)",null,null,null,"[t CO2e/reporting period]",{"$f":"IF(AND(M113:AB113=\"\"),\"\",SUM(M113:AB113))","v":0},null,{"$f":"SUM(M114:M116)","v":0},{"$f":"SUM(N114:N116)","v":0},0,0,0,0,0,{"$f":"SUM(T114:T116)","v":0},0,0,0,0,0,0,0,0,0,0]
[null,null,"P ",{"$f":"D113","v":1},".1","A1 Raw material extraction and upstream production",null,null,null,"[t CO2e/reporting period]",{"$f":"IF(AND(M114:AD114=\"\"),\"\",SUM(M114:AD114))","v":0},null,{"$f":"SUMIF($I:$I,\"Total CO2e in Stage A1\",M:M)","v":0},{"$f":"SUMIF($I:$I,\"Total CO2e in Stage A1\",N:N)","v":0},0,0,0,0,0,0,0,0,0,0,0,0,0,0,0,0]
[null,null,"P ",{"$f":"D114","v":1},".2","A2 Off-site transportation of raw materials to manufacturing plant",null,null,null,"[t CO2e/reporting period]",{"$f":"IF(AND(M115:AD115=\"\"),\"\",SUM(M115:AD115))","v":0},null,{"$f":"SUMIF($I:$I,\"Total CO2e in Stage A2\",M:M)","v":0},{"$f":"SUMIF($I:$I,\"Total CO2e in Stage A2\",N:N)","v":0},0,0,0,0,0,0,0,0,0,0,0,0,0,0,0,0]
[null,null,"P ",{"$f":"D115","v":1},".3","A3 Product manufacturing and fabrication (without wastage)",null,null,null,"[t CO2e/reporting period]",{"$f":"IF(AND(M116:AD116=\"\"),\"\",SUM(M116:AD116))","v":0},null,{"$f":"SUMIF($I:$I,\"Total CO2e in Stage A3\",M:M)","v":0},{"$f":"SUMIF($I:$I,\"Total CO2e in Stage A3\",N:N)","v":0},0,0,0,0,0,0,0,0,0,0,0,0,0,0,0,0]
[null,null,"P ",{"$f":"D116","v":1},".4","A4 Off-site transportation of product to construction site (for reference only, excluded from assessment boundary)",null,null,null,"[t CO2e/reporting period]",{"$f":"IF(AND(M117:AD117=\"\"),\"\",SUM(M117:AD117))","v":0},null,{"$f":"SUMIF($I:$I,\"Total CO2e in Stage A4\",M:M)","v":0},{"$f":"SUMIF($I:$I,\"Total CO2e in Stage A4\",N:N)","v":0},0,0,0,0,0,0,0,0,0,0,0,0,0,0,0,0]
[null,null,"P ",2,null,"Specific gross CO2e per m3 of concrete produced (A1-A3)",null,null,null,"[kg CO2e/m3 con prod]",{"$f":"IF(K113=0,\"\",(K113/K$39)*1000)","v":""},null,{"$f":"IF(M$39=0,\"n.a.\",IF(M113=\"\",\"\",(M113/M$39)*1000))","v":"n.a."},{"$f":"IF(N$39=0,\"n.a.\",IF(N113=\"\",\"\",(N113/N$39)*1000))","v":"n.a."},{"$f":"IF(O$39=0,\"n.a.\",IF(O113=\"\",\"\",(O113/O$39)*1000))","v":"n.a."},"n.a.","n.a.","n.a.","n.a.",{"$f":"IF(T$39=0,\"n.a.\",IF(T113=\"\",\"\",(T113/T$39)*1000))","v":"n.a."},"n.a.","n.a.","n.a.","n.a.","n.a.","n.a.","n.a.","n.a.","n.a.","n.a."]
[null,null,"P ",{"$f":"D118","v":2},".1","A1 Raw material extraction and upstream production",null,null,null,"[kg CO2e/m3 con prod]",{"$f":"IF(K114=0,\"\",(K114/K$39)*1000)","v":""},null,{"$f":"IF(M$39=0,\"n.a.\",IF(M114=\"\",\"\",(M114/M$39)*1000))","v":"n.a."},{"$f":"IF(N$39=0,\"n.a.\",IF(N114=\"\",\"\",(N114/N$39)*1000))","v":"n.a."},"n.a.",{"$f":"IF(P$39=0,\"n.a.\",IF(P114=\"\",\"\",(P114/P$39)*1000))","v":"n.a."},"n.a.","n.a.",{"$f":"IF(S$39=0,\"n.a.\",IF(S114=\"\",\"\",(S114/S$39)*1000))","v":"n.a."},"n.a.","n.a.","n.a.","n.a.","n.a.","n.a.","n.a.","n.a.","n.a.","n.a.","n.a."]
[null,null,"P ",{"$f":"D119","v":2},".2","A2 Off-site transportation of raw materials to manufacturing plant",null,null,null,"[kg CO2e/m3 con prod]",{"$f":"IF(K115=0,\"\",(K115/K$39)*1000)","v":""},null,{"$f":"IF(M$39=0,\"n.a.\",IF(M115=\"\",\"\",(M115/M$39)*1000))","v":"n.a."},"n.a.",{"$f":"IF(O$39=0,\"n.a.\",IF(O115=\"\",\"\",(O115/O$39)*1000))","v":"n.a."},"n.a.",{"$f":"IF(Q$39=0,\"n.a.\",IF(Q115=\"\",\"\",(Q115/Q$39)*1000))","v":"n.a."},"n.a.","n.a.","n.a.","n.a.","n.a.","n.a.","n.a.","n.a.","n.a.","n.a.","n.a.","n.a.","n.a."]
[null,null,"P ",{"$f":"D119","v":2},".3","A3 Product manufacturing and fabrication (without wastage)",null,null,null,"[kg CO2e/m3 con prod]",{"$f":"IF(K116=0,\"\",(K116/K$39)*1000)","v":""},null,"n.a.",{"$f":"IF(N$39=0,\"n.a.\",IF(N116=\"\",\"\",(N116/N$39)*1000))","v":"n.a."},"n.a.","n.a.",{"$f":"IF(Q$39=0,\"n.a.\",IF(Q116=\"\",\"\",(Q116/Q$39)*1000))","v":"n.a."},"n.a.","n.a.","n.a.","n.a.","n.a.","n.a.","n.a.","n.a.","n.a.","n.a.","n.a.","n.a.","n.a."]
[null,null,"P ",{"$f":"D120","v":2},".4","A4 Off-site transportation of product to construction site (for reference only, excluded from assessment boundary)",null,null,null,"[kg CO2e/m3 con prod]",{"$f":"IF(K117=0,\"\",(K117/K$39)*1000)","v":""},null,{"$f":"IF(M$39=0,\"n.a.\",IF(M117=\"\",\"\",(M117/M$39)*1000))","v":"n.a."},{"$f":"IF(N$39=0,\"n.a.\",IF(N117=\"\",\"\",(N117/N$39)*1000))","v":"n.a."},"n.a.","n.a.",{"$f":"IF(Q$39=0,\"n.a.\",IF(Q117=\"\",\"\",(Q117/Q$39)*1000))","v":"n.a."},"n.a.","n.a.","n.a.","n.a.","n.a.","n.a.","n.a.","n.a.","n.a.","n.a.","n.a.","n.a.","n.a."]

{"sheet":"Customized Embodied EF","index":3,"n_rows":26,"n_cols":25,"rows_kept":26,"cut":false,"hidden":false,"merged":[[25,0,25,23],[1,5,1,22],[17,0,23,0],[3,0,16,0]]}
[]
[null,null,null,null,null,"Customized CO2e Emission Factors for Raw Materials"]
[null,null,null,null,"Default EF","Product 1","Product 2","Product 3","Product 4","Product 5","Product 6","Product 7","Product 8","Product 9","Product 10","Product 11","Product 12","Product 13","Product 14","Product 15","Product 16","Product 17","Product 18","Supporting document ","Explanation"]
["Raw material ","Ordinary Portland cement, i.e. CEM I",null,"[t CO2e/ t ]",0.83979999999999999,null,null,null,null,null,null,null,null,null,null,null,null,null,null,null,null,null,null,"Default value is used"]
[null,"Aggregates and sand, from virgin land won resources, bulk, loose",null,"[t CO2e/ t ]",4.3575011940298501E-3,null,null,null,null,null,null,null,null,null,null,null,null,null,null,null,null,null,null,"Default value is used"]
[null,"Aggregates and sand, from virgin marine resources, bulk, loose",null,"[t CO2e/ t ]",9.0375000000000004E-3,null,null,null,null,null,null,null,null,null,null,null,null,null,null,null,null,null,null,"Default value is used"]
[null,"Aggregates and sand, from recycled resources, no heat treatment, bulk, loose",null,"[t CO2e/ t ]",6.0529785714285699E-3,null,null,null,null,null,null,null,null,null,null,null,null,null,null,null,null,null,null,"Default value is used"]
[null,"Aggregates and sand, from recycled resources, with heat treatment, bulk, loose",null,"[t CO2e/ t ]",0.118771666666667,null,null,null,null,null,null,null,null,null,null,null,null,null,null,null,null,null,null,"Default value is used"]
[null,"Water / Ice",null,"[t CO2e/ t ]",{"$f":"(0.437)/1000","v":4.37E-4},null,null,null,null,null,null,null,null,null,null,null,null,null,null,null,null,null,null,"Default value is used"]
[null,"Fly ash (FA)",null,"[t CO2e/ t ]",4.0000000000000001E-3,null,null,null,null,null,null,null,null,null,null,null,null,null,null,null,null,null,null,"Default value is used"]
[null,"Ground granulated blast-furnace slag (GGBS)",null,"[t CO2e/ t ]",7.9600000000000004E-2,null,null,null,null,null,null,null,null,null,null,null,null,null,null,null,null,null,null,"Default value is used"]
[null,"Silica fume (SF)",null,"[t CO2e/ t ]",2.4E-2,null,null,null,null,null,null,null,null,null,null,null,null,null,null,null,null,null,null,"Default value is used"]
[null,"Superplasticizer",null,"[t CO2e/ t ]",1.53,null,null,null,null,null,null,null,null,null,null,null,null,null,null,null,null,null,null,"Default value is used"]
[null,"Plasticizer",null,"[t CO2e/ t ]",1.53,null,null,null,null,null,null,null,null,null,null,null,null,null,null,null,null,null,null,"Default value is used"]
[null,"Setting accelerator",null,"[t CO2e/ t ]",1.34,null,null,null,null,null,null,null,null,null,null,null,null,null,null,null,null,null,null,"Default value is used"]
[null,null,null,"[t CO2e/ t ]","N/A"]
[null,null,null,"[t CO2e/ t ]","N/A"]
["Energy Commodity","Energy commodity :","Diesel oil","[t CO2e/ t ]",0.75202760000000002,null,null,null,null,null,null,null,null,null,null,null,null,null,null,null,null,null,null,"Default value is used"]
[null,"Energy commodity :","Gasoline","[t CO2e/ t ]",0.81593523000000001,null,null,null,null,null,null,null,null,null,null,null,null,null,null,null,null,null,null,"Default value is used"]
[null,"Energy commodity :","Petrol coke","[t CO2e/ t ]",0.40262468000000001,null,null,null,null,null,null,null,null,null,null,null,null,null,null,null,null,null,null,"Default value is used"]
[null,"Energy commodity :","Natural gas","[t CO2e/ t ]",0.42316367999999999,null,null,null,null,null,null,null,null,null,null,null,null,null,null,null,null,null,null,"Default value is used"]
[null,"Energy commodity :","Waste oil","[t CO2e/ t ]",1.11683712,null,null,null,null,null,null,null,null,null,null,null,null,null,null,null,null,null,null,"Default value is used"]
[null,"Energy commodity :",null,"[t CO2e/ t ]","N/A"]
[null,"Energy commodity :",null,"[t CO2e/ t ]","N/A"]
[]
["Factor sheet Guide :\n1. Each material with a customized EF has its own specific EF type. Even if the applicant decides that certain products will adopt the default EF value for that material, the value must be copied and displayed in the matrix.\n2. The material name must be consistent across all sheets to ensure the Excel file functions as intended.\n3. The \"Supporting Document\" column must be completed by selecting either \"Yes\" or \"No\" if a customized factor is utilized. If the customized row is not applicable, the applicant should select \"Default value is used\". If there is no supporting document , applicant can select “No (Please explain)” and provide explanation for the missing supporting documents."]

{"sheet":"Customized Fuel EF","index":4,"n_rows":39,"n_cols":23,"rows_kept":39,"cut":false,"hidden":false,"merged":[[38,0,38,23],[3,1,3,22],[14,1,14,22],[24,1,24,22],[1,3,1,20]]}
[]
[null,null,null,"Customized CO2e Direct Emission Factors for Fuel"]
[null,null,"Default EF","Product 1","Product 2","Product 3","Product 4","Product 5","Product 6","Product 7","Product 8","Product 9","Product 10","Product 11","Product 12","Product 13","Product 14","Product 15","Product 16","Product 17","Product 18","Supporting document ","Explanation"]
[null,"Fossil fuels"]
["Coal + anthracite + waste coal","[kg CO2e/GJ ]",96.596999999999994,null,null,null,null,null,null,null,null,null,null,null,null,null,null,null,null,null,null,"Default value is used"]
["Petrol coke","[kg CO2e/GJ ]",97.753799999999998,null,null,null,null,null,null,null,null,null,null,null,null,null,null,null,null,null,null,"Default value is used"]
["(Ultra) Heavy fuel","[kg CO2e/GJ ]",77.653800000000004,null,null,null,null,null,null,null,null,null,null,null,null,null,null,null,null,null,null,"Default value is used"]
["Diesel oil","[kg CO2e/GJ ]",74.353800000000007,null,null,null,null,null,null,null,null,null,null,null,null,null,null,null,null,null,null,"Default value is used"]
["Natural gas","[kg CO2e/GJ ]",56.154800000000002,null,null,null,null,null,null,null,null,null,null,null,null,null,null,null,null,null,null,"Default value is used"]
["Oil shale","[kg CO2e/GJ ]",113.97,null,null,null,null,null,null,null,null,null,null,null,null,null,null,null,null,null,null,"Default value is used"]
["Lignite","[kg CO2e/GJ ]",107.97,null,null,null,null,null,null,null,null,null,null,null,null,null,null,null,null,null,null,"Default value is used"]
["Gasoline","[kg CO2e/GJ ]",70.02,null,null,null,null,null,null,null,null,null,null,null,null,null,null,null,null,null,null,"Default value is used"]
[null,"[kg CO2e/GJ ]","N/A"]
[null,"[kg CO2e/GJ ]","N/A"]
[null,"Alternative fossil fuels"]
["Waste oil","[kg CO2e/GJ ]",75.242000000000004,null,null,null,null,null,null,null,null,null,null,null,null,null,null,null,null,null,null,"Default value is used"]
["Tyres","[kg CO2e/GJ ]",85,null,null,null,null,null,null,null,null,null,null,null,null,null,null,null,null,null,null,"Default value is used"]
["Plastics","[kg CO2e/GJ ]",75,null,null,null,null,null,null,null,null,null,null,null,null,null,null,null,null,null,null,"Default value is used"]
["Solvents","[kg CO2e/GJ ]",74,null,null,null,null,null,null,null,null,null,null,null,null,null,null,null,null,null,null,"Default value is used"]
["Impregnated saw dust","[kg CO2e/GJ ]",75,null,null,null,null,null,null,null,null,null,null,null,null,null,null,null,null,null,null,"Default value is used"]
["Mixed industrial waste","[kg CO2e/GJ ]",83,null,null,null,null,null,null,null,null,null,null,null,null,null,null,null,null,null,null,"Default value is used"]
["Other fossil based wastes","[kg CO2e/GJ ]",80,null,null,null,null,null,null,null,null,null,null,null,null,null,null,null,null,null,null,"Default value is used"]
[null,"[kg CO2e/GJ ]","N/A"]
[null,"[kg CO2e/GJ ]","N/A"]
[null,"Biomass fuels"]
["Dried sewage sludge","[kg CO2e/GJ ]",101.94199999999999,null,null,null,null,null,null,null,null,null,null,null,null,null,null,null,null,null,null,"Default value is used"]
["Wood, non impregnated saw dust","[kg CO2e/GJ ]",113.94199999999999,null,null,null,null,null,null,null,null,null,null,null,null,null,null,null,null,null,null,"Default value is used"]
["Paper, carton","[kg CO2e/GJ ]",101.94199999999999,null,null,null,null,null,null,null,null,null,null,null,null,null,null,null,null,null,null,"Default value is used"]
["Animal meal","[kg CO2e/GJ ]",89.2,null,null,null,null,null,null,null,null,null,null,null,null,null,null,null,null,null,null,"Default value is used"]
["Animal bone meal","[kg CO2e/GJ ]",89.2,null,null,null,null,null,null,null,null,null,null,null,null,null,null,null,null,null,null,"Default value is used"]
["Animal fat","[kg CO2e/GJ ]",89.2,null,null,null,null,null,null,null,null,null,null,null,null,null,null,null,null,null,null,"Default value is used"]
["Agricultural, organic, diaper waste, charcoal","[kg CO2e/GJ ]",118.19199999999999,null,null,null,null,null,null,null,null,null,null,null,null,null,null,null,null,null,null,"Default value is used"]
["Biogasoline","[kg CO2e/GJ ]",{"$f":"(70800+3+0.6)/1000","v":70.803600000000003},null,null,null,null,null,null,null,null,null,null,null,null,null,null,null,null,null,null,"Default value is used"]
["Biodiesel","[kg CO2e/GJ ]",{"$f":"(70800+3+0.6)/1000","v":70.803600000000003},null,null,null,null,null,null,null,null,null,null,null,null,null,null,null,null,null,null,"Default value is used"]
["Other biomass","[kg CO2e/GJ ]",101.94199999999999,null,null,null,null,null,null,null,null,null,null,null,null,null,null,null,null,null,null,"Default value is used"]
[null,"[kg CO2e/GJ ]","N/A"]
[null,"[kg CO2e/GJ ]","N/A"]
[]
["Factor sheet Guide :\n1. Each energy commodity with a customized EF has its own specific EF type. Even if the applicant decides that certain products will adopt the default EF value for that energy commodity, the value must be copied and displayed in the matrix.\n2. The energy commodity name must be consistent across all sheets to ensure the Excel file functions as intended.\n3. The \"Supporting Document\" column must be completed by selecting either \"Yes\" or \"No\" if a customized factor is utilized. If the customized row is not applicable, the applicant should select \"Default value is used\". If there is no supporting document , applicant can select “No (Please explain)” and provide explanation for the missing supporting documents."]

{"sheet":"Customized Fuel LHV","index":5,"n_rows":39,"n_cols":23,"rows_kept":39,"cut":false,"hidden":false,"merged":[[38,0,38,23],[24,1,24,22],[1,3,1,20],[3,1,3,22],[14,1,14,22]]}
[]
[null,null,null,"Customized LHVs for Fuel"]
[null,null,"Default LHV","Product 1","Product 2","Product 3","Product 4","Product 5","Product 6","Product 7","Product 8","Product 9","Product 10","Product 11","Product 12","Product 13","Product 14","Product 15","Product 16","Product 17","Product 18","Supporting document ","Explanation"]
[null,"Fossil fuels"]
["Coal + anthracite + waste coal","MJ/kg",{"$f":"AVERAGE(26.7,28.2)","v":27.45},null,null,null,null,null,null,null,null,null,null,null,null,null,null,null,null,null,null,"Default value is used"]
["Petrol coke","MJ/kg",{"$f":"32.5","v":32.5},null,null,null,null,null,null,null,null,null,null,null,null,null,null,null,null,null,null,"Default value is used"]
["(Ultra) Heavy fuel","MJ/kg",{"$f":"40.4","v":40.4},null,null,null,null,null,null,null,null,null,null,null,null,null,null,null,null,null,null,"Default value is used"]
["Diesel oil","MJ/kg",{"$f":"43","v":43},null,null,null,null,null,null,null,null,null,null,null,null,null,null,null,null,null,null,"Default value is used"]
["Natural gas","MJ/kg",{"$f":"48","v":48},null,null,null,null,null,null,null,null,null,null,null,null,null,null,null,null,null,null,"Default value is used"]
["Oil shale","MJ/kg",{"$f":"8.9","v":8.9},null,null,null,null,null,null,null,null,null,null,null,null,null,null,null,null,null,null,"Default value is used"]
["Lignite","MJ/kg",{"$f":"11.9","v":11.9},null,null,null,null,null,null,null,null,null,null,null,null,null,null,null,null,null,null,"Default value is used"]
["Gasoline","MJ/kg",{"$f":"AVERAGE(44.3,44.3,44.3)","v":44.29999999999999},null,null,null,null,null,null,null,null,null,null,null,null,null,null,null,null,null,null,"Default value is used"]
[{"$f":"IF('Customized Fuel EF'!A13=\"\",\"\",'Customized Fuel EF'!A13)","v":""},"MJ/kg","N/A"]
[{"$f":"IF('Customized Fuel EF'!A14=\"\",\"\",'Customized Fuel EF'!A14)","v":""},"MJ/kg","N/A"]
[null,"Alternative fossil fuels"]
["Waste oil","MJ/kg",{"$f":"40.2","v":40.200000000000003},null,null,null,null,null,null,null,null,null,null,null,null,null,null,null,null,null,null,"Default value is used"]
["Tyres","MJ/kg","N/A",null,null,null,null,null,null,null,null,null,null,null,null,null,null,null,null,null,null,"Default value is used"]
["Plastics","MJ/kg","N/A",null,null,null,null,null,null,null,null,null,null,null,null,null,null,null,null,null,null,"Default value is used"]
["Solvents","MJ/kg","N/A",null,null,null,null,null,null,null,null,null,null,null,null,null,null,null,null,null,null,"Default value is used"]
["Impregnated saw dust","MJ/kg","N/A",null,null,null,null,null,null,null,null,null,null,null,null,null,null,null,null,null,null,"Default value is used"]
["Mixed industrial waste","MJ/kg","N/A",null,null,null,null,null,null,null,null,null,null,null,null,null,null,null,null,null,null,"Default value is used"]
["Other fossil based wastes","MJ/kg","N/A",null,null,null,null,null,null,null,null,null,null,null,null,null,null,null,null,null,null,"Default value is used"]
[{"$f":"IF('Customized Fuel EF'!A23=\"\",\"\",'Customized Fuel EF'!A23)","v":""},"MJ/kg","N/A"]
[{"$f":"IF('Customized Fuel EF'!A24=\"\",\"\",'Customized Fuel EF'!A24)","v":""},"MJ/kg","N/A"]
[null,"Biomass fuels"]
["Dried sewage sludge","MJ/kg",{"$f":"11.6","v":11.6},null,null,null,null,null,null,null,null,null,null,null,null,null,null,null,null,null,null,"Default value is used"]
["Wood, non impregnated saw dust","MJ/kg",{"$f":"15.6","v":15.6},null,null,null,null,null,null,null,null,null,null,null,null,null,null,null,null,null,null,"Default value is used"]
["Paper, carton","MJ/kg",{"$f":"11.6","v":11.6},null,null,null,null,null,null,null,null,null,null,null,null,null,null,null,null,null,null,"Default value is used"]
["Animal meal","MJ/kg","N/A",null,null,null,null,null,null,null,null,null,null,null,null,null,null,null,null,null,null,"Default value is used"]
["Animal bone meal","MJ/kg","N/A",null,null,null,null,null,null,null,null,null,null,null,null,null,null,null,null,null,null,"Default value is used"]
["Animal fat","MJ/kg","N/A",null,null,null,null,null,null,null,null,null,null,null,null,null,null,null,null,null,null,"Default value is used"]
["Agricultural, organic, diaper waste, charcoal","MJ/kg",{"$f":"29.5","v":29.5},null,null,null,null,null,null,null,null,null,null,null,null,null,null,null,null,null,null,"Default value is used"]
["Bio gasoline","MJ/kg",{"$f":"27","v":27},null,null,null,null,null,null,null,null,null,null,null,null,null,null,null,null,null,null,"Default value is used"]
["Biodiesel","MJ/kg",{"$f":"27","v":27},null,null,null,null,null,null,null,null,null,null,null,null,null,null,null,null,null,null,"Default value is used"]
["Other biomass","MJ/kg",{"$f":"11.6","v":11.6},null,null,null,null,null,null,null,null,null,null,null,null,null,null,null,null,null,null,"Default value is used"]
[{"$f":"IF('Customized Fuel EF'!A36=\"\",\"\",'Customized Fuel EF'!A36)","v":""},"MJ/kg","N/A"]
[{"$f":"IF('Customized Fuel EF'!A37=\"\",\"\",'Customized Fuel EF'!A37)","v":""},"MJ/kg","N/A"]
[]
["Factor sheet Guide :\n1. Each energy commodity with a customized LHV has its own specific LHV type. Even if the applicant decides that certain products will adopt the default LHV value for that energy commodity, the value must be copied and displayed in the matrix.\n2. The energy commodity name must be consistent across all sheets to ensure the Excel file functions as intended.\n3. The \"Supporting Document\" column must be completed by selecting either \"Yes\" or \"No\" if a customized factor is utilized. If the customized row is not applicable, the applicant should select \"Default value is used\". If there is no supporting document , applicant can select “No (Please explain)” and provide explanation for the missing supporting documents."]

{"sheet":"Default EF&LHV References ","index":6,"n_rows":86,"n_cols":3,"rows_kept":86,"cut":false,"hidden":false,"merged":[[0,0,0,1],[1,0,1,2],[22,0,22,2],[56,0,56,2]]}
["Date of latest update",null,"2025-03-24"]
["Default CO2e Emission Factors for Raw Materials"]
["Type","Raw Materials","References"]
[1,"Ordinary portland cement, i.e. CEM I","ICE Database V4.0 (2024)"]
[2,"Aggregates and sand, from virgin land won resources, bulk, loose","ICE Database V4.0 (2024)"]
[3,"Aggregates and sand, from virgin marine resources, bulk, loose","ICE Database V4.0 (2024)"]
[4,"Aggregates and sand, from recycled resources, no heat treatment, bulk, loose","ICE Database V4.0 (2024)"]
[5,"Aggregates and sand, from recycled resources, with heat treatment, bulk, loose","ICE Database V4.0 (2024)"]
[6,"Water / Ice","EPD & EMSD Carbon Audit Template v2.7A (2024)"]
[7,"Fly ash (FA)","ICE Cement, Mortar and Concrete Model – V1.2 (2024)"]
[8,"Ground granulated blast-furnace slag (GGBS)","ICE Cement, Mortar and Concrete Model – V1.2 (2024)"]
[9,"Silica fume (SF)","Kumar, A., Bheel, N., Ahmed, I., Rizvi, S. H., Kumar, R., & Jhatial, A. A. (2022). Effect of silica fume and fly ash as cementitious material on hardened properties and embodied carbon of roller compacted concrete. Environmental Science and Pollution Research International, 29(1), 1210–1222. https://doi.org/10.1007/s11356-021-15734-0"]
[10,"Superplasticizer","European EPD from European Federation of Concrete Admixtures Associations Ltd. (EFCA)  (2021). Density of 1-1.6 kg/l in accordance with the IBU PCR 11-2017 Part B for concrete admixtures. Available from: https://safe.rbi-umbrella.com/doc/docview/viewer/docN7E6019CF3A5E6beaa5fa95cdd6ff5cabc176bcbec408b7a1e936bd01a67e31b2691dcd4cee9f"]
[11,"Plasticizer","European EPD from European Federation of Concrete Admixtures Associations Ltd. (EFCA)  (2021). Density of 1-1.6 kg/l in accordance with the IBU PCR 11-2017 Part B for concrete admixtures. Available from: https://safe.rbi-umbrella.com/doc/docview/viewer/docN7E6019CF3A5E6beaa5fa95cdd6ff5cabc176bcbec408b7a1e936bd01a67e31b2691dcd4cee9f"]
[12,"Setting accelerator","European EPD from European Federation of Concrete Admixtures Associations Ltd. (EFCA)  (2021). Density of 1-1.6 kg/l in accordance with the IBU PCR 11-2017 Part B for concrete admixtures. Available from: https://safe.rbi-umbrella.com/doc/docview/viewer/docN7E6019CF3A5E43662866c50253314b00e808ac72c69b04779bec169c3390a0077fb95bc2aa1e"]
[null,"Energy Commodity"]
[13,"Diesel oil","UK Department for Energy Security and Net Zero (2024). Greenhouse gas reporting: conversion factors 2024."]
[14,"Gasoline","UK Department for Energy Security and Net Zero (2024). Greenhouse gas reporting: conversion factors 2024."]
[15,"Petrol coke","UK Department for Energy Security and Net Zero (2024). Greenhouse gas reporting: conversion factors 2024"]
[16,"Natural gas","UK Department for Energy Security and Net Zero (2024). Greenhouse gas reporting: conversion factors 2024."]
[17,"Waste oil","UK Department for Energy Security and Net Zero (2024). Greenhouse gas reporting: conversion factors 2024."]
[]
["Default CO2e Direcet Emission Factors for Fuels "]
["Type","Category","References"]
[null,"Fossil fuels"]
[1,"Coal + anthracite + waste coal","Volume 2 Chapter 2, Table 2.3 of IPCC 2006 Guideline for National Greenhous Gas Inventories. Combined default of \"anthracite \", \"coking coal\", \"other bituminous coal\", and \"sub-bituminous coal\" is used."]
[{"$f":"A26+1","v":2},"Petrol coke","Volume 2 Chapter 2, Table 2.3 of IPCC 2006 Guideline for National Greenhous Gas Inventories."]
[3,"(Ultra) Heavy fuel","Volume 2 Chapter 2, Table 2.3 of IPCC 2006 Guideline for National Greenhous Gas Inventories. Default of \"Residual fuel oil\" is used."]
[4,"Diesel oil","Volume 2 Chapter 2, Table 2.3 of IPCC 2006 Guideline for National Greenhous Gas Inventories."]
[5,"Natural gas","Volume 2 Chapter 2, Table 2.3 of IPCC 2006 Guideline for National Greenhous Gas Inventories."]
[6,"Oil shale","Volume 2 Chapter 2, Table 2.3 of IPCC 2006 Guideline for National Greenhous Gas Inventories. Default of \"Oil shale and  tar sand\" is used."]
[7,"Lignite","Volume 2 Chapter 2, Table 2.3 of IPCC 2006 Guideline for National Greenhous Gas Inventories."]
[8,"Gasoline","Volume 2 Chapter 2, Table 2.3 of IPCC 2006 Guideline for National Greenhous Gas Inventories. Combined default of \"motor gasoline\",\"aviation gasoline \" and \"jet gasoline\" is used."]
[null,"Alternative fossil fuels"]
[9,"Waste oil","Volume 2 Chapter 2, Table 2.3 of IPCC 2006 Guideline for National Greenhous Gas Inventories."]
[{"$f":"A35+1","v":10},"Tyres","Cement Sustainability Initiative (CSI) (2011). Best estimate of CSI Task Force 1"]
[11,"Plastics","Cement Sustainability Initiative (CSI) (2011). Best estimate of CSI Task Force 1"]
[12,"Solvents","Cement Sustainability Initiative (CSI) (2011). Best estimate of CSI Task Force 1"]
[13,"Impregnated saw dust","Cement Sustainability Initiative (CSI) (2011). Best estimate of CSI Task Force 1"]
[14,"Mixed industrial waste","Cement Sustainability Initiative (CSI) (2011). Best estimate of CSI Task Force 1"]
[15,"Other fossil based wastes","Cement Sustainability Initiative (CSI) (2011). Best estimate of CSI Task Force 1"]
[null,"Biomass fuels"]
[16,"Dried sewage sludge","Volume 2 Chapter 2, Table 2.3 of IPCC 2006 Guideline for National Greenhous Gas Inventories. Default of \"other primary solid biomass\" is used."]
[17,"Wood, non impregnated saw dust","Volume 2 Chapter 2, Table 2.3 of IPCC 2006 Guideline for National Greenhous Gas Inventories. Default of \"wood / wood waste\" is used."]
[18,"Paper, carton","Volume 2 Chapter 2, Table 2.3 of IPCC 2006 Guideline for National Greenhous Gas Inventories. Default of \"other primary solid biomass\" is used."]
[19,"Animal meal","Cement Sustainability Initiative (CSI) (2011). Best estimate of CSI Task Force 6"]
[20,"Animal bone meal","Cement Sustainability Initiative (CSI) (2011). Best estimate of CSI Task Force 6"]
[21,"Animal fat","Cement Sustainability Initiative (CSI) (2011). Best estimate of CSI Task Force 6"]
[22,"Agricultural, organic, diaper waste, charcoal","Volume 2 Chapter 2, Table 2.3 of IPCC 2006 Guideline for National Greenhous Gas Inventories. Default of \"charcoal\" is used."]
[23,"Biogasoline","Volume 2 Chapter 2, Table 2.3 of IPCC 2006 Guideline for National Greenhous Gas Inventories."]
[24,"Biodiesel","Volume 2 Chapter 2, Table 2.3 of IPCC 2006 Guideline for National Greenhous Gas Inventories."]
[25,"Other biomass","Volume 2 Chapter 2, Table 2.3 of IPCC 2006 Guideline for National Greenhous Gas Inventories. Default of \"other primary solid biomass\" is used."]
["Notes:"]
["IPCC defaults are from 2006 IPCC Guidelines for National Greenhouse Gas Inventories, Chapter 2"]
["Some fuels have been clustered for simplicity."]
[]
["Default LHV for Fuels "]
["Type","Category","References"]
[null,"Fossil fuels"]
[1,"Coal + anthracite","Volume 2 Chapter 1, Tables 1.2 of IPCC 2006 Guideline for National Greenhous Gas Inventories."]
[{"$f":"A60+1","v":2},"Petrol coke","Volume 2 Chapter 1, Tables 1.2 of IPCC 2006 Guideline for National Greenhous Gas Inventories."]
[3,"(Ultra) Heavy fuel","Volume 2 Chapter 1, Tables 1.2 of IPCC 2006 Guideline for National Greenhous Gas Inventories."]
[4,"Diesel oil","Volume 2 Chapter 1, Tables 1.2 of IPCC 2006 Guideline for National Greenhous Gas Inventories."]
[5,"Natural gas","Volume 2 Chapter 1, Tables 1.2 of IPCC 2006 Guideline for National Greenhous Gas Inventories."]
[6,"Oil shale","Volume 2 Chapter 1, Tables 1.2 of IPCC 2006 Guideline for National Greenhous Gas Inventories."]
[7,"Lignite","Volume 2 Chapter 1, Tables 1.2 of IPCC 2006 Guideline for National Greenhous Gas Inventories."]
[8,"Gasoline","Volume 2 Chapter 1, Tables 1.2 of IPCC 2006 Guideline for National Greenhous Gas Inventories."]
[null,"Alternative fossil fuels"]
[9,"Waste oil","Volume 2 Chapter 1, Tables 1.2 of IPCC 2006 Guideline for National Greenhous Gas Inventories."]
[{"$f":"A69+1","v":10},"Tyres","N/A"]
[11,"Plastics","N/A"]
[12,"Solvents","N/A"]
[13,"Impregnated saw dust","N/A"]
[14,"Mixed industrial waste","N/A"]
[15,"Other fossil based wastes","N/A"]
[null,"Biomass fuels"]
[16,"Dried sewage sludge","Volume 2 Chapter 1, Tables 1.2 of IPCC 2006 Guideline for National Greenhous Gas Inventories."]
[17,"Wood, non impregnated saw dust","Volume 2 Chapter 1, Tables 1.2 of IPCC 2006 Guideline for National Greenhous Gas Inventories."]
[18,"Paper, carton","Volume 2 Chapter 1, Tables 1.2 of IPCC 2006 Guideline for National Greenhous Gas Inventories."]
[19,"Animal meal","N/A"]
[20,"Animal bone meal","N/A"]
[21,"Animal fat","N/A"]
[22,"Agricultural, organic, diaper waste, charcoal","Volume 2 Chapter 1, Tables 1.2 of IPCC 2006 Guideline for National Greenhous Gas Inventories."]
[23,"Biogasoline","Volume 2 Chapter 1, Tables 1.2 of IPCC 2006 Guideline for National Greenhous Gas Inventories."]
[24,"Biodiesel","Volume 2 Chapter 1, Tables 1.2 of IPCC 2006 Guideline for National Greenhous Gas Inventories."]
[25,"Other biomass","Volume 2 Chapter 1, Tables 1.2 of IPCC 2006 Guideline for National Greenhous Gas Inventories."]